Workbook

Sheet Instructions
B2: TERM-Lite Inventory Publisher
B3: for the Transit Economic Requirements Model
B5: Add Data
C6: Complete all white cells. Non-white cells are protected and cannot be selected.
D7: Tip: If pasting from another workbook, use the "Paste Special as Values" option to avoid losing the data validation features.
D8: Tip: If more rows are needed, type in the number of cells (1 to 1,000) and click on "Add"
B10: Review Costs (Optional)
C11: Adjust the "Base Year" field above the "Cost" columns to see how costs are normalized
D12: Tip: This is for informational purposes only. You will again be asked to specify the Base Year once using the TERM model.
B14: Removing unwanted Record/Data Rows
C15: Before publishing, remove all unused or undesired rows
D16: Tip: Click "Delete Records with no Description" to remove excess or unused rows. Make sure all valid records have descriptions first.
D17: Tip: To delete specific records or continuous ranges of records, select the rows in any editable column and click "Delete Selected Records"
B19: Publish
C20: Method #1: Click the "Publish Inventory" button in the top left corner of the screen
D21: Tip: This will result in the data being copied to your clipboard, ready to paste into the TERM input form.
C22: Method #2: Click the "Publish Inventory" button. Save the Publisher file to a location of your choice. Use the 'Import' feature in TERM-Lite
D23: Tip: When using the import option, TERM-Lite will prompt you to browse to the file you saved

Sheet Input
C2: TERM-Lite Inventory Publisher | J2: ="Currently, there are "&TEXT(ROWS(rows.input),"#,##0")&" record"&IF(ROWS(rows.input)=1,"","s") -> Currently, there are 422 records
C3: for the Transit Economic Requirements Model | J3: 1 | P3: « | V3: Base Year
N4: « | P4: Replacement Cost (original) | U4: « | V4: 2015 | AA4: Delayed
D5: « (mandatory) | F5: « | H5: « | J5: « | M5: Expan- | N5: Year | P5: Unit | Q5: Acquisition | R5: Repl. | S5: Soft | U5: Cost | V5: Repl. | X5: Useful | Z5: « | AA5: Replacement | AE5: Additional Asset Information | BA5: Data Information
C6: Record | D6: Mode | F6: Description | H6: Asset Classification | J6: Quantity | K6: Unit | M6: sion? | N6: Built | P6: Cost ($) | Q6: Cost ($) | R6: Cost ($) | S6: Cost | U6: Year | V6: Cost ($) | X6: Life | Z6: Priority | AA6: Age | AC6: Additional Notes | AE6: Department/Owner | AF6: Project # | AG6: Project Cat. | AH6: Project Description | AI6: Asset Type | AJ6: Make/Model | AK6: Asset ID | AL6: Parent ID | AM6: Area | AN6: Sub-Area | AO6: Line/Route | AP6: Start | AQ6: End | AR6: Latitude | AS6: Longitude | AT6: Address | AU6: Agency Cond. Rating | AV6: User Defined 1 | AW6: User Defined 2 | AX6: User Defined 3 | AY6: User Defined 4 | BA6: Year | BB6: Source
B7: =SUM(rows.input B:B) -> 0 | D7: Range copied when records are added
B8: =1-NOT(ISBLANK(D8))*NOT(ISBLANK(F8))*NOT(ISBLANK(H8))*NOT(ISBLANK(J8))*NOT(ISBLANK(N8))*NOT(ISBLANK(U8))*NOT(ISBLANK(M8))*NOT(AND(ISBLANK(P8),ISBLANK(Q8)))*NOT(ISBLANK(Z8)) -> 1 | C8: =OFFSET(C8,-1,0)+1 -> 1 | M8: No | R8: =IF(P8="",Q8,J8*P8) -> 0 | V8: =IFERROR(R8*INDEX(rng.CostIndexMeans,MATCH(rng.ConstantYear,rng.CostIndexYear,0))/INDEX(rng.CostIndexMeans,MATCH(U8,rng.CostIndexYear,0))*(1+S8),"") ->  | Y8: =IFERROR(TEXT(INDEX(rng.ClassEDL,MATCH(H8,rng.ClassChoice,0)),"0")&" Yrs ","") ->  | Z8: Normal | BB8: TERM Data Publisher
B10: =1-NOT(ISBLANK(D10))*NOT(ISBLANK(F10))*NOT(ISBLANK(H10))*NOT(ISBLANK(J10))*NOT(ISBLANK(N10))*NOT(ISBLANK(U10))*NOT(ISBLANK(M10))*NOT(AND(ISBLANK(P10),ISBLANK(Q10)))*NOT(ISBLANK(Z10)) -> 0 | C10: =OFFSET(C10,-1,0)+1 -> 1 | D10: CR - Commuter Rail | F10: Rail Commuter Rail | H10: 21221 - Facilities, Buildings, Maintenance, Rail Commuter Rail | J10: 1 | K10: Each | M10: No | N10: 1966 | P10: 30000000 | R10: =IF(P10="",Q10,J10*P10) -> 30000000 | S10: 0.1 | U10: 2001 | V10: =IFERROR(R10*INDEX(rng.CostIndexMeans,MATCH(rng.ConstantYear,rng.CostIndexYear,0))/INDEX(rng.CostIndexMeans,MATCH(U10,rng.CostIndexYear,0))*(1+S10),"") -> 43187573.96 | X10: 60 | Y10: =IFERROR(TEXT(INDEX(rng.ClassEDL,MATCH(H10,rng.ClassChoice,0)),"0")&" Yrs ","") -> 80 Yrs | Z10: Normal | AF10: MJW-GW-BT-TT-3.5-K | AK10: 30-675-865 | AM10: Systemwide
B11: 0 | C11: 2 | D11: CR - Commuter Rail | F11: Rail Commuter Rail | H11: 21221 - Facilities, Buildings, Maintenance, Rail Commuter Rail | J11: 1 | K11: Each | M11: No | N11: 1966 | P11: 30000000 | R11: 30000000 | S11: 0.1 | U11: 2001 | V11: 43187573.96 | X11: 60 | Y11: 80 Yrs | Z11: Normal | AF11: MJW-GW-BT-TT-3.5-K | AK11: 30-675-865 | AM11: Systemwide
B12: 0 | C12: 3 | D12: CR - Commuter Rail | F12: Rail Commuter Rail | H12: 23311 - Facilities, Equipment, Maintenance, Rail Commuter Rail | J12: 1 | K12: Each | M12: No | N12: 2011 | P12: 6254086.766 | R12: 6254086.766 | S12: 0.1 | U12: 2000 | V12: 9206085.895 | X12: 15 | Y12: 15 Yrs | Z12: Normal | AF12: WVE-ES-OCS0195-FD-JA-2.2-Y | AK12: 06-599-166 | AM12: South
B13: 0 | C13: 4 | D13: CR - Commuter Rail | F13: Rail Commuter Rail | H13: 23311 - Facilities, Equipment, Maintenance, Rail Commuter Rail | J13: 5 | K13: Each | M13: No | N13: 1966 | P13: 1006537.469 | R13: 5032687.344 | S13: 0.1 | U13: 1955 | V13: 39036091.72 | X13: 15 | Y13: 15 Yrs | Z13: Normal | AF13: CRS1-GW-BT-TT-10.1-K | AK13: 27-650-648 | AM13: North
B14: 0 | C14: 5 | D14: CR - Commuter Rail | F14: Grade Crossing Commuter Rail | H14: 10211 - Guideway Elements, Guideway, At Grade-In-Street, Grade Crossing Commuter Rail | J14: 41 | K14: Ea | M14: No | N14: 2023 | P14: 353722.0404 | R14: 14502603.66 | S14: 0 | U14: 2013 | V14: 14892059.57 | X14: 18 | Y14: 20 Yrs | Z14: Normal | AF14: WVE-ES-OCS0195-FD-JA-2.2-Y | AK14: 48-450-217 | AM14: North Line | AN14: North
B15: 0 | C15: 6 | D15: CR - Commuter Rail | F15: Grade Crossing Commuter Rail | H15: 10211 - Guideway Elements, Guideway, At Grade-In-Street, Grade Crossing Commuter Rail | J15: 1750 | K15: LF | M15: No | N15: 2019 | P15: 187.8432 | R15: 328725.6 | S15: 0 | U15: 2013 | V15: 337553.2651 | X15: 18 | Y15: 20 Yrs | Z15: Normal | AF15: WVE-ES-OCS0195-FD-JA-2.2-Y | AK15: 93-280-382 | AM15: South Line | AN15: North
B16: 0 | C16: 7 | D16: CR - Commuter Rail | F16: Grade Crossing Commuter Rail | H16: 10211 - Guideway Elements, Guideway, At Grade-In-Street, Grade Crossing Commuter Rail | J16: 4 | K16: Ea | M16: No | N16: 2019 | P16: 188.5338 | R16: 754.1352 | S16: 0 | U16: 2013 | V16: 774.3869024 | X16: 18 | Y16: 20 Yrs | Z16: Normal | AF16: CRN1-GW-BT-TT-32.7-K | AK16: 90-187-567 | AM16: North Line | AN16: Central
B17: 0 | C17: 8 | D17: CR - Commuter Rail | F17: Grade Crossing Commuter Rail | H17: 10211 - Guideway Elements, Guideway, At Grade-In-Street, Grade Crossing Commuter Rail | J17: 1 | K17: LF | M17: No | N17: 2022 | P17: 493088.5243 | R17: 493088.5243 | S17: 0 | U17: 2013 | V17: 506330.0253 | X17: 18 | Y17: 20 Yrs | Z17: Normal | AF17: CRS2-GW-BT-TT-30.1-K | AK17: 50-638-241 | AM17: North Line
B18: 0 | C18: 9 | D18: CR - Commuter Rail | F18: Grade Crossing Commuter Rail | H18: 10211 - Guideway Elements, Guideway, At Grade-In-Street, Grade Crossing Commuter Rail | J18: 72 | K18: LF | M18: No | N18: 2010 | P18: 187.9967 | R18: 13535.7624 | S18: 0 | U18: 2013 | V18: 13899.25456 | X18: 18 | Y18: 20 Yrs | Z18: Normal | AF18: CRN1-GW-BT-TT-32.7-K | AK18: 02-717-323 | AM18: South Line
B19: 0 | C19: 10 | D19: CR - Commuter Rail | F19: Bridge Commuter Rail | H19: 10331 - Guideway Elements, Guideway, Elevated Structure, Bridge Commuter Rail | J19: 500 | K19: LF | M19: No | N19: 2019 | P19: 34992.4084 | R19: 17496204.2 | S19: 0 | U19: 2013 | V19: 17966050.88 | Y19: 100 Yrs | Z19: Normal | AF19: CRN1-GW-BT-TT-19.1-K | AK19: 15-381-940 | AM19: South Line | AN19: Central
B20: 0 | C20: 11 | D20: CR - Commuter Rail | F20: Bridge Commuter Rail | H20: 10331 - Guideway Elements, Guideway, Elevated Structure, Bridge Commuter Rail | J20: 700 | K20: LF | M20: No | N20: 2019 | P20: 34992.4084 | R20: 24494685.88 | S20: 0 | U20: 2013 | V20: 25152471.23 | Y20: 100 Yrs | Z20: Normal | AF20: CRS2-GW-BT-TT-0.1-K | AK20: 15-381-940 | AM20: North Line | AN20: South
B21: 0 | C21: 12 | D21: CR - Commuter Rail | F21: Bridge Commuter Rail | H21: 10331 - Guideway Elements, Guideway, Elevated Structure, Bridge Commuter Rail | J21: 850 | K21: LF | M21: No | N21: 2019 | P21: 34992.4084 | R21: 29743547.14 | S21: 0 | U21: 2013 | V21: 30542286.5 | Y21: 100 Yrs | Z21: Normal | AF21: WVE-ES-OCS0195-FD-JA-2.2-Y | AK21: 15-381-940 | AM21: South Line | AN21: South
B22: 0 | C22: 13 | D22: CR - Commuter Rail | F22: Fencing | H22: 12100 - Guideway Elements, Special Structures, Fencing | J22: 132165 | K22: LF | M22: No | N22: 2019 | P22: 109.731 | R22: 14502597.61 | S22: 0 | U22: 2013 | V22: 14892053.37 | X22: 25 | Y22: 25 Yrs | Z22: Normal | AF22: CRN2-GW-BT-TT-1.6-K | AK22: 33-329-903 | AM22: North Line | AN22: North
B23: 0 | C23: 14 | D23: CR - Commuter Rail | F23: Retaining Walls | H23: 12200 - Guideway Elements, Special Structures, Retaining Walls | J23: 4799.22 | K23: LF | M23: No | N23: 2019 | P23: 34.2478 | R23: 164362.7267 | S23: 0 | U23: 2013 | V23: 168776.5573 | Y23: 40 Yrs | Z23: Normal | AF23: MJW-GW-BT-TT-6.2-K | AK23: 80-967-750 | AM23: South Line | AN23: North
B24: 0 | C24: 15 | D24: CR - Commuter Rail | F24: Curve | H24: 11202 - Guideway Elements, Trackwork, Ballasted, Curve | J24: 67930.2 | K24: LF | M24: No | N24: 2023 | P24: 469.684 | R24: 31905728.06 | S24: 0 | U24: 2013 | V24: 32762531.07 | X24: 20 | Y24: 36 Yrs | Z24: Normal | AF24: CRN1-GW-BT-CT-2.8-K | AK24: 88-518-568 | AM24: North Line | AN24: Central | AO24: A-00978
B25: 0 | C25: 16 | D25: CR - Commuter Rail | F25: Curve | H25: 11202 - Guideway Elements, Trackwork, Ballasted, Curve | J25: 90490.43 | K25: LF | M25: No | N25: 2019 | P25: 309.849 | R25: 28038369.25 | S25: 0 | U25: 2013 | V25: 28791317.4 | X25: 20 | Y25: 36 Yrs | Z25: Normal | AF25: WVE-ES-OCS0195-FD-JA-2.2-Y | AK25: 74-059-854 | AM25: South Line | AN25: Central | AO25: C-09874
B26: 0 | C26: 17 | D26: CR - Commuter Rail | F26: Curve | H26: 11202 - Guideway Elements, Trackwork, Ballasted, Curve | J26: 128.08 | K26: LF | M26: No | N26: 1911 | P26: 468.0207 | R26: 59944.09126 | S26: 0 | U26: 2013 | V26: 61553.84226 | X26: 20 | Y26: 36 Yrs | Z26: Normal | AF26: CRS1-GW-BT-CT-10.1-K | AK26: 25-681-400 | AM26: North Line | AN26: South | AO26: C-05198
B27: 0 | C27: 18 | D27: CR - Commuter Rail | F27: Curve | H27: 11202 - Guideway Elements, Trackwork, Ballasted, Curve | J27: 1 | K27: Ea | M27: No | N27: 2019 | P27: 45441.4915 | R27: 45441.4915 | S27: 0 | U27: 2013 | V27: 46661.78669 | X27: 20 | Y27: 36 Yrs | Z27: Normal | AF27: CRS2-GW-BT-CT-44.0-K | AK27: 84-389-334 | AM27: South Line | AN27: South | AO27: B-02890
B28: 0 | C28: 19 | D28: CR - Commuter Rail | F28: Platform Curved | H28: 11205 - Guideway Elements, Trackwork, Ballasted, Platform Curved | J28: 1695.45 | K28: LF | M28: No | N28: 2019 | P28: 467.6098 | R28: 792809.0354 | S28: 0 | U28: 2013 | V28: 814099.2929 | Y28: 36 Yrs | Z28: Normal | AF28: CRS1-GW-BT-CT-22.4-K | AK28: 31-801-257 | AM28: North Line | AN28: North | AO28: C-00585
B29: 0 | C29: 20 | D29: CR - Commuter Rail | F29: Platform Tangent | H29: 11204 - Guideway Elements, Trackwork, Ballasted, Platform Tangent | J29: 5395.99 | K29: LF | M29: No | N29: 2019 | P29: 232.9308 | R29: 1256892.267 | S29: 0 | U29: 2013 | V29: 1290645.112 | X29: 10 | Y29: 44 Yrs | Z29: Normal | AF29: WVE-GW-BT-CT-4.6-K | AK29: 09-031-138 | AM29: South Line | AN29: North | AO29: C-08771
B30: 0 | C30: 21 | D30: CR - Commuter Rail | F30: Tangent | H30: 11201 - Guideway Elements, Trackwork, Ballasted, Tangent | J30: 162262.2 | K30: LF | M30: No | N30: 2019 | P30: 190.6722 | R30: 30938890.65 | S30: 0 | U30: 2013 | V30: 31769730.01 | X30: 40 | Y30: 44 Yrs | Z30: Normal | AF30: WVW-GW-BT-CT-3.1-K | AK30: 41-115-876 | AM30: North Line | AN30: Central | AO30: B-01758
B31: 0 | C31: 22 | D31: CR - Commuter Rail | F31: Tangent | H31: 11201 - Guideway Elements, Trackwork, Ballasted, Tangent | J31: 202413.6 | K31: LF | M31: No | N31: 2023 | P31: 119.4139 | R31: 24170997.39 | S31: 0 | U31: 2013 | V31: 24820090.34 | X31: 40 | Y31: 44 Yrs | Z31: Normal | AF31: CRS2-GW-BT-CT-30.4-K | AK31: 02-626-862 | AM31: South Line | AN31: Central | AO31: B-00170
B32: 0 | C32: 23 | D32: CR - Commuter Rail | F32: Tangent | H32: 11201 - Guideway Elements, Trackwork, Ballasted, Tangent | J32: 6 | K32: Ea | M32: No | N32: 2019 | P32: 49953.4126 | R32: 299720.4756 | S32: 0 | U32: 2013 | V32: 307769.2311 | X32: 40 | Y32: 44 Yrs | Z32: Normal | AF32: WVE-ES-OCS0195-FD-JA-2.2-Y | AK32: 79-670-024 | AM32: North Line | AN32: South | AO32: B-03928
B33: 0 | C33: 24 | D33: CR - Commuter Rail | F33: At-Grade Crossings | H33: 11303 - Guideway Elements, Trackwork, Embedded, At-Grade Crossings | J33: 2343.39 | K33: LF | M33: No | N33: 2019 | P33: 292.9331 | R33: 686456.4972 | S33: 0 | U33: 2013 | V33: 704890.7417 | X33: 20 | Y33: 12 Yrs | Z33: Normal | AF33: WVE-ES-OCS0195-FD-JA-2.2-Y | AK33: 64-948-292 | AM33: South Line | AN33: South | AO33: C-01411
B34: 0 | C34: 25 | D34: CR - Commuter Rail | F34: Special | H34: 11400 - Guideway Elements, Trackwork, Special | J34: 2903 | K34: LF | M34: No | N34: 2019 | P34: 466.2681 | R34: 1353576.294 | S34: 0 | U34: 2013 | V34: 1389925.512 | X34: 20 | Y34: 29 Yrs | Z34: Normal | AF34: CRS1-GW-BT-CT-29.6-K | AK34: 66-297-441 | AM34: North Line | AN34: North | AO34: A-00216
B35: 0 | C35: 26 | D35: CR - Commuter Rail | F35: Special | H35: 11400 - Guideway Elements, Trackwork, Special | J35: 34 | K35: Ea | M35: No | N35: 2019 | P35: 12796.415 | R35: 435078.11 | S35: 0 | U35: 2013 | V35: 446761.7874 | X35: 20 | Y35: 29 Yrs | Z35: Normal | AF35: CRN1-GW-BT-CT-35.7-K | AK35: 45-849-739 | AM35: South Line | AN35: North | AO35: B-04731
B36: 0 | C36: 27 | D36: CR - Commuter Rail | F36: Special | H36: 11400 - Guideway Elements, Trackwork, Special | J36: 1 | K36: Ea | M36: No | N36: 1911 | P36: 116.0208 | R36: 116.0208 | S36: 0 | U36: 2013 | V36: 119.1364465 | X36: 20 | Y36: 29 Yrs | Z36: Normal | AF36: WVE-ES-OCS0195-FD-JA-2.2-Y | AK36: 26-134-619 | AM36: North Line | AN36: Central | AO36: B-00386
B37: 0 | C37: 28 | D37: CR - Commuter Rail | F37: Ballasted Diamond Crossover | H37: 11403 - Guideway Elements, Trackwork, Special, Ballasted Diamond Crossover | J37: 1 | K37: Ea | M37: No | N37: 2019 | P37: 25137.8463 | R37: 25137.8463 | S37: 0 | U37: 2013 | V37: 25812.90321 | X37: 32 | Y37: 29 Yrs | Z37: Normal | AF37: WVE-ES-OCS0195-FD-JA-2.2-Y | AK37: 31-740-789 | AM37: North Line | AN37: North | AO37: B-06009
B38: 0 | C38: 29 | D38: CR - Commuter Rail | F38: Ballasted Single Crossover | H38: 11406 - Guideway Elements, Trackwork, Special, Ballasted Single Crossover | J38: 1 | K38: Ea | M38: No | N38: 2019 | P38: 87015.6219 | R38: 87015.6219 | S38: 0 | U38: 2013 | V38: 89352.35738 | X38: 32 | Y38: 29 Yrs | Z38: Normal | AF38: WVE-ES-OCS0195-FD-JA-2.2-Y | AK38: 03-382-032 | AM38: South Line | AN38: North | AO38: B-00954
B39: 0 | C39: 30 | D39: CR - Commuter Rail | F39: Diamond Crossover | H39: 11401 - Guideway Elements, Trackwork, Special, Diamond Crossover | J39: 1 | K39: Ea | M39: No | N39: 2019 | P39: 37706.7695 | R39: 37706.7695 | S39: 0 | U39: 2013 | V39: 38719.35487 | X39: 32 | Y39: 29 Yrs | Z39: Normal | AF39: APW-GW-ET-TT-1.1-K | AK39: 02-058-951 | AM39: North Line | AN39: Central | AO39: B-02396
B40: 0 | C40: 31 | D40: CR - Commuter Rail | F40: Single Crossover | H40: 11404 - Guideway Elements, Trackwork, Special, Single Crossover | J40: 3 | K40: EA | M40: No | N40: 2023 | P40: 87015.6219 | R40: 261046.8657 | S40: 0 | U40: 2013 | V40: 268057.0721 | X40: 32 | Y40: 29 Yrs | Z40: Normal | AF40: APE-GW-ET-TT-1.5-K | AK40: 75-048-891 | AM40: South Line | AN40: Central | AO40: A-02887
B41: 0 | C41: 32 | D41: CR - Commuter Rail | F41: Single Crossover | H41: 11404 - Guideway Elements, Trackwork, Special, Single Crossover | J41: 2 | K41: Ea | M41: No | N41: 2019 | P41: 24654.4262 | R41: 49308.8524 | S41: 0 | U41: 2013 | V41: 50633.0025 | X41: 32 | Y41: 29 Yrs | Z41: Normal | AF41: UNW-GW-ET-TT-2.6-K | AK41: 67-592-461 | AM41: North Line | AN41: South | AO41: B-00386
B42: 0 | C42: 33 | D42: CR - Commuter Rail | F42: Turnout | H42: 11407 - Guideway Elements, Trackwork, Special, Turnout | J42: 65 | K42: Ea | M42: No | N42: 2023 | P42: 35698.7167 | R42: 2320416.586 | S42: 0 | U42: 2013 | V42: 2382729.532 | X42: 42 | Y42: 30 Yrs | Z42: Normal | AF42: UNE-GW-ET-TT-2.6-K | AK42: 92-490-806 | AM42: South Line | AN42: South | AO42: B-02194
B43: 0 | C43: 34 | D43: CR - Commuter Rail | F43: Turnout | H43: 11407 - Guideway Elements, Trackwork, Special, Turnout | J43: 1 | K43: Ea | M43: No | N43: 2019 | P43: 25137.8463 | R43: 25137.8463 | S43: 0 | U43: 2013 | V43: 25812.90321 | X43: 32 | Y43: 30 Yrs | Z43: Normal | AF43: APW-GW-BT-TT-5.4-K | AK43: 20-606-741 | AM43: North Line | AN43: North | AO43: B-05446
B44: 0 | C44: 35 | D44: CR - Commuter Rail | F44: Park & Ride | H44: 41603 - Stations, Access, Parking, Park & Ride | J44: 1853500 | K44: Each | M44: No | N44: 2019 | P44: 23.2365 | R44: 43068852.75 | S44: 0.1 | U44: 2008 | V44: 52383367.48 | Y44: 40 Yrs | Z44: Normal | AF44: WVE-ES-OCS0195-FD-JA-2.2-Y | AK44: 07-593-302 | AM44: South Line
B45: 0 | C45: 36 | D45: CR - Commuter Rail | F45: Park & Ride | H45: 41603 - Stations, Access, Parking, Park & Ride | J45: 1853500 | K45: Each | M45: No | N45: 2019 | P45: 23.2365 | R45: 43068852.75 | S45: 0.1 | U45: 2008 | V45: 52383367.48 | Y45: 40 Yrs | Z45: Normal | AF45: UNW-GW-ET-TT-2.4-K | AK45: 07-593-302 | AM45: North Line
B46: 0 | C46: 37 | D46: CR - Commuter Rail | F46: Roadway Access | H46: 41650 - Stations, Access, Roadway Access | J46: 1 | K46: Each | M46: No | N46: 2019 | P46: 1113850.461 | R46: 1113850.461 | S46: 0.1 | U46: 2008 | V46: 1354743.26 | Y46: 20 Yrs | Z46: Normal | AF46: UNW-GW-ET-CT-0.9-K | AK46: 37-163-158 | AM46: South Line
B47: 0 | C47: 38 | D47: CR - Commuter Rail | F47: Commuter Rail | H47: 41001 - Stations, Complete Station, Commuter Rail | J47: 7 | K47: Each | M47: No | N47: 2019 | P47: 2598984.408 | R47: 18192890.86 | S47: 0.1 | U47: 2008 | V47: 22127473.25 | X47: 60 | Y47: 50 Yrs | Z47: Normal | AF47: APW-GW-ET-CT-1.2-K | AK47: 90-661-470 | AM47: North Line | AN47: North
B48: 0 | C48: 39 | D48: CR - Commuter Rail | F48: Commuter Rail | H48: 41001 - Stations, Complete Station, Commuter Rail | J48: 7 | K48: Each | M48: No | N48: 2019 | P48: 2598984.408 | R48: 18192890.86 | S48: 0.1 | U48: 2008 | V48: 22127473.25 | X48: 60 | Y48: 50 Yrs | Z48: Normal | AF48: WVE-ES-OCS0195-FD-JA-2.2-Y | AK48: 90-661-470 | AM48: South Line | AN48: North
B49: 0 | C49: 40 | D49: CR - Commuter Rail | F49: Commuter Rail | H49: 41001 - Stations, Complete Station, Commuter Rail | J49: 4 | K49: Each | M49: No | N49: 2019 | P49: 2598984.408 | R49: 10395937.63 | S49: 0.1 | U49: 2008 | V49: 12644270.43 | X49: 60 | Y49: 50 Yrs | Z49: Normal | AF49: WVE-ES-OCS0195-FD-JA-2.2-Y | AK49: 90-661-470 | AM49: North Line | AN49: Central
B50: 0 | C50: 41 | D50: CR - Commuter Rail | F50: Commuter Rail | H50: 41001 - Stations, Complete Station, Commuter Rail | J50: 4 | K50: Each | M50: No | N50: 2019 | P50: 2598984.408 | R50: 10395937.63 | S50: 0.1 | U50: 2008 | V50: 12644270.43 | X50: 60 | Y50: 50 Yrs | Z50: Normal | AF50: APW-GW-BT-CT-3.5-K | AK50: 90-661-470 | AM50: South Line | AN50: Central
B51: 0 | C51: 42 | D51: CR - Commuter Rail | F51: Commuter Rail | H51: 41001 - Stations, Complete Station, Commuter Rail | J51: 9 | K51: Each | M51: No | N51: 2019 | P51: 2598984.408 | R51: 23390859.67 | S51: 0.1 | U51: 2008 | V51: 28449608.47 | X51: 60 | Y51: 50 Yrs | Z51: Normal | AF51: WVE-ES-OCS0195-FD-JA-2.2-Y | AK51: 90-661-470 | AM51: North Line | AN51: South
B52: 0 | C52: 43 | D52: CR - Commuter Rail | F52: Commuter Rail | H52: 41001 - Stations, Complete Station, Commuter Rail | J52: 9 | K52: Each | M52: No | N52: 2019 | P52: 2598984.408 | R52: 23390859.67 | S52: 0.1 | U52: 2008 | V52: 28449608.47 | X52: 60 | Y52: 50 Yrs | Z52: Normal | AF52: CRS1-GW-BT-GCP-0.7-K | AK52: 90-661-470 | AM52: South Line | AN52: South
B53: 0 | C53: 44 | D53: CR - Commuter Rail | F53: Fare Control System Commuter Rail | H53: 35121 - Systems, Revenue Collection, In-Station, Fare Control System Commuter Rail | J53: 37 | K53: Each | M53: No | N53: 2020 | P53: 3943.9626 | R53: 145926.6162 | S53: 0.1 | U53: 2009 | V53: 176397.9182 | Y53: 20 Yrs | Z53: Normal | AF53: WVW-GW-BT-GCP-1.6-K | AK53: 03-322-124 | AM53: Red Line | AN53: West
B54: 0 | C54: 45 | D54: CR - Commuter Rail | F54: System Commuter Rail | H54: 35111 - Systems, Revenue Collection, In-Station, System Commuter Rail | J54: 17 | K54: Each | M54: No | N54: 2019 | P54: 56784.5333 | R54: 965337.0661 | S54: 0.1 | U54: 2008 | V54: 1174110.826 | Y54: 15 Yrs | Z54: Normal | AF54: MJW-GW-BT-GCP-8.0-K | AK54: 63-550-806 | AM54: Yellow Line | AN54: Central
B55: 0 | C55: 46 | D55: CR - Commuter Rail | F55: Commuter Rail | H55: 31001 - Systems, Train Control, Commuter Rail | J55: 83 | K55: Ea | M55: No | N55: 2023 | P55: 198027.5198 | R55: 16436284.14 | S55: 0 | U55: 2013 | V55: 16877667.51 | Y55: 40 Yrs | Z55: Normal | AF55: WVW-GW-BT-ST-HSR-1.2-K | AK55: 45-414-365 | AM55: North Line | AN55: North
B56: 0 | C56: 47 | D56: CR - Commuter Rail | F56: Commuter Rail | H56: 31001 - Systems, Train Control, Commuter Rail | J56: 20 | K56: Ea | M56: No | N56: 2019 | P56: 117110.2267 | R56: 2342204.534 | S56: 0 | U56: 2013 | V56: 2405102.578 | Y56: 40 Yrs | Z56: Normal | AF56: UNE-GW-ET-CT-PCR-0.0-K | AK56: 32-653-690 | AM56: South Line | AN56: North
B57: 0 | C57: 48 | D57: CR - Commuter Rail | F57: Commuter Rail | H57: 31001 - Systems, Train Control, Commuter Rail | J57: 22 | K57: Ea | M57: No | N57: 2019 | P57: 117110.2267 | R57: 2576424.987 | S57: 0 | U57: 2013 | V57: 2645612.836 | Y57: 40 Yrs | Z57: Normal | AF57: MJE-GW-BT-ST-SM1A-3.5-K | AK57: 32-653-690 | AM57: North Line | AN57: Central
B58: 0 | C58: 49 | D58: CR - Commuter Rail | F58: Commuter Rail | H58: 31001 - Systems, Train Control, Commuter Rail | J58: 18 | K58: Ea | M58: No | N58: 2019 | P58: 117110.2267 | R58: 2107984.081 | S58: 0 | U58: 2013 | V58: 2164592.32 | Y58: 40 Yrs | Z58: Normal | AF58: NSE-GW-ET-ST-SM9402A-5.6-C | AK58: 32-653-690 | AM58: South Line | AN58: Central
B59: 0 | C59: 50 | D59: CR - Commuter Rail | F59: Commuter Rail | H59: 31001 - Systems, Train Control, Commuter Rail | J59: 21 | K59: Ea | M59: No | N59: 2019 | P59: 117110.2267 | R59: 2459314.761 | S59: 0 | U59: 2013 | V59: 2525357.707 | Y59: 40 Yrs | Z59: Normal | AF59: MJE-GW-BT-ST-GR-2.4-K | AK59: 32-653-690 | AM59: North Line | AN59: South
B60: 0 | C60: 51 | D60: CR - Commuter Rail | F60: Commuter Rail | H60: 31001 - Systems, Train Control, Commuter Rail | J60: 20 | K60: Ea | M60: No | N60: 2019 | P60: 117110.2267 | R60: 2342204.534 | S60: 0 | U60: 2013 | V60: 2405102.578 | Y60: 40 Yrs | Z60: Normal | AF60: APE-GW-ET-ST-HSR-2.4-K | AK60: 32-653-690 | AM60: South Line | AN60: South
B61: 0 | C61: 52 | D61: CR - Commuter Rail | F61: Interlockings | H61: 31500 - Systems, Train Control, Interlockings | J61: 120 | K61: Ea | M61: No | N61: 2019 | P61: 362565.0914 | R61: 43507810.97 | S61: 0 | U61: 2013 | V61: 44676178.71 | Y61: 40 Yrs | Z61: Normal | AF61: MJW-GW-BT-GT-1.2-K | AK61: 83-084-975 | AM61: North Line | AN61: North
B62: 0 | C62: 53 | D62: CR - Commuter Rail | F62: Interlockings | H62: 31500 - Systems, Train Control, Interlockings | J62: 88 | K62: Ea | M62: No | N62: 2023 | P62: 362565.0914 | R62: 31905728.04 | S62: 0 | U62: 2013 | V62: 32762531.05 | Y62: 40 Yrs | Z62: Normal | AF62: WVE-GW-BT-ST-HSR-2.4-K | AK62: 11-417-976 | AM62: South Line | AN62: North
B63: 0 | C63: 54 | D63: CR - Commuter Rail | F63: Commuter Rail | H63: 31401 - Systems, Train Control, Roadway Crossings, Commuter Rail | J63: 183 | K63: Ea | M63: No | N63: 2023 | P63: 153215.1206 | R63: 28038367.07 | S63: 0 | U63: 2013 | V63: 28791315.17 | X63: 40 | Y63: 40 Yrs | Z63: Normal | AF63: WVE-GW-ET-ST-HSR-3.6-K | AK63: 35-484-401 | AM63: North Line | AN63: North
B64: 0 | C64: 55 | D64: CR - Commuter Rail | F64: Commuter Rail | H64: 31401 - Systems, Train Control, Roadway Crossings, Commuter Rail | J64: 131 | K64: Ea | M64: No | N64: 2019 | P64: 103326.4383 | R64: 13535763.42 | S64: 0 | U64: 2013 | V64: 13899255.6 | X64: 40 | Y64: 40 Yrs | Z64: Normal | AF64: WV-GW-BT-ST-SXO-1.2-K | AK64: 72-014-031 | AM64: South Line | AN64: North
B65: 0 | C65: 56 | D65: CR - Commuter Rail | F65: Drainage | H65: 36200 - Systems, Utilities, Drainage | J65: 761 | K65: Ea | M65: No | N65: 2019 | P65: 43196.5418 | R65: 32872568.31 | S65: 0 | U65: 2013 | V65: 33755335.05 | X65: 45 | Y65: 40 Yrs | Z65: Normal | AF65: CRS2-GW-BT-ST-TO-14.2-K | AK65: 08-967-864 | AM65: North Line | AN65: North
B66: 0 | C66: 57 | D66: CR - Commuter Rail | F66: Drainage | H66: 36200 - Systems, Utilities, Drainage | J66: 56573.65 | K66: LF | M66: No | N66: 2019 | P66: 70.0688 | R66: 3964047.767 | S66: 0 | U66: 2013 | V66: 4070499.124 | X66: 45 | Y66: 40 Yrs | Z66: Normal | AF66: MJE-GW-BT-ST-TO-8.1-K | AK66: 53-155-713 | AM66: South Line | AN66: North
B67: 0 | C67: 58 | D67: CR - Commuter Rail | F67: Passenger Car | H67: 51302 - Vehicles, Revenue Vehicles, Commuter Rail, Passenger Car | J67: 21 | K67: EA | M67: No | N67: 2019 | P67: 2369142.25 | R67: 49751987.24 | S67: 0.1 | U67: 2008 | V67: 60511865.63 | X67: 40 | Y67: 40 Yrs | Z67: Normal | AF67: CRS2-GW-BT-ST-SM-T146-38.4-K | AK67: 65-430-221 | AM67: North Line
B68: 0 | C68: 59 | D68: CR - Commuter Rail | F68: Passenger Car | H68: 51302 - Vehicles, Revenue Vehicles, Commuter Rail, Passenger Car | J68: 15 | K68: EA | M68: No | N68: 2019 | P68: 2178196.456 | R68: 32672946.85 | S68: 0.1 | U68: 2008 | V68: 39739135.64 | X68: 40 | Y68: 40 Yrs | Z68: Normal | AF68: CRS1-GW-BT-ST-SM-T330-2.8-K | AK68: 39-890-800 | AM68: South Line
B69: 0 | C69: 60 | D69: CR - Commuter Rail | F69: Passenger Car | H69: 51302 - Vehicles, Revenue Vehicles, Commuter Rail, Passenger Car | J69: 25 | K69: EA | M69: No | N69: 2021 | P69: 282797.906 | R69: 7069947.65 | S69: 0.1 | U69: 2010 | V69: 8443646.555 | X69: 40 | Y69: 40 Yrs | Z69: Normal | AF69: WVE-ES-OCS0195-FD-JA-2.2-Y | AK69: 19-165-379 | AM69: North Line
B70: 0 | C70: 61 | D70: CR - Commuter Rail | F70: Passenger Car | H70: 51302 - Vehicles, Revenue Vehicles, Commuter Rail, Passenger Car | J70: 1 | K70: EA | M70: No | N70: 2023 | P70: 2634380.16 | R70: 2634380.16 | S70: 0.1 | U70: 2012 | V70: 3026281.844 | X70: 40 | Y70: 40 Yrs | Z70: Normal | AF70: CRS2-GW-BT-ST-TO-43.1-K | AK70: 45-997-334 | AM70: South Line
B71: 0 | C71: 62 | D71: CR - Commuter Rail | F71: Passenger Car | H71: 51302 - Vehicles, Revenue Vehicles, Commuter Rail, Passenger Car | J71: 1 | K71: EA | M71: No | N71: 2023 | P71: 2209480.134 | R71: 2209480.134 | S71: 0.1 | U71: 2012 | V71: 2538171.869 | X71: 40 | Y71: 40 Yrs | Z71: Normal | AF71: CRS2-GW-BT-ST-TO-27.5-K | AK71: 17-859-419 | AM71: North Line
B72: 0 | C72: 63 | D72: CR - Commuter Rail | F72: Revenue Locomotive | H72: 51301 - Vehicles, Revenue Vehicles, Commuter Rail, Revenue Locomotive | J72: 17 | K72: EA | M72: No | N72: 2019 | P72: 2620824.613 | R72: 44554018.43 | S72: 0.1 | U72: 2008 | V72: 54189730.41 | X72: 40 | Y72: 40 Yrs | Z72: Normal | AF72: CRN1-GW-FE-26.7-K | AK72: 67-922-640 | AM72: South Line
B73: 0 | C73: 64 | D73: CR - Commuter Rail | F73: Revenue Locomotive | H73: 51301 - Vehicles, Revenue Vehicles, Commuter Rail, Revenue Locomotive | J73: 1 | K73: EA | M73: No | N73: 2023 | P73: 2804340.17 | R73: 2804340.17 | S73: 0.1 | U73: 2012 | V73: 3221525.834 | X73: 40 | Y73: 40 Yrs | Z73: Normal | AF73: CRN1-GW-FE-11.9-K | AK73: 05-286-700 | AM73: South Line
B74: =1-NOT(ISBLANK(D74))*NOT(ISBLANK(F74))*NOT(ISBLANK(H74))*NOT(ISBLANK(J74))*NOT(ISBLANK(N74))*NOT(ISBLANK(U74))*NOT(ISBLANK(M74))*NOT(AND(ISBLANK(P74),ISBLANK(Q74)))*NOT(ISBLANK(Z74)) -> 0 | C74: =OFFSET(C74,-1,0)+1 -> 65 | D74: DR - Demand Response | F74: Bus (<30 ft) | H74: 51906 - Vehicles, Revenue Vehicles, Bus, Bus (<30 ft) | J74: 1 | K74: Each | M74: No | N74: 2009 | P74: 89108.0369 | R74: =IF(P74="",Q74,J74*P74) -> 89108.0369 | S74: 0.1 | U74: 2008 | V74: =IFERROR(R74*INDEX(rng.CostIndexMeans,MATCH(rng.ConstantYear,rng.CostIndexYear,0))/INDEX(rng.CostIndexMeans,MATCH(U74,rng.CostIndexYear,0))*(1+S74),"") -> 108379.4609 | X74: 6 | Y74: =IFERROR(TEXT(INDEX(rng.ClassEDL,MATCH(H74,rng.ClassChoice,0)),"0")&" Yrs ","") -> 9 Yrs | Z74: Normal | AF74: WVE-ES-OCS0195-FD-JA-2.2-Y | AK74: 61-265-967 | AM74: West | AN74: Brothford
B75: 0 | C75: 66 | D75: DR - Demand Response | F75: Automobile | H75: 52301 - Vehicles, Revenue Vehicles, Vans, Cutaways and Autos, Automobile | J75: 56 | K75: Each | M75: No | N75: 2018 | P75: 90882.5473 | R75: 5089422.649 | S75: 0.1 | U75: 2004 | V75: 6889619.99 | X75: 5 | Y75: 6 Yrs | Z75: Normal | AK75: 29-246-349 | AM75: South | AN75: Archer's Line
B76: 0 | C76: 67 | D76: DR - Demand Response | F76: Medium-Duty Van | H76: 52523 - Vehicles, Revenue Vehicles, Vans, Cutaways and Autos, Medium-Duty Van | J76: 46 | K76: Each | M76: No | N76: 2019 | P76: 89799.042 | R76: 4130755.932 | S76: 0.1 | U76: 2010 | V76: 4933366.529 | X76: 5 | Y76: 9 Yrs | Z76: Normal | AK76: 65-210-221 | AM76: North | AN76: Wingston
B77: 0 | C77: 68 | D77: DR - Demand Response | F77: Medium-Duty Van | H77: 52523 - Vehicles, Revenue Vehicles, Vans, Cutaways and Autos, Medium-Duty Van | J77: 32 | K77: Each | M77: No | N77: 2018 | P77: 89367.3158 | R77: 2859754.106 | S77: 0.1 | U77: 2010 | V77: 3415407.595 | X77: 5 | Y77: 9 Yrs | Z77: Normal | AK77: 36-064-427 | AM77: North | AN77: Wingston
B78: 0 | C78: 69 | D78: DR - Demand Response | F78: Medium-Duty Van | H78: 52523 - Vehicles, Revenue Vehicles, Vans, Cutaways and Autos, Medium-Duty Van | J78: 30 | K78: Each | M78: No | N78: 2020 | P78: 90029.2959 | R78: 2700878.877 | S78: 0.1 | U78: 2010 | V78: 3225662.728 | X78: 5 | Y78: 9 Yrs | Z78: Normal | AK78: 79-012-477 | AM78: North | AN78: Wingston
B79: 0 | C79: 70 | D79: DR - Demand Response | F79: Medium-Duty Van | H79: 52523 - Vehicles, Revenue Vehicles, Vans, Cutaways and Autos, Medium-Duty Van | J79: 21 | K79: Each | M79: No | N79: 2014 | P79: 90785.8446 | R79: 1906502.737 | S79: 0.1 | U79: 2010 | V79: 2276938.396 | X79: 5 | Y79: 9 Yrs | Z79: Normal | AK79: 94-182-822 | AM79: West | AN79: Brothford
B80: 0 | C80: 71 | D80: DR - Demand Response | F80: Medium-Duty Van | H80: 52523 - Vehicles, Revenue Vehicles, Vans, Cutaways and Autos, Medium-Duty Van | J80: 20 | K80: Each | M80: No | N80: 2013 | P80: 87381.3755 | R80: 1747627.51 | S80: 0.1 | U80: 2010 | V80: 2087193.532 | X80: 5 | Y80: 9 Yrs | Z80: Normal | AK80: 87-877-488 | AM80: West | AN80: Brothford
B81: 0 | C81: 72 | D81: DR - Demand Response | F81: Medium-Duty Van | H81: 52523 - Vehicles, Revenue Vehicles, Vans, Cutaways and Autos, Medium-Duty Van | J81: 13 | K81: Each | M81: No | N81: 2015 | P81: 91658.7854 | R81: 1191564.21 | S81: 0.1 | U81: 2010 | V81: 1423086.498 | X81: 5 | Y81: 9 Yrs | Z81: Normal | AK81: 05-445-358 | AM81: North | AN81: Wingston
B82: 0 | C82: 73 | D82: DR - Demand Response | F82: Medium-Duty Van | H82: 52523 - Vehicles, Revenue Vehicles, Vans, Cutaways and Autos, Medium-Duty Van | J82: 4 | K82: Each | M82: No | N82: 2016 | P82: 89367.3158 | R82: 357469.2632 | S82: 0.1 | U82: 2010 | V82: 426925.9494 | X82: 5 | Y82: 9 Yrs | Z82: Normal | AK82: 00-089-686 | AM82: North | AN82: Wingston
B83: 0 | C83: 74 | D83: DR - Demand Response | F83: Medium-Duty Van | H83: 52523 - Vehicles, Revenue Vehicles, Vans, Cutaways and Autos, Medium-Duty Van | J83: 2 | K83: Each | M83: No | N83: 2011 | P83: 87381.3755 | R83: 174762.751 | S83: 0.1 | U83: 2010 | V83: 208719.3532 | X83: 5 | Y83: 9 Yrs | Z83: Normal | AK83: 82-272-336 | AM83: West | AN83: Brothford
B84: 0 | C84: 75 | D84: DR - Demand Response | F84: Medium-Duty Van | H84: 52523 - Vehicles, Revenue Vehicles, Vans, Cutaways and Autos, Medium-Duty Van | J84: 1 | K84: Each | M84: No | N84: 2006 | P84: 95325.1369 | R84: 95325.1369 | S84: 0.1 | U84: 2010 | V84: 113846.9199 | X84: 5 | Y84: 9 Yrs | Z84: Normal | AK84: 41-096-100 | AM84: South | AN84: Archer's Line
B85: 0 | C85: 76 | D85: DR - Demand Response | F85: Medium-Duty Van | H85: 52523 - Vehicles, Revenue Vehicles, Vans, Cutaways and Autos, Medium-Duty Van | J85: 1 | K85: Each | M85: No | N85: 2008 | P85: 95325.1369 | R85: 95325.1369 | S85: 0.1 | U85: 2010 | V85: 113846.9199 | X85: 5 | Y85: 9 Yrs | Z85: Normal | AK85: 90-831-652 | AM85: South | AN85: Archer's Line
B86: 0 | C86: 77 | D86: LR - Light Rail | F86: Rail Light Rail | H86: 21223 - Facilities, Buildings, Maintenance, Rail Light Rail | J86: 2 | K86: Each | M86: No | N86: 2009 | P86: 10247980.61 | R86: 20495961.22 | S86: 0.1 | U86: 1998 | V86: 31290284.49 | X86: 60 | Y86: 80 Yrs | Z86: Normal | AK86: 16-966-628 | AM86: Red Line
B87: 0 | C87: 78 | D87: LR - Light Rail | F87: Rail Light Rail | H87: 21223 - Facilities, Buildings, Maintenance, Rail Light Rail | J87: 1 | K87: Each | M87: No | N87: 2014 | P87: 5703663.313 | R87: 5703663.313 | S87: 0.1 | U87: 2003 | V87: 7928777.873 | X87: 60 | Y87: 80 Yrs | Z87: Normal | AK87: 54-639-086 | AM87: Yellow Line
B88: 0 | C88: 79 | D88: LR - Light Rail | F88: Rail Light Rail | H88: 21223 - Facilities, Buildings, Maintenance, Rail Light Rail | J88: 1 | K88: Each | M88: No | N88: 2018 | P88: 1076915.451 | R88: 1076915.451 | S88: 0.1 | U88: 2007 | V88: 1335061.372 | X88: 60 | Y88: 80 Yrs | Z88: Normal | AK88: 64-714-723 | AM88: Blue Line
B89: 0 | C89: 80 | D89: LR - Light Rail | F89: Rail Light Rail | H89: 23313 - Facilities, Equipment, Maintenance, Rail Light Rail | J89: 3 | K89: Each | M89: No | N89: 2009 | P89: 1083119.902 | R89: 3249359.706 | S89: 0.1 | U89: 1998 | V89: 4960654.859 | X89: 15 | Y89: 15 Yrs | Z89: Normal | AK89: 08-350-032 | AM89: Systemwide
B90: 0 | C90: 81 | D90: LR - Light Rail | F90: Grade Crossing | H90: 10210 - Guideway Elements, Guideway, At Grade-In-Street, Grade Crossing | J90: 27 | K90: LF | M90: No | N90: 2010 | P90: 501324.5708 | R90: 13535763.41 | S90: 0 | U90: 2013 | V90: 13899255.6 | X90: 18 | Y90: 20 Yrs | Z90: Normal | AK90: 30-891-649 | AM90: Yellow Line | AN90: South
B91: 0 | C91: 82 | D91: LR - Light Rail | F91: Bridge | H91: 10330 - Guideway Elements, Guideway, Elevated Structure, Bridge | J91: 905.2 | K91: LF | M91: No | N91: 2010 | P91: 39519.5416 | R91: 35773089.06 | S91: 0 | U91: 2013 | V91: 36733746.98 | Y91: 100 Yrs | Z91: Normal | AK91: 41-691-130 | AM91: Blue Line | AN91: West
B92: 0 | C92: 83 | D92: LR - Light Rail | F92: Bridge | H92: 10330 - Guideway Elements, Guideway, Elevated Structure, Bridge | J92: 3 | K92: Ea | M92: No | N92: 2010 | P92: 248155.6625 | R92: 744466.9875 | S92: 0 | U92: 2013 | V92: 764459.0577 | Y92: 100 Yrs | Z92: Normal | AK92: 08-405-591 | AM92: Blue Line | AN92: East
B93: 0 | C93: 84 | D93: LR - Light Rail | F93: Bridge Light Rail | H93: 10333 - Guideway Elements, Guideway, Elevated Structure, Bridge Light Rail | J93: 600 | K93: LF | M93: No | N93: 2022 | P93: 39928.8737 | R93: 23957324.22 | S93: 0 | U93: 2013 | V93: 24600679.15 | Y93: 100 Yrs | Z93: Normal | AK93: 68-152-469 | AM93: Blue Line | AN93: West
B94: 0 | C94: 85 | D94: LR - Light Rail | F94: Bridge Light Rail | H94: 10333 - Guideway Elements, Guideway, Elevated Structure, Bridge Light Rail | J94: 900 | K94: LF | M94: No | N94: 2022 | P94: 39928.8737 | R94: 35935986.33 | S94: 0 | U94: 2013 | V94: 36901018.73 | Y94: 100 Yrs | Z94: Normal | AK94: 68-152-469 | AM94: Yellow Line | AN94: Central
B95: 0 | C95: 86 | D95: LR - Light Rail | F95: Bridge Light Rail | H95: 10333 - Guideway Elements, Guideway, Elevated Structure, Bridge Light Rail | J95: 796.75 | K95: LF | M95: No | N95: 2024 | P95: 12013.4527 | R95: 9571718.439 | S95: 0 | U95: 2013 | V95: 9828759.342 | Y95: 100 Yrs | Z95: Normal | AK95: 64-109-027 | AM95: Red Line | AN95: North
B96: 0 | C96: 87 | D96: LR - Light Rail | F96: Fencing | H96: 12100 - Guideway Elements, Special Structures, Fencing | J96: 34657.92 | K96: LF | M96: No | N96: 2010 | P96: 30.6863 | R96: 1063523.33 | S96: 0 | U96: 2013 | V96: 1092083.406 | X96: 25 | Y96: 25 Yrs | Z96: Normal | AK96: 75-730-958 | AM96: Red Line | AN96: West
B97: 0 | C97: 88 | D97: LR - Light Rail | F97: Fencing | H97: 12100 - Guideway Elements, Special Structures, Fencing | J97: 6 | K97: Ea | M97: No | N97: 2010 | P97: 27393.8069 | R97: 164362.8414 | S97: 0 | U97: 2013 | V97: 168776.6751 | X97: 25 | Y97: 25 Yrs | Z97: Normal | AK97: 04-665-628 | AM97: Yellow Line | AN97: East
B98: 0 | C98: 89 | D98: LR - Light Rail | F98: Fencing | H98: 12100 - Guideway Elements, Special Structures, Fencing | J98: 2 | K98: Ea | M98: No | N98: 2019 | P98: 7734.7219 | R98: 15469.4438 | S98: 0 | U98: 2013 | V98: 15884.86344 | X98: 25 | Y98: 25 Yrs | Z98: Normal | AK98: 02-357-851 | AM98: Red Line | AN98: Central
B99: 0 | C99: 90 | D99: LR - Light Rail | F99: Retaining Walls | H99: 12200 - Guideway Elements, Special Structures, Retaining Walls | J99: 1454.9 | K99: LF | M99: No | N99: 2016 | P99: 644.6045 | R99: 937835.0871 | S99: 0 | U99: 2013 | V99: 963019.9041 | Y99: 40 Yrs | Z99: Normal | AK99: 05-151-446 | AM99: Blue Line | AN99: East
B100: 0 | C100: 91 | D100: LR - Light Rail | F100: Retaining Walls | H100: 12200 - Guideway Elements, Special Structures, Retaining Walls | J100: 1778 | K100: LF | M100: No | N100: 2010 | P100: 42.4148 | R100: 75413.5144 | S100: 0 | U100: 2013 | V100: 77438.68449 | Y100: 40 Yrs | Z100: Normal | AK100: 21-009-085 | AM100: Red Line | AN100: North
B101: 0 | C101: 92 | D101: LR - Light Rail | F101: Curve | H101: 11202 - Guideway Elements, Trackwork, Ballasted, Curve | J101: 52179.84 | K101: LF | M101: No | N101: 2022 | P101: 481.754 | R101: 25137846.64 | S101: 0 | U101: 2013 | V101: 25812903.56 | X101: 20 | Y101: 36 Yrs | Z101: Normal | AK101: 55-798-009 | AM101: Red Line | AN101: West | AO101: A-00559
B102: 0 | C102: 93 | D102: LR - Light Rail | F102: Curve | H102: 11202 - Guideway Elements, Trackwork, Ballasted, Curve | J102: 37864.49 | K102: LF | M102: No | N102: 2010 | P102: 459.616 | R102: 17403125.44 | S102: 0 | U102: 2013 | V102: 17870472.56 | X102: 20 | Y102: 36 Yrs | Z102: Normal | AK102: 72-926-734 | AM102: Yellow Line | AN102: Central | AO102: B-01253
B103: 0 | C103: 94 | D103: LR - Light Rail | F103: Curve | H103: 11202 - Guideway Elements, Trackwork, Ballasted, Curve | J103: 6027 | K103: LF | M103: No | N103: 2024 | P103: 465.2127 | R103: 2803836.943 | S103: 0 | U103: 2013 | V103: 2879131.759 | X103: 20 | Y103: 36 Yrs | Z103: Normal | AK103: 38-847-630 | AM103: Red Line | AN103: North | AO103: C-09061
B104: 0 | C104: 95 | D104: LR - Light Rail | F104: Curve | H104: 11202 - Guideway Elements, Trackwork, Ballasted, Curve | J104: 1267.47 | K104: LF | M104: No | N104: 2019 | P104: 480.571 | R104: 609109.3254 | S104: 0 | U104: 2013 | V104: 625466.4729 | X104: 20 | Y104: 36 Yrs | Z104: Normal | AK104: 28-023-533 | AM104: Yellow Line | AN104: East | AO104: C-09874
B105: 0 | C105: 96 | D105: LR - Light Rail | F105: Guarded | H105: 11203 - Guideway Elements, Trackwork, Ballasted, Guarded | J105: 10065.75 | K105: LF | M105: No | N105: 2022 | P105: 124.8682 | R105: 1256892.084 | S105: 0 | U105: 2013 | V105: 1290644.924 | X105: 10 | Y105: 44 Yrs | Z105: Normal | AK105: 02-980-896 | AM105: Red Line | AN105: Central | AO105: C-08734
B106: 0 | C106: 97 | D106: LR - Light Rail | F106: Guarded | H106: 11203 - Guideway Elements, Trackwork, Ballasted, Guarded | J106: 4016.88 | K106: LF | M106: No | N106: 2024 | P106: 120.3472 | R106: 483420.2607 | S106: 0 | U106: 2013 | V106: 496402.1282 | X106: 10 | Y106: 44 Yrs | Z106: Normal | AK106: 98-227-997 | AM106: Blue Line | AN106: East | AO106: C-09874
B107: 0 | C107: 98 | D107: LR - Light Rail | F107: Guarded | H107: 11203 - Guideway Elements, Trackwork, Ballasted, Guarded | J107: 1892 | K107: LF | M107: No | N107: 2010 | P107: 122.6436 | R107: 232041.6912 | S107: 0 | U107: 2013 | V107: 238272.9867 | X107: 10 | Y107: 44 Yrs | Z107: Normal | AK107: 90-247-100 | AM107: Red Line | AN107: South | AO107: A-07864
B108: 0 | C108: 99 | D108: LR - Light Rail | F108: Platform Curved | H108: 11205 - Guideway Elements, Trackwork, Ballasted, Platform Curved | J108: 277.8 | K108: LF | M108: No | N108: 2016 | P108: 487.2485 | R108: 135357.6333 | S108: 0 | U108: 2013 | V108: 138992.5551 | Y108: 36 Yrs | Z108: Normal | AK108: 29-937-917 | AM108: Yellow Line | AN108: Central | AO108: B-09077
B109: 0 | C109: 100 | D109: LR - Light Rail | F109: Platform Curved | H109: 11205 - Guideway Elements, Trackwork, Ballasted, Platform Curved | J109: 87.789 | K109: LF | M109: No | N109: 2010 | P109: 484.582 | R109: 42540.9692 | S109: 0 | U109: 2013 | V109: 43683.37317 | Y109: 36 Yrs | Z109: Normal | AK109: 81-805-486 | AM109: Red Line | AN109: North | AO109: C-02992
B110: 0 | C110: 101 | D110: LR - Light Rail | F110: Platform Curved | H110: 11205 - Guideway Elements, Trackwork, Ballasted, Platform Curved | J110: 37.16 | K110: LF | M110: No | N110: 2014 | P110: 494.3478 | R110: 18369.96425 | S110: 0 | U110: 2013 | V110: 18863.27506 | Y110: 36 Yrs | Z110: Normal | AK110: 46-857-468 | AM110: Yellow Line | AN110: South | AO110: B-00170
B111: 0 | C111: 102 | D111: LR - Light Rail | F111: Platform Curved | H111: 11205 - Guideway Elements, Trackwork, Ballasted, Platform Curved | J111: 24.49 | K111: LF | M111: No | N111: 2019 | P111: 513.2268 | R111: 12568.92433 | S111: 0 | U111: 2013 | V111: 12906.45282 | Y111: 36 Yrs | Z111: Normal | AK111: 54-622-238 | AM111: Red Line | AN111: West | AO111: A-09167
B112: 0 | C112: 103 | D112: LR - Light Rail | F112: Platform Curved | H112: 11205 - Guideway Elements, Trackwork, Ballasted, Platform Curved | J112: 17.25 | K112: LF | M112: No | N112: 2017 | P112: 493.2286 | R112: 8508.19335 | S112: 0 | U112: 2013 | V112: 8736.674131 | Y112: 36 Yrs | Z112: Normal | AK112: 58-003-460 | AM112: Yellow Line | AN112: East | AO112: C-03006
B113: 0 | C113: 104 | D113: LR - Light Rail | F113: Platform Tangent | H113: 11204 - Guideway Elements, Trackwork, Ballasted, Platform Tangent | J113: 11734.75 | K113: LF | M113: No | N113: 2010 | P113: 280.1301 | R113: 3287256.691 | S113: 0 | U113: 2013 | V113: 3375533.361 | X113: 10 | Y113: 44 Yrs | Z113: Normal | AK113: 78-698-603 | AM113: Red Line | AN113: Central | AO113: B-02211
B114: 0 | C114: 105 | D114: LR - Light Rail | F114: Platform Tangent | H114: 11204 - Guideway Elements, Trackwork, Ballasted, Platform Tangent | J114: 6035.98 | K114: LF | M114: No | N114: 2014 | P114: 432.4846 | R114: 2610468.396 | S114: 0 | U114: 2013 | V114: 2680570.453 | X114: 10 | Y114: 44 Yrs | Z114: Normal | AK114: 94-266-824 | AM114: Blue Line | AN114: East | AO114: A-06288
B115: 0 | C115: 106 | D115: LR - Light Rail | F115: Platform Tangent | H115: 11204 - Guideway Elements, Trackwork, Ballasted, Platform Tangent | J115: 3865.56 | K115: LF | M115: No | N115: 2016 | P115: 350.1631 | R115: 1353576.473 | S115: 0 | U115: 2013 | V115: 1389925.695 | X115: 10 | Y115: 44 Yrs | Z115: Normal | AK115: 99-485-460 | AM115: Blue Line | AN115: West | AO115: C-01910
A116: 41500 | B116: 0 | C116: 107 | D116: LR - Light Rail | F116: Platform Tangent | H116: 11204 - Guideway Elements, Trackwork, Ballasted, Platform Tangent | J116: 2878 | K116: LF | M116: No | N116: 2022 | P116: 251.9563 | R116: 725130.2314 | S116: 0 | U116: 2013 | V116: 744603.0283 | X116: 10 | Y116: 44 Yrs | Z116: Normal | AK116: 04-823-309 | AM116: Yellow Line | AN116: Central | AO116: C-03759
A117: 41500 | B117: 0 | C117: 108 | D117: LR - Light Rail | F117: Platform Tangent | H117: 11204 - Guideway Elements, Trackwork, Ballasted, Platform Tangent | J117: 1696.13 | K117: LF | M117: No | N117: 2024 | P117: 364.8174 | R117: 618777.7367 | S117: 0 | U117: 2013 | V117: 635394.5218 | X117: 10 | Y117: 44 Yrs | Z117: Normal | AK117: 07-819-296 | AM117: Yellow Line | AN117: East | AO117: A-04645
A118: 41500 | B118: 0 | C118: 109 | D118: LR - Light Rail | F118: Platform Tangent | H118: 11204 - Guideway Elements, Trackwork, Ballasted, Platform Tangent | J118: 2432 | K118: LF | M118: No | N118: 2019 | P118: 230.5787 | R118: 560767.3984 | S118: 0 | U118: 2013 | V118: 575826.3619 | X118: 10 | Y118: 44 Yrs | Z118: Normal | AK118: 82-200-100 | AM118: Yellow Line | AN118: South | AO118: B-09077
A119: 41500 | B119: 0 | C119: 110 | D119: LR - Light Rail | F119: Platform Tangent | H119: 11204 - Guideway Elements, Trackwork, Ballasted, Platform Tangent | J119: 1492.75 | K119: LF | M119: No | N119: 2017 | P119: 317.3684 | R119: 473751.6791 | S119: 0 | U119: 2013 | V119: 486473.9045 | X119: 10 | Y119: 44 Yrs | Z119: Normal | AK119: 56-894-972 | AM119: Red Line | AN119: North | AO119: B-00170
A120: 41500 | B120: 0 | C120: 111 | D120: LR - Light Rail | F120: Platform Tangent | H120: 11204 - Guideway Elements, Trackwork, Ballasted, Platform Tangent | J120: 1 | K120: Ea | M120: No | N120: 2024 | P120: 338.3941 | R120: 338.3941 | S120: 0 | U120: 2013 | V120: 347.481405 | X120: 10 | Y120: 44 Yrs | Z120: Normal | AK120: 18-369-386 | AM120: Red Line | AN120: South | AO120: B-08260
A121: 41500 | B121: 0 | C121: 112 | D121: LR - Light Rail | F121: Tangent | H121: 11201 - Guideway Elements, Trackwork, Ballasted, Tangent | J121: 110067.4 | K121: LF | M121: No | N121: 2022 | P121: 114.193 | R121: 12568926.61 | S121: 0 | U121: 2013 | V121: 12906455.16 | X121: 40 | Y121: 44 Yrs | Z121: Normal | AK121: 79-744-131 | AM121: Red Line | AN121: North | AO121: B-09077
A122: 41500 | B122: 0 | C122: 113 | D122: LR - Light Rail | F122: Tangent | H122: 11201 - Guideway Elements, Trackwork, Ballasted, Tangent | J122: 82714.58 | K122: LF | M122: No | N122: 2010 | P122: 115.7198 | R122: 9571714.655 | S122: 0 | U122: 2013 | V122: 9828755.456 | X122: 40 | Y122: 44 Yrs | Z122: Normal | AK122: 68-381-742 | AM122: Blue Line | AN122: East | AO122: B-08969
A123: 41500 | B123: 0 | C123: 114 | D123: LR - Light Rail | F123: Tangent | H123: 11201 - Guideway Elements, Trackwork, Ballasted, Tangent | J123: 2842.54 | K123: LF | M123: No | N123: 2019 | P123: 115.6451 | R123: 328725.8226 | S123: 0 | U123: 2013 | V123: 337553.4937 | X123: 40 | Y123: 44 Yrs | Z123: Normal | AK123: 90-350-745 | AM123: Blue Line | AN123: West | AO123: B-00170
A124: 41500 | B124: 0 | C124: 115 | D124: LR - Light Rail | F124: Tangent | H124: 11201 - Guideway Elements, Trackwork, Ballasted, Tangent | J124: 2387.16 | K124: LF | M124: No | N124: 2024 | P124: 117.4549 | R124: 280383.6391 | S124: 0 | U124: 2013 | V124: 287913.1192 | X124: 40 | Y124: 44 Yrs | Z124: Normal | AK124: 23-380-210 | AM124: Yellow Line | AN124: South | AO124: B-01876
A125: 41500 | B125: 0 | C125: 116 | D125: LR - Light Rail | F125: Tangent | H125: 11201 - Guideway Elements, Trackwork, Ballasted, Tangent | J125: 419.79 | K125: LF | M125: No | N125: 2019 | P125: 115.1576 | R125: 48342.0089 | S125: 0 | U125: 2013 | V125: 49640.19519 | X125: 40 | Y125: 44 Yrs | Z125: Normal | AK125: 94-993-839 | AM125: Red Line | AN125: Central | AO125: B-09077
A126: 41500 | B126: 0 | C126: 117 | D126: LR - Light Rail | F126: Curve | H126: 11102 - Guideway Elements, Trackwork, Direct Fixation, Curve | J126: 1856.95 | K126: LF | M126: No | N126: 2022 | P126: 572.7264 | R126: 1063524.288 | S126: 0 | U126: 2013 | V126: 1092084.389 | X126: 20 | Y126: 36 Yrs | Z126: Normal | AK126: 03-199-644 | AM126: Yellow Line | AN126: Central | AO126: C-05198
A127: 41500 | B127: 0 | C127: 118 | D127: LR - Light Rail | F127: Curve | H127: 11102 - Guideway Elements, Trackwork, Direct Fixation, Curve | J127: 170.47 | K127: LF | M127: No | N127: 2024 | P127: 567.1615 | R127: 96684.02091 | S127: 0 | U127: 2013 | V127: 99280.39356 | X127: 20 | Y127: 36 Yrs | Z127: Normal | AK127: 11-829-632 | AM127: Yellow Line | AN127: East | AO127: B-00405
A128: 41500 | B128: 0 | C128: 119 | D128: LR - Light Rail | F128: Guarded | H128: 11103 - Guideway Elements, Trackwork, Direct Fixation, Guarded | J128: 2071.16 | K128: LF | M128: No | N128: 2022 | P128: 606.8543 | R128: 1256892.352 | S128: 0 | U128: 2013 | V128: 1290645.199 | X128: 10 | Y128: 44 Yrs | Z128: Normal | AK128: 84-678-846 | AM128: Red Line | AN128: West | AO128: B-00002
A129: 41500 | B129: 0 | C129: 120 | D129: LR - Light Rail | F129: Tangent | H129: 11101 - Guideway Elements, Trackwork, Direct Fixation, Tangent | J129: 126.48 | K129: LF | M129: No | N129: 2024 | P129: 389.8549 | R129: 49308.84775 | S129: 0 | U129: 2013 | V129: 50632.99773 | X129: 40 | Y129: 44 Yrs | Z129: Normal | AK129: 51-822-253 | AM129: Red Line | AN129: South | AO129: C-01337
A130: 41500 | B130: 0 | C130: 121 | D130: LR - Light Rail | F130: Tangent | H130: 11101 - Guideway Elements, Trackwork, Direct Fixation, Tangent | J130: 14.71 | K130: LF | M130: No | N130: 2022 | P130: 387.7877 | R130: 5704.357067 | S130: 0 | U130: 2013 | V130: 5857.543049 | X130: 40 | Y130: 44 Yrs | Z130: Normal | AK130: 89-411-195 | AM130: Red Line | AN130: North | AO130: B-09620
A131: 41500 | B131: 0 | C131: 122 | D131: LR - Light Rail | F131: At-Grade Crossings | H131: 11303 - Guideway Elements, Trackwork, Embedded, At-Grade Crossings | J131: 84 | K131: LF | M131: No | N131: 2022 | P131: 506440.1276 | R131: 42540970.72 | S131: 0 | U131: 2013 | V131: 43683374.73 | X131: 20 | Y131: 12 Yrs | Z131: Normal | AK131: 21-741-684 | AM131: Blue Line | AN131: West | AO131: B-01838
A132: 41500 | B132: 0 | C132: 123 | D132: LR - Light Rail | F132: At-Grade Crossings | H132: 11303 - Guideway Elements, Trackwork, Embedded, At-Grade Crossings | J132: 2137.76 | K132: LF | M132: No | N132: 2010 | P132: 189.9525 | R132: 406072.8564 | S132: 0 | U132: 2013 | V132: 416977.6207 | X132: 20 | Y132: 12 Yrs | Z132: Normal | AK132: 49-182-278 | AM132: Blue Line | AN132: East | AO132: A-03338
A133: 41500 | B133: 0 | C133: 124 | D133: LR - Light Rail | F133: Curve | H133: 11302 - Guideway Elements, Trackwork, Embedded, Curve | J133: 19100.9 | K133: LF | M133: No | N133: 2014 | P133: 607.4103 | R133: 11602083.4 | S133: 0 | U133: 2013 | V133: 11913648.14 | X133: 20 | Y133: 36 Yrs | Z133: Normal | AK133: 50-565-309 | AM133: Yellow Line | AN133: East | AO133: C-06989
A134: 41500 | B134: 0 | C134: 125 | D134: LR - Light Rail | F134: Curve | H134: 11302 - Guideway Elements, Trackwork, Embedded, Curve | J134: 21246.64 | K134: LF | M134: No | N134: 2024 | P134: 500.5612 | R134: 10635243.61 | S134: 0 | U134: 2013 | V134: 10920844.64 | X134: 20 | Y134: 36 Yrs | Z134: Normal | AK134: 40-693-360 | AM134: Red Line | AN134: Central | AO134: C-04974
A135: 41500 | B135: 0 | C135: 126 | D135: LR - Light Rail | F135: Curve | H135: 11302 - Guideway Elements, Trackwork, Embedded, Curve | J135: 14019.74 | K135: LF | M135: No | N135: 2016 | P135: 496.532 | R135: 6961249.542 | S135: 0 | U135: 2013 | V135: 7148188.374 | X135: 20 | Y135: 36 Yrs | Z135: Normal | AK135: 10-146-402 | AM135: Red Line | AN135: West | AO135: C-09633
A136: 41500 | B136: 0 | C136: 127 | D136: LR - Light Rail | F136: Curve | H136: 11302 - Guideway Elements, Trackwork, Embedded, Curve | J136: 8953.85 | K136: LF | M136: No | N136: 2010 | P136: 485.9118 | R136: 4350781.37 | S136: 0 | U136: 2013 | V136: 4467618.152 | X136: 20 | Y136: 36 Yrs | Z136: Normal | AK136: 53-847-195 | AM136: Yellow Line | AN136: South | AO136: A-04064
A137: 41500 | B137: 0 | C137: 128 | D137: LR - Light Rail | F137: Curve | H137: 11302 - Guideway Elements, Trackwork, Embedded, Curve | J137: 4644.42 | K137: LF | M137: No | N137: 2019 | P137: 499.6139 | R137: 2320416.789 | S137: 0 | U137: 2013 | V137: 2382729.741 | X137: 20 | Y137: 36 Yrs | Z137: Normal | AK137: 17-051-279 | AM137: Red Line | AN137: North | AO137: B-03083
A138: 41500 | B138: =1-NOT(ISBLANK(D138))*NOT(ISBLANK(F138))*NOT(ISBLANK(H138))*NOT(ISBLANK(J138))*NOT(ISBLANK(N138))*NOT(ISBLANK(U138))*NOT(ISBLANK(M138))*NOT(AND(ISBLANK(P138),ISBLANK(Q138)))*NOT(ISBLANK(Z138)) -> 0 | C138: =OFFSET(C138,-1,0)+1 -> 129 | D138: LR - Light Rail | F138: Curve | H138: 11302 - Guideway Elements, Trackwork, Embedded, Curve | J138: 4814.38 | K138: LF | M138: No | N138: 2022 | P138: 481.9762 | R138: =IF(P138="",Q138,J138*P138) -> 2320416.578 | S138: 0 | U138: 2013 | V138: =IFERROR(R138*INDEX(rng.CostIndexMeans,MATCH(rng.ConstantYear,rng.CostIndexYear,0))/INDEX(rng.CostIndexMeans,MATCH(U138,rng.CostIndexYear,0))*(1+S138),"") -> 2382729.524 | X138: 20 | Y138: =IFERROR(TEXT(INDEX(rng.ClassEDL,MATCH(H138,rng.ClassChoice,0)),"0")&" Yrs ","") -> 36 Yrs | Z138: Normal | AK138: 43-444-191 | AM138: Red Line | AN138: South | AO138: B-06040
A139: 41500 | B139: 0 | C139: 130 | D139: LR - Light Rail | F139: Curve | H139: 11302 - Guideway Elements, Trackwork, Embedded, Curve | J139: 569.21 | K139: LF | M139: No | N139: 2014 | P139: 492.5839 | R139: 280383.6817 | S139: 0 | U139: 2013 | V139: 287913.163 | X139: 20 | Y139: 36 Yrs | Z139: Normal | AK139: 69-632-217 | AM139: Yellow Line | AN139: Central | AO139: C-02088
A140: 41500 | B140: 0 | C140: 131 | D140: LR - Light Rail | F140: Curve | H140: 11302 - Guideway Elements, Trackwork, Embedded, Curve | J140: 8 | K140: Ea | M140: No | N140: 2014 | P140: 495.5056 | R140: 3964.0448 | S140: 0 | U140: 2013 | V140: 4070.496077 | X140: 20 | Y140: 36 Yrs | Z140: Normal | AK140: 96-908-650 | AM140: Red Line | AN140: North | AO140: C-00386
A141: 41500 | B141: 0 | C141: 132 | D141: LR - Light Rail | F141: Tangent | H141: 11301 - Guideway Elements, Trackwork, Embedded, Tangent | J141: 18621.62 | K141: LF | M141: No | N141: 2010 | P141: 342.674 | R141: 6381145.012 | S141: 0 | U141: 2013 | V141: 6552505.597 | X141: 40 | Y141: 44 Yrs | Z141: Normal | AK141: 10-033-115 | AM141: Red Line | AN141: North | AO141: C-07278
A142: 41500 | B142: 0 | C142: 133 | D142: LR - Light Rail | F142: Tangent | H142: 11301 - Guideway Elements, Trackwork, Embedded, Tangent | J142: 21721.75 | K142: LF | M142: No | N142: 2024 | P142: 244.8063 | R142: 5317621.247 | S142: 0 | U142: 2013 | V142: 5460421.746 | X142: 40 | Y142: 44 Yrs | Z142: Normal | AK142: 69-018-424 | AM142: Red Line | AN142: Central | AO142: C-04044
A143: 41500 | B143: 0 | C143: 134 | D143: LR - Light Rail | F143: Tangent | H143: 11301 - Guideway Elements, Trackwork, Embedded, Tangent | J143: 7961.04 | K143: LF | M143: No | N143: 2016 | P143: 352.1948 | R143: 2803836.891 | S143: 0 | U143: 2013 | V143: 2879131.705 | X143: 40 | Y143: 44 Yrs | Z143: Normal | AK143: 32-712-614 | AM143: Red Line | AN143: West | AO143: A-04137
A144: 41500 | B144: 0 | C144: 135 | D144: LR - Light Rail | F144: Tangent | H144: 11301 - Guideway Elements, Trackwork, Embedded, Tangent | J144: 5095.41 | K144: LF | M144: No | N144: 2014 | P144: 455.3935 | R144: 2320416.594 | S144: 0 | U144: 2013 | V144: 2382729.54 | X144: 40 | Y144: 44 Yrs | Z144: Normal | AK144: 23-153-623 | AM144: Yellow Line | AN144: East | AO144: C-07411
A145: 41500 | B145: 0 | C145: 136 | D145: LR - Light Rail | F145: Tangent | H145: 11301 - Guideway Elements, Trackwork, Embedded, Tangent | J145: 3868.68 | K145: LF | M145: No | N145: 2019 | P145: 349.8807 | R145: 1353576.466 | S145: 0 | U145: 2013 | V145: 1389925.688 | X145: 40 | Y145: 44 Yrs | Z145: Normal | AK145: 83-997-204 | AM145: Red Line | AN145: North | AO145: A-05703
A146: 41500 | B146: 0 | C146: 137 | D146: LR - Light Rail | F146: Tangent | H146: 11301 - Guideway Elements, Trackwork, Embedded, Tangent | J146: 3798.26 | K146: LF | M146: No | N146: 2014 | P146: 356.3675 | R146: 1353576.421 | S146: 0 | U146: 2013 | V146: 1389925.641 | X146: 20 | Y146: 44 Yrs | Z146: Normal | AK146: 35-626-888 | AM146: Yellow Line | AN146: South | AO146: B-00014
A147: 41500 | B147: 0 | C147: 138 | D147: LR - Light Rail | F147: Tangent | H147: 11301 - Guideway Elements, Trackwork, Embedded, Tangent | J147: 3252.76 | K147: LF | M147: No | N147: 2014 | P147: 356.6843 | R147: 1160208.424 | S147: 0 | U147: 2013 | V147: 1191364.9 | X147: 32 | Y147: 44 Yrs | Z147: Normal | AK147: 40-069-837 | AM147: Yellow Line | AN147: Central | AO147: C-04430
A148: 41500 | B148: 0 | C148: 139 | D148: LR - Light Rail | F148: Tangent | H148: 11301 - Guideway Elements, Trackwork, Embedded, Tangent | J148: 1289.2 | K148: LF | M148: No | N148: 2022 | P148: 367.4773 | R148: 473751.7352 | S148: 0 | U148: 2013 | V148: 486473.9621 | X148: 40 | Y148: 44 Yrs | Z148: Normal | AK148: 79-264-658 | AM148: Red Line | AN148: South | AO148: B-03181
A149: 41500 | B149: 0 | C149: 140 | D149: LR - Light Rail | F149: Tangent | H149: 11301 - Guideway Elements, Trackwork, Embedded, Tangent | J149: 122.91 | K149: LF | M149: No | N149: 1911 | P149: 346.1148 | R149: 42540.97007 | S149: 0 | U149: 2013 | V149: 43683.37406 | X149: 40 | Y149: 44 Yrs | Z149: Normal | AK149: 51-323-630 | AM149: Blue Line | AN149: West | AO149: C-01058
A150: 41500 | B150: 0 | C150: 141 | D150: LR - Light Rail | F150: Tangent | H150: 11301 - Guideway Elements, Trackwork, Embedded, Tangent | J150: 10 | K150: Ea | M150: No | N150: 2014 | P150: 338.3941 | R150: 3383.941 | S150: 0 | U150: 2013 | V150: 3474.81405 | X150: 41 | Y150: 44 Yrs | Z150: Normal | AK150: 47-936-868 | AM150: Blue Line | AN150: East | AO150: C-04386
A151: 41500 | B151: 0 | C151: 142 | D151: LR - Light Rail | F151: Special | H151: 11400 - Guideway Elements, Trackwork, Special | J151: 44625.34 | K151: LF | M151: No | N151: 2022 | P151: 368.3173 | R151: 16436284.74 | S151: 0 | U151: 2013 | V151: 16877668.12 | X151: 20 | Y151: 29 Yrs | Z151: Normal | AK151: 07-357-137 | AM151: Yellow Line | AN151: Central | AO151: C-02916
A152: 41500 | B152: 0 | C152: 143 | D152: LR - Light Rail | F152: Special | H152: 11400 - Guideway Elements, Trackwork, Special | J152: 9493.89 | K152: LF | M152: No | N152: 2014 | P152: 1527.5723 | R152: 14502603.38 | S152: 0 | U152: 2013 | V152: 14892059.29 | X152: 20 | Y152: 29 Yrs | Z152: Normal | AK152: 05-526-999 | AM152: Blue Line | AN152: West | AO152: C-09012
A153: 41500 | B153: 0 | C153: 144 | D153: LR - Light Rail | F153: Special | H153: 11400 - Guideway Elements, Trackwork, Special | J153: 16367.93 | K153: LF | M153: No | N153: 2024 | P153: 649.761 | R153: 10635242.56 | S153: 0 | U153: 2013 | V153: 10920843.56 | X153: 20 | Y153: 29 Yrs | Z153: Normal | AK153: 45-887-091 | AM153: Yellow Line | AN153: East | AO153: C-02540
B154: 0 | C154: 145 | D154: LR - Light Rail | F154: Special | H154: 11400 - Guideway Elements, Trackwork, Special | J154: 9483.93 | K154: LF | M154: No | N154: 2019 | P154: 1019.4511 | R154: 9668402.871 | S154: 0 | U154: 2013 | V154: 9928040.158 | X154: 20 | Y154: 29 Yrs | Z154: Normal | AF154: CRS-TC-INT-SEH-1.1-S | AK154: 67-902-418 | AM154: Yellow Line | AN154: South | AO154: C-03868
B155: 0 | C155: 146 | D155: LR - Light Rail | F155: Special | H155: 11400 - Guideway Elements, Trackwork, Special | J155: 222.42 | K155: LF | M155: No | N155: 2010 | P155: 12606.0458 | R155: 2803836.707 | S155: 0 | U155: 2013 | V155: 2879131.517 | X155: 20 | Y155: 29 Yrs | Z155: Normal | AF155: CRS-TC-SH-SEH-0.7-S | AK155: 00-681-738 | AM155: Blue Line | AN155: East | AO155: C-08479
B156: 0 | C156: 147 | D156: LR - Light Rail | F156: Special | H156: 11400 - Guideway Elements, Trackwork, Special | J156: 22 | K156: Ea | M156: No | N156: 2024 | P156: 92289.296 | R156: 2030364.512 | S156: 0 | U156: 2013 | V156: 2084888.34 | X156: 20 | Y156: 29 Yrs | Z156: Normal | AF156: CRS-TC-GC-GCEH-31.1-S | AK156: 35-967-750 | AM156: Red Line | AN156: Central | AO156: B-04731
B157: 0 | C157: 148 | D157: LR - Light Rail | F157: Special | H157: 11400 - Guideway Elements, Trackwork, Special | J157: 64 | K157: Ea | M157: No | N157: 2010 | P157: 24171.0061 | R157: 1546944.39 | S157: 0 | U157: 2013 | V157: 1588486.354 | X157: 20 | Y157: 29 Yrs | Z157: Normal | AF157: WV-TC-CC18992-1.5-Z | AK157: 44-617-774 | AM157: Yellow Line | AN157: Central | AO157: C-05761
B158: 0 | C158: 149 | D158: LR - Light Rail | F158: Special | H158: 11400 - Guideway Elements, Trackwork, Special | J158: 51 | K158: Ea | M158: No | N158: 2022 | P158: 28436.4778 | R158: 1450260.368 | S158: 0 | U158: 2013 | V158: 1489205.959 | X158: 20 | Y158: 29 Yrs | Z158: Normal | AF158: MJE-TC-CC115790-8.7-Z | AK158: 87-532-510 | AM158: Red Line | AN158: South | AO158: B-03524
B159: 0 | C159: 150 | D159: LR - Light Rail | F159: Special | H159: 11400 - Guideway Elements, Trackwork, Special | J159: 3038.56 | K159: LF | M159: No | N159: 2016 | P159: 445.4664 | R159: 1353576.384 | S159: 0 | U159: 2013 | V159: 1389925.604 | X159: 20 | Y159: 29 Yrs | Z159: Normal | AF159: MJE-TC-CC142759-3.6-Z | AK159: 06-601-947 | AM159: Red Line | AN159: North | AO159: C-09538
B160: 0 | C160: 151 | D160: LR - Light Rail | F160: Special | H160: 11400 - Guideway Elements, Trackwork, Special | J160: 16 | K160: Ea | M160: No | N160: 2014 | P160: 41090.7104 | R160: 657451.3664 | S160: 0 | U160: 2013 | V160: 675106.7011 | X160: 20 | Y160: 29 Yrs | Z160: Normal | AF160: MJE-TC-CC135394-5.0-Z | AK160: 64-162-081 | AM160: Yellow Line | AN160: East | AO160: B-04731
B161: 0 | C161: 152 | D161: LR - Light Rail | F161: Special | H161: 11400 - Guideway Elements, Trackwork, Special | J161: 9 | K161: Ea | M161: No | N161: 2019 | P161: 48342.0122 | R161: 435078.1098 | S161: 0 | U161: 2013 | V161: 446761.7872 | X161: 20 | Y161: 29 Yrs | Z161: Normal | AF161: AP-TC-TS-SHPE-1.0-Z | AK161: 01-131-582 | AM161: Red Line | AN161: North | AO161: C-05937
B162: 0 | C162: 153 | D162: LR - Light Rail | F162: Special | H162: 11400 - Guideway Elements, Trackwork, Special | J162: 2 | K162: Ea | M162: No | N162: 2016 | P162: 116020.8292 | R162: 232041.6584 | S162: 0 | U162: 2013 | V162: 238272.953 | X162: 20 | Y162: 29 Yrs | Z162: Normal | AF162: WV-TC-TS-SHP-3.4-Z | AK162: 70-509-099 | AM162: Red Line | AN162: West | AO162: B-03836
B163: 0 | C163: 154 | D163: LR - Light Rail | F163: Special | H163: 11400 - Guideway Elements, Trackwork, Special | J163: 1 | K163: Ea | M163: No | N163: 1911 | P163: 75413.539 | R163: 75413.539 | S163: 0 | U163: 2013 | V163: 77438.70975 | X163: 20 | Y163: 29 Yrs | Z163: Normal | AF163: WV-TC-TS-SHP-3.6-Z | AK163: 44-717-926 | AM163: Yellow Line | AN163: South | AO163: B-00163
B164: 0 | C164: 155 | D164: LR - Light Rail | F164: Ballasted Single Crossover | H164: 11406 - Guideway Elements, Trackwork, Special, Ballasted Single Crossover | J164: 10 | K164: Ea | M164: No | N164: 2010 | P164: 290052.0731 | R164: 2900520.731 | S164: 0 | U164: 2013 | V164: 2978411.914 | X164: 32 | Y164: 29 Yrs | Z164: Normal | AF164: CRS-TC-GC-GCIEG-40.3-S | AK164: 51-992-350 | AM164: Red Line | AN164: Central | AO164: B-05446
B165: 0 | C165: 156 | D165: LR - Light Rail | F165: Ballasted Single Crossover | H165: 11406 - Guideway Elements, Trackwork, Special, Ballasted Single Crossover | J165: 8 | K165: Ea | M165: No | N165: 1911 | P165: 87015.6219 | R165: 696124.9752 | S165: 0 | U165: 2013 | V165: 714818.859 | X165: 32 | Y165: 29 Yrs | Z165: Normal | AF165: CRS-TC-GC-GCI-28.2-S | AK165: 69-390-842 | AM165: Red Line | AN165: South | AO165: A-04836
B166: 0 | C166: 157 | D166: LR - Light Rail | F166: Ballasted Single Crossover | H166: 11406 - Guideway Elements, Trackwork, Special, Ballasted Single Crossover | J166: 2 | K166: Ea | M166: No | N166: 2022 | P166: 87015.6219 | R166: 174031.2438 | S166: 0 | U166: 2013 | V166: 178704.7148 | X166: 32 | Y166: 29 Yrs | Z166: Normal | AF166: CRS-TC-GC-FL-31.1-S | AK166: 41-685-075 | AM166: Blue Line | AN166: East | AO166: A-03440
B167: 0 | C167: 158 | D167: LR - Light Rail | F167: Diamond Crossover | H167: 11401 - Guideway Elements, Trackwork, Special, Diamond Crossover | J167: 2 | K167: Ea | M167: No | N167: 2024 | P167: 149860.2378 | R167: 299720.4756 | S167: 0 | U167: 2013 | V167: 307769.2311 | X167: 32 | Y167: 29 Yrs | Z167: Normal | AF167: CRS-TC-GC-FLWG-41.7-S | AK167: 04-453-751 | AM167: Yellow Line | AN167: Central | AO167: C-08687
B168: 0 | C168: 159 | D168: LR - Light Rail | F168: Diamond Crossover | H168: 11401 - Guideway Elements, Trackwork, Special, Diamond Crossover | J168: 2 | K168: Ea | M168: No | N168: 2019 | P168: 37706.7695 | R168: 75413.539 | S168: 0 | U168: 2013 | V168: 77438.70975 | X168: 32 | Y168: 29 Yrs | Z168: Normal | AF168: CRS-TC-GC-GMEG-41.7-S | AK168: 60-613-887 | AM168: Red Line | AN168: North | AO168: B-05446
B169: 0 | C169: 160 | D169: LR - Light Rail | F169: Diamond Crossover | H169: 11401 - Guideway Elements, Trackwork, Special, Diamond Crossover | J169: 2 | K169: Ea | M169: No | N169: 2022 | P169: 37706.7695 | R169: 75413.539 | S169: 0 | U169: 2013 | V169: 77438.70975 | X169: 32 | Y169: 29 Yrs | Z169: Normal | AF169: CRS-TC-GC-GCI-43.5-S | AK169: 95-022-597 | AM169: Yellow Line | AN169: South | AO169: B-04731
B170: 0 | C170: 161 | D170: LR - Light Rail | F170: Single Crossover | H170: 11404 - Guideway Elements, Trackwork, Special, Single Crossover | J170: 239.61 | K170: LF | M170: No | N170: 2022 | P170: 129121.8555 | R170: 30938887.8 | S170: 0 | U170: 2013 | V170: 31769727.08 | X170: 32 | Y170: 29 Yrs | Z170: Normal | AF170: MJ-TC-GC-6.1-Z | AK170: 74-884-112 | AM170: Blue Line | AN170: East | AO170: C-06156
B171: 0 | C171: 162 | D171: LR - Light Rail | F171: Single Crossover | H171: 11404 - Guideway Elements, Trackwork, Special, Single Crossover | J171: 4 | K171: Ea | M171: No | N171: 2022 | P171: 132940.5335 | R171: 531762.134 | S171: 0 | U171: 2013 | V171: 546042.1841 | X171: 32 | Y171: 29 Yrs | Z171: Normal | AF171: APE-TC-GC-GM-G2-5.5-Z | AK171: 78-701-200 | AM171: Red Line | AN171: South | AO171: C-05418
B172: 0 | C172: 163 | D172: LR - Light Rail | F172: Single Crossover | H172: 11404 - Guideway Elements, Trackwork, Special, Single Crossover | J172: 4 | K172: Ea | M172: No | N172: 2019 | P172: 118437.9299 | R172: 473751.7196 | S172: 0 | U172: 2013 | V172: 486473.9461 | X172: 32 | Y172: 29 Yrs | Z172: Normal | AF172: UNW-TC-GC-FL-G1-3.3-SG | AK172: 06-322-457 | AM172: Red Line | AN172: North | AO172: A-01515
B173: 0 | C173: 164 | D173: LR - Light Rail | F173: Single Crossover | H173: 11404 - Guideway Elements, Trackwork, Special, Single Crossover | J173: 2 | K173: Ea | M173: No | N173: 2024 | P173: 120855.0305 | R173: 241710.061 | S173: 0 | U173: 2013 | V173: 248200.9929 | X173: 32 | Y173: 29 Yrs | Z173: Normal | AF173: WVE-ES-OCS0195-FD-JA-2.2-Y | AK173: 77-721-610 | AM173: Red Line | AN173: Central | AO173: C-08820
B174: 0 | C174: 165 | D174: LR - Light Rail | F174: Turnout | H174: 11407 - Guideway Elements, Trackwork, Special, Turnout | J174: 7 | K174: Ea | M174: No | N174: 2010 | P174: 303864.0766 | R174: 2127048.536 | S174: 0 | U174: 2013 | V174: 2184168.737 | X174: 42 | Y174: 30 Yrs | Z174: Normal | AF174: MJW-TC-GC-FL-G1-6.9-Z | AK174: 43-141-882 | AM174: Yellow Line | AN174: Central | AO174: A-08016
B175: 0 | C175: 166 | D175: LR - Light Rail | F175: Turnout | H175: 11407 - Guideway Elements, Trackwork, Special, Turnout | J175: 34 | K175: Ea | M175: No | N175: 2022 | P175: 39811.0689 | R175: 1353576.343 | S175: 0 | U175: 2013 | V175: 1389925.561 | X175: 42 | Y175: 30 Yrs | Z175: Normal | AF175: MJ-TC-GC-2.8-Z | AK175: 09-990-775 | AM175: Red Line | AN175: West | AO175: C-00235
B176: 0 | C176: 167 | D176: LR - Light Rail | F176: Turnout | H176: 11407 - Guideway Elements, Trackwork, Special, Turnout | J176: 6 | K176: Ea | M176: No | N176: 1911 | P176: 25782.4065 | R176: 154694.439 | S176: 0 | U176: 2013 | V176: 158848.6354 | X176: 42 | Y176: 30 Yrs | Z176: Normal | AF176: MJW-TC-GC-FL-G4-3.5-Z | AK176: 34-732-621 | AM176: Yellow Line | AN176: South | AO176: B-02307
B177: 0 | C177: 168 | D177: LR - Light Rail | F177: Turnout | H177: 11407 - Guideway Elements, Trackwork, Special, Turnout | J177: 2 | K177: Ea | M177: No | N177: 2024 | P177: 58010.4146 | R177: 116020.8292 | S177: 0 | U177: 2013 | V177: 119136.4765 | X177: 42 | Y177: 30 Yrs | Z177: Normal | AF177: WVE-ES-OCS0195-FD-JA-2.2-Y | AK177: 27-534-601 | AM177: Red Line | AN177: North | AO177: C-08816
B178: 0 | C178: 169 | D178: LR - Light Rail | F178: Turnout | H178: 11407 - Guideway Elements, Trackwork, Special, Turnout | J178: 1 | K178: Ea | M178: No | N178: 2019 | P178: 31905.728 | R178: 31905.728 | S178: 0 | U178: 2013 | V178: 32762.53101 | X178: 42 | Y178: 30 Yrs | Z178: Normal | AF178: NSW-TC-GC-GM-G1-4.2-NSSL | AK178: 91-748-105 | AM178: Yellow Line | AN178: East | AO178: C-07357
B179: 0 | C179: 170 | D179: LR - Light Rail | F179: Stations | H179: 40000 - Stations | J179: 2.314 | K179: Each | M179: No | N179: 2010 | P179: 7102974.997 | R179: 16436284.14 | S179: 0 | U179: 2013 | V179: 16877667.51 | X179: 60 | Y179: 50 Yrs | Z179: Normal | AF179: WVE-ES-OCS0195-FD-JA-2.2-Y | AK179: 43-078-155 | AM179: Red Line | AN179: North
B180: 0 | C180: 171 | D180: LR - Light Rail | F180: Stations | H180: 41203 - Stations, Building, Light Rail | J180: 10 | K180: Each | M180: No | N180: 2019 | P180: 1598984.408 | R180: 15989844.08 | S180: 0.1 | U180: 2008 | V180: 19447972.84 | X180: 60 | Y180: 100 Yrs | Z180: Normal | AF180: CRS-TC-INT-SHPB6-16.7-S | AK180: 90-661-470 | AM180: Blue Line | AN180: West
B181: 0 | C181: 172 | D181: LR - Light Rail | F181: Stations | H181: 41203 - Stations, Building, Light Rail | J181: 10 | K181: Each | M181: No | N181: 2019 | P181: 1598984.408 | R181: 15989844.08 | S181: 0.1 | U181: 2008 | V181: 19447972.84 | X181: 60 | Y181: 100 Yrs | Z181: Normal | AF181: MJW-TC-INT-SHPSSI1-0.1-Z | AK181: 90-661-470 | AM181: Red Line | AN181: North
B182: 0 | C182: 173 | D182: LR - Light Rail | F182: Stations | H182: 41203 - Stations, Building, Light Rail | J182: 10 | K182: Each | M182: No | N182: 2019 | P182: 1598984.408 | R182: 15989844.08 | S182: 0.1 | U182: 2008 | V182: 19447972.84 | X182: 60 | Y182: 100 Yrs | Z182: Normal | AF182: APW-TC-INT-SHP-9.1-Z | AK182: 90-661-470 | AM182: Yellow Line | AN182: Central
B183: 0 | C183: 174 | D183: LR - Light Rail | F183: Stations | H183: 41203 - Stations, Building, Light Rail | J183: 10 | K183: Each | M183: No | N183: 2019 | P183: 1598984.408 | R183: 15989844.08 | S183: 0.1 | U183: 2008 | V183: 19447972.84 | X183: 60 | Y183: 100 Yrs | Z183: Normal | AF183: APE-TC-INT-RSJ2-0.3-Z | AK183: 90-661-470 | AM183: Red Line | AN183: West
B184: 0 | C184: 175 | D184: LR - Light Rail | F184: Stations | H184: 41203 - Stations, Building, Light Rail | J184: 11 | K184: Each | M184: No | N184: 2019 | P184: 1598984.408 | R184: 17588828.49 | S184: 0.1 | U184: 2008 | V184: 21392770.12 | X184: 60 | Y184: 100 Yrs | Z184: Normal | AF184: MJE-TC-INT-SM1A-1.4-Z | AK184: 90-661-470 | AM184: Yellow Line | AN184: South
B185: 0 | C185: 176 | D185: LR - Light Rail | F185: Stations | H185: 41203 - Stations, Building, Light Rail | J185: 11 | K185: Each | M185: No | N185: 2019 | P185: 1598984.408 | R185: 17588828.49 | S185: 0.1 | U185: 2008 | V185: 21392770.12 | X185: 60 | Y185: 100 Yrs | Z185: Normal | AF185: CRN1-TC-INT-SHPR3-34.1-CL | AK185: 90-661-470 | AM185: Red Line | AN185: North
B186: 0 | C186: 177 | D186: LR - Light Rail | F186: Stations | H186: 41203 - Stations, Building, Light Rail | J186: 10 | K186: Each | M186: No | N186: 2019 | P186: 1598984.408 | R186: 15989844.08 | S186: 0.1 | U186: 2008 | V186: 19447972.84 | X186: 60 | Y186: 100 Yrs | Z186: Normal | AF186: UNE-TC-INT-SMR1A-2.2-SG | AK186: 90-661-470 | AM186: Yellow Line | AN186: East
B187: 0 | C187: 178 | D187: LR - Light Rail | F187: Stations | H187: 41203 - Stations, Building, Light Rail | J187: 10 | K187: Each | M187: No | N187: 2019 | P187: 1598984.408 | R187: 15989844.08 | S187: 0.1 | U187: 2008 | V187: 19447972.84 | X187: 60 | Y187: 100 Yrs | Z187: Normal | AF187: CRN1-TC-INT-SHPI3-0.6-CL | AK187: 90-661-470 | AM187: Blue Line | AN187: West
B188: 0 | C188: 179 | D188: LR - Light Rail | F188: Light Rail | H188: 32003 - Systems, Electrification, Light Rail | J188: 28 | K188: Ea | M188: No | N188: 2010 | P188: 725.1302 | R188: 20303.6456 | S188: 0 | U188: 2013 | V188: 20848.88389 | Y188: 40 Yrs | Z188: Normal | AF188: NSE-TC-INT-SHPSC8-10.9-NSSL | AK188: 92-313-054 | AM188: Yellow Line | AN188: South
B189: 0 | C189: 180 | D189: LR - Light Rail | F189: Light Rail | H189: 32003 - Systems, Electrification, Light Rail | J189: 1 | K189: Ea | M189: No | N189: 2019 | P189: 1256.8923 | R189: 1256.8923 | S189: 0 | U189: 2013 | V189: 1290.645145 | Y189: 40 Yrs | Z189: Normal | AF189: CRS-TC-INT-SHPS6-1.1-S | AK189: 69-608-611 | AM189: Red Line | AN189: North
B190: 0 | C190: 181 | D190: LR - Light Rail | F190: Light Rail | H190: 32003 - Systems, Electrification, Light Rail | J190: 4 | K190: EA | M190: No | N190: 2016 | P190: 195.7851 | R190: 783.1404 | S190: 0 | U190: 2013 | V190: 804.171014 | Y190: 40 Yrs | Z190: Normal | AF190: CRS-TC-INT-SHPU2-43.1-S | AK190: 17-805-430 | AM190: Red Line | AN190: West
B191: 0 | C191: 182 | D191: LR - Light Rail | F191: Light Rail | H191: 32003 - Systems, Electrification, Light Rail | J191: 1 | K191: Ea | M191: No | N191: 2017 | P191: 193.368 | R191: 193.368 | S191: 0 | U191: 2013 | V191: 198.5607442 | Y191: 40 Yrs | Z191: Normal | AF191: NSW-TC-INT-SHPY4-3.4-Z | AK191: 06-606-900 | AM191: Yellow Line | AN191: Central
B192: 0 | C192: 183 | D192: LR - Light Rail | F192: Light Rail | H192: 32103 - Systems, Electrification, Catenary, Light Rail | J192: 587263 | K192: LF | M192: No | N192: 2022 | P192: 27.9879 | R192: 16436258.12 | S192: 0 | U192: 2013 | V192: 16877640.79 | Y192: 40 Yrs | Z192: Normal | AF192: APE-TC-INT-SM11-0.1-Z | AK192: 88-745-770 | AM192: Red Line | AN192: North
B193: 0 | C193: 184 | D193: LR - Light Rail | F193: Light Rail | H193: 32103 - Systems, Electrification, Catenary, Light Rail | J193: 355114.4 | K193: LF | M193: No | N193: 2010 | P193: 27.2262 | R193: 9668415.677 | S193: 0 | U193: 2013 | V193: 9928053.308 | Y193: 40 Yrs | Z193: Normal | AF193: CRS-TC-INT-SMA11-30.7-S | AK193: 65-317-334 | AM193: Yellow Line | AN193: East
B194: 0 | C194: 185 | D194: LR - Light Rail | F194: Light Rail | H194: 32103 - Systems, Electrification, Catenary, Light Rail | J194: 223888.1 | K194: LF | M194: No | N194: 2024 | P194: 27.6378 | R194: 6187774.53 | S194: 0 | U194: 2013 | V194: 6353942.305 | Y194: 40 Yrs | Z194: Normal | AF194: WVW-TC-INT-SHPW6-4.8-Z | AK194: 49-646-694 | AM194: Blue Line | AN194: West
B195: 0 | C195: 186 | D195: LR - Light Rail | F195: Light Rail | H195: 32103 - Systems, Electrification, Catenary, Light Rail | J195: 89172 | K195: LF | M195: No | N195: 2014 | P195: 28.1903 | R195: 2513785.432 | S195: 0 | U195: 2013 | V195: 2581291.145 | Y195: 40 Yrs | Z195: Normal | AF195: CRS-TC-INT-SHPV1-36.8-S | AK195: 05-011-821 | AM195: Blue Line | AN195: East
B196: 0 | C196: 187 | D196: LR - Light Rail | F196: Light Rail | H196: 32103 - Systems, Electrification, Catenary, Light Rail | J196: 57714 | K196: LF | M196: No | N196: 2016 | P196: 26.8036 | R196: 1546942.97 | S196: 0 | U196: 2013 | V196: 1588484.896 | Y196: 40 Yrs | Z196: Normal | AF196: NSW-ES-TPSS-IM-1.5M-IB-0.0-TP | AK196: 88-198-372 | AM196: Red Line | AN196: Central
B197: 0 | C197: 188 | D197: LR - Light Rail | F197: Light Rail | H197: 32103 - Systems, Electrification, Catenary, Light Rail | J197: 11056.2 | K197: LF | M197: No | N197: 2017 | P197: 25.3599 | R197: 280384.1264 | S197: 0 | U197: 2013 | V197: 287913.6196 | Y197: 40 Yrs | Z197: Normal | AF197: IME-ES-OCS3189-LP-JAX-1.6-TP | AK197: 25-201-967 | AM197: Blue Line | AN197: East
B198: 0 | C198: 189 | D198: LR - Light Rail | F198: Light Rail | H198: 32103 - Systems, Electrification, Catenary, Light Rail | J198: 32 | K198: Ea | M198: No | N198: 2010 | P198: 1480.4741 | R198: 47375.1712 | S198: 0 | U198: 2013 | V198: 48647.39383 | Y198: 40 Yrs | Z198: Normal | AF198: UNE-ES-TPSS-IM-1.5M-DCB-3.3-TP | AK198: 21-887-343 | AM198: Red Line | AN198: South
A199: 41500 | B199: 0 | C199: 190 | D199: LR - Light Rail | F199: Light Rail | H199: 32103 - Systems, Electrification, Catenary, Light Rail | J199: 2 | K199: Ea | M199: No | N199: 2019 | P199: 3142.2308 | R199: 6284.4616 | S199: 0 | U199: 2013 | V199: 6453.225829 | Y199: 40 Yrs | Z199: Normal | AK199: 99-587-927 | AM199: Blue Line | AN199: West
A200: 41500 | B200: 0 | C200: 191 | D200: LR - Light Rail | F200: Light Rail | H200: 32103 - Systems, Electrification, Catenary, Light Rail | J200: 2 | K200: Ea | M200: No | N200: 2017 | P200: 159.5286 | R200: 319.0572 | S200: 0 | U200: 2013 | V200: 327.6252279 | X200: 39 | Y200: 40 Yrs | Z200: Normal | AK200: 73-488-938 | AM200: Yellow Line | AN200: Central
A201: 41500 | B201: 0 | C201: 192 | D201: LR - Light Rail | F201: Light Rail | H201: 32103 - Systems, Electrification, Catenary, Light Rail | J201: 1 | K201: Ea | M201: No | N201: 2022 | P201: 154.6944 | R201: 154.6944 | S201: 0 | U201: 2013 | V201: 158.8485954 | Y201: 40 Yrs | Z201: Normal | AK201: 69-480-212 | AM201: Red Line | AN201: North
A202: 41500 | B202: =1-NOT(ISBLANK(D202))*NOT(ISBLANK(F202))*NOT(ISBLANK(H202))*NOT(ISBLANK(J202))*NOT(ISBLANK(N202))*NOT(ISBLANK(U202))*NOT(ISBLANK(M202))*NOT(AND(ISBLANK(P202),ISBLANK(Q202)))*NOT(ISBLANK(Z202)) -> 0 | C202: =OFFSET(C202,-1,0)+1 -> 193 | D202: LR - Light Rail | F202: Light Rail | H202: 32104 - Systems, Electrification, Catenary Poles, Light Rail | J202: 8704 | K202: EA | M202: No | N202: 2016 | P202: 4665.3596 | R202: =IF(P202="",Q202,J202*P202) -> 40607289.96 | S202: 0 | U202: 2013 | V202: =IFERROR(R202*INDEX(rng.CostIndexMeans,MATCH(rng.ConstantYear,rng.CostIndexYear,0))/INDEX(rng.CostIndexMeans,MATCH(U202,rng.CostIndexYear,0))*(1+S202),"") -> 41697766.51 | Y202: =IFERROR(TEXT(INDEX(rng.ClassEDL,MATCH(H202,rng.ClassChoice,0)),"0")&" Yrs ","") -> 40 Yrs | Z202: Normal | AK202: 25-122-028 | AM202: Yellow Line | AN202: South
... 229 more rows

Sheet Parameters (hidden)
B1: Paramaters
B3: = list.priority
B4: Funded
B5: Deficient
B6: Normal
B7: Exclude
B9: = rows.mode
B10: = rng.modecode | C10: = rng.modedesc | D10: = rng.modeChoice
B11: ModeCode | C11: Name | D11: Choice List
B12: BRT | C12: Bus Rapid Transit | D12: =B12&" - "&C12 -> BRT - Bus Rapid Transit
B13: CC | C13: Cable Car | D13: =B13&" - "&C13 -> CC - Cable Car
B14: CR | C14: Commuter Rail | D14: CR - Commuter Rail
B15: DR | C15: Demand Response | D15: DR - Demand Response
B16: FB | C16: Ferry Boat | D16: FB - Ferry Boat
B17: HR | C17: Heavy Rail | D17: HR - Heavy Rail
B18: JT | C18: Jitney | D18: JT - Jitney
B19: LR | C19: Light Rail | D19: LR - Light Rail
B20: MB | C20: Motor Bus | D20: MB - Motor Bus
B21: MO | C21: Monorail | D21: MO - Monorail
B22: OR | C22: Other | D22: OR - Other
B23: SY | C23: Systemwide Assets | D23: SY - Systemwide Assets
B24: TB | C24: Trolleybus | D24: TB - Trolleybus
B25: TR | C25: Aerial Tramway | D25: TR - Aerial Tramway
B26: VP | C26: Vanpool | D26: VP - Vanpool
B28: = rows.classification
B29: = rng.ClassType | C29: = rng.ClassCat | D29: = rng.ClassSubCat | E29: = rng.ClassElement | F29: = rng.ClassSubElement | G29: = rng.ClassEDL | H29: = rng.ClassUnit | I29: = rng.ClassChoice
B30: Type | C30: Category | D30: Sub-Category | E30: Element | F30: Sub-Element | G30: Replacement Life | H30: Units | I30: Choice List
B31: [Select | C31: Category | D31: Sub-Category | E31: Element | F31: Sub-Element | I31: =B31&IF(NOT(C31="-")," - "&C31,"")&IF(NOT(D31="-"),", "&D31,"")&IF(NOT(E31="-"),", "&E31,"")&IF(NOT(F31="-"),", "&F31,"") -> [Select - Category, Sub-Category, Element, Sub-Element
B32: 10000 | C32: Guideway Elements | D32: Guideway | E32: - | F32: - | G32: 100 | H32: Linear Feet | I32: 10000 - Guideway Elements, Guideway
B33: 10001 | C33: Guideway Elements | D33: Guideway | E33: - | F33: Commuter Rail | G33: 100 | H33: Linear Feet | I33: =B33&IF(NOT(C33="-")," - "&C33,"")&IF(NOT(D33="-"),", "&D33,"")&IF(NOT(E33="-"),", "&E33,"")&IF(NOT(F33="-"),", "&F33,"") -> 10001 - Guideway Elements, Guideway, Commuter Rail
B34: 10002 | C34: Guideway Elements | D34: Guideway | E34: - | F34: Heavy Rail | G34: 100 | H34: Linear Feet | I34: 10002 - Guideway Elements, Guideway, Heavy Rail
B35: 10003 | C35: Guideway Elements | D35: Guideway | E35: - | F35: Light Rail | G35: 100 | H35: Linear Feet | I35: 10003 - Guideway Elements, Guideway, Light Rail
B36: 10110 | C36: Guideway Elements | D36: Guideway | E36: At Grade Ballast | F36: - | G36: 100 | H36: Linear Feet | I36: 10110 - Guideway Elements, Guideway, At Grade Ballast
B37: 10111 | C37: Guideway Elements | D37: Guideway | E37: At Grade Ballast | F37: Commuter Rail | G37: 100 | H37: Linear Feet | I37: 10111 - Guideway Elements, Guideway, At Grade Ballast, Commuter Rail
B38: 10112 | C38: Guideway Elements | D38: Guideway | E38: At Grade Ballast | F38: Heavy Rail | G38: 100 | H38: Linear Feet | I38: 10112 - Guideway Elements, Guideway, At Grade Ballast, Heavy Rail
B39: 10113 | C39: Guideway Elements | D39: Guideway | E39: At Grade Ballast | F39: Light Rail | G39: 100 | H39: Linear Feet | I39: 10113 - Guideway Elements, Guideway, At Grade Ballast, Light Rail
B40: 10120 | C40: Guideway Elements | D40: Guideway | E40: At Grade Ballast | F40: - | G40: 100 | H40: Linear Feet | I40: 10120 - Guideway Elements, Guideway, At Grade Ballast
B41: 10121 | C41: Guideway Elements | D41: Guideway | E41: At Grade Ballast | F41: Expressway Commuter Rail | G41: 100 | H41: Linear Feet | I41: 10121 - Guideway Elements, Guideway, At Grade Ballast, Expressway Commuter Rail
B42: 10122 | C42: Guideway Elements | D42: Guideway | E42: At Grade Ballast | F42: Expressway Heavy Rail | G42: 100 | H42: Linear Feet | I42: 10122 - Guideway Elements, Guideway, At Grade Ballast, Expressway Heavy Rail
B43: 10123 | C43: Guideway Elements | D43: Guideway | E43: At Grade Ballast | F43: Expressway Light Rail | G43: 100 | H43: Linear Feet | I43: 10123 - Guideway Elements, Guideway, At Grade Ballast, Expressway Light Rail
B44: 10200 | C44: Guideway Elements | D44: Guideway | E44: At Grade-In-Street | F44: - | G44: 20 | H44: Linear Feet | I44: 10200 - Guideway Elements, Guideway, At Grade-In-Street
B45: 10205 | C45: Guideway Elements | D45: Guideway | E45: At Grade-In-Street | F45: Ductbank | G45: 80 | H45: Lump Sum | I45: 10205 - Guideway Elements, Guideway, At Grade-In-Street, Ductbank
B46: 10206 | C46: Guideway Elements | D46: Guideway | E46: At Grade-In-Street | F46: Manhole | G46: 70 | H46: Lump Sum | I46: 10206 - Guideway Elements, Guideway, At Grade-In-Street, Manhole
B47: 10210 | C47: Guideway Elements | D47: Guideway | E47: At Grade-In-Street | F47: Grade Crossing | G47: 20 | H47: Linear Feet | I47: 10210 - Guideway Elements, Guideway, At Grade-In-Street, Grade Crossing
B48: 10211 | C48: Guideway Elements | D48: Guideway | E48: At Grade-In-Street | F48: Grade Crossing Commuter Rail | G48: 20 | H48: Linear Feet | I48: 10211 - Guideway Elements, Guideway, At Grade-In-Street, Grade Crossing Commuter Rail
B49: 10212 | C49: Guideway Elements | D49: Guideway | E49: At Grade-In-Street | F49: Grade Crossing Heavy Rail | G49: 20 | H49: Linear Feet | I49: 10212 - Guideway Elements, Guideway, At Grade-In-Street, Grade Crossing Heavy Rail
B50: 10213 | C50: Guideway Elements | D50: Guideway | E50: At Grade-In-Street | F50: Grade Crossing Light Rail | G50: 20 | H50: Linear Feet | I50: 10213 - Guideway Elements, Guideway, At Grade-In-Street, Grade Crossing Light Rail
B51: 10215 | C51: Guideway Elements | D51: Guideway | E51: At Grade-In-Street | F51: Grade Crossing - Panelled | G51: 20 | H51: Linear Feet | I51: 10215 - Guideway Elements, Guideway, At Grade-In-Street, Grade Crossing - Panelled
B52: 10216 | C52: Guideway Elements | D52: Guideway | E52: At Grade-In-Street | F52: Grade Crossing - Embedded | G52: 20 | H52: Linear Feet | I52: 10216 - Guideway Elements, Guideway, At Grade-In-Street, Grade Crossing - Embedded
B53: 10310 | C53: Guideway Elements | D53: Guideway | E53: Elevated Structure | F53: - | G53: 100 | H53: Linear Feet | I53: 10310 - Guideway Elements, Guideway, Elevated Structure
B54: 10311 | C54: Guideway Elements | D54: Guideway | E54: Elevated Structure | F54: Commuter Rail | G54: 100 | H54: Linear Feet | I54: 10311 - Guideway Elements, Guideway, Elevated Structure, Commuter Rail
B55: 10312 | C55: Guideway Elements | D55: Guideway | E55: Elevated Structure | F55: Heavy Rail | G55: 100 | H55: Linear Feet | I55: 10312 - Guideway Elements, Guideway, Elevated Structure, Heavy Rail
B56: 10313 | C56: Guideway Elements | D56: Guideway | E56: Elevated Structure | F56: Light Rail | G56: 100 | H56: Linear Feet | I56: 10313 - Guideway Elements, Guideway, Elevated Structure, Light Rail
B57: 10320 | C57: Guideway Elements | D57: Guideway | E57: Elevated Structure | F57: Steel Viaducts | G57: 100 | H57: Linear Feet | I57: 10320 - Guideway Elements, Guideway, Elevated Structure, Steel Viaducts
B58: 10321 | C58: Guideway Elements | D58: Guideway | E58: Elevated Structure | F58: Steel Viaducts Commuter Rail | G58: 100 | H58: Linear Feet | I58: 10321 - Guideway Elements, Guideway, Elevated Structure, Steel Viaducts Commuter Rail
B59: 10322 | C59: Guideway Elements | D59: Guideway | E59: Elevated Structure | F59: Steel Viaducts Heavy Rail | G59: 100 | H59: Linear Feet | I59: 10322 - Guideway Elements, Guideway, Elevated Structure, Steel Viaducts Heavy Rail
B60: 10323 | C60: Guideway Elements | D60: Guideway | E60: Elevated Structure | F60: Steel Viaducts Light Rail | G60: 100 | H60: Linear Feet | I60: 10323 - Guideway Elements, Guideway, Elevated Structure, Steel Viaducts Light Rail
B61: 10330 | C61: Guideway Elements | D61: Guideway | E61: Elevated Structure | F61: Bridge | G61: 100 | H61: Linear Feet | I61: 10330 - Guideway Elements, Guideway, Elevated Structure, Bridge
B62: 10331 | C62: Guideway Elements | D62: Guideway | E62: Elevated Structure | F62: Bridge Commuter Rail | G62: 100 | H62: Linear Feet | I62: 10331 - Guideway Elements, Guideway, Elevated Structure, Bridge Commuter Rail
B63: 10332 | C63: Guideway Elements | D63: Guideway | E63: Elevated Structure | F63: Bridge Heavy Rail | G63: 100 | H63: Linear Feet | I63: 10332 - Guideway Elements, Guideway, Elevated Structure, Bridge Heavy Rail
B64: 10333 | C64: Guideway Elements | D64: Guideway | E64: Elevated Structure | F64: Bridge Light Rail | G64: 100 | H64: Linear Feet | I64: 10333 - Guideway Elements, Guideway, Elevated Structure, Bridge Light Rail
B65: 10340 | C65: Guideway Elements | D65: Guideway | E65: Elevated Structure | F65: Foot Walk | G65: 100 | H65: Linear Feet | I65: 10340 - Guideway Elements, Guideway, Elevated Structure, Foot Walk
B66: 10400 | C66: Guideway Elements | D66: Guideway | E66: Elevated Fill | F66: - | G66: 80 | H66: Linear Feet | I66: 10400 - Guideway Elements, Guideway, Elevated Fill
B67: 10401 | C67: Guideway Elements | D67: Guideway | E67: Elevated Fill | F67: Commuter Rail | G67: 80 | H67: Linear Feet | I67: 10401 - Guideway Elements, Guideway, Elevated Fill, Commuter Rail
B68: 10402 | C68: Guideway Elements | D68: Guideway | E68: Elevated Fill | F68: Heavy Rail | G68: 80 | H68: Linear Feet | I68: 10402 - Guideway Elements, Guideway, Elevated Fill, Heavy Rail
B69: 10403 | C69: Guideway Elements | D69: Guideway | E69: Elevated Fill | F69: Light Rail | G69: 80 | H69: Linear Feet | I69: 10403 - Guideway Elements, Guideway, Elevated Fill, Light Rail
B70: 10500 | C70: Guideway Elements | D70: Guideway | E70: Underground | F70: - | G70: 100 | H70: Linear Feet | I70: 10500 - Guideway Elements, Guideway, Underground
B71: 10501 | C71: Guideway Elements | D71: Guideway | E71: Underground | F71: Commuter Rail | G71: 100 | H71: Linear Feet | I71: 10501 - Guideway Elements, Guideway, Underground, Commuter Rail
B72: 10502 | C72: Guideway Elements | D72: Guideway | E72: Underground | F72: Heavy Rail | G72: 100 | H72: Linear Feet | I72: 10502 - Guideway Elements, Guideway, Underground, Heavy Rail
B73: 10503 | C73: Guideway Elements | D73: Guideway | E73: Underground | F73: Light Rail | G73: 100 | H73: Linear Feet | I73: 10503 - Guideway Elements, Guideway, Underground, Light Rail
B74: 10510 | C74: Guideway Elements | D74: Guideway | E74: Underground | F74: Tunnel | G74: 100 | H74: Linear Feet | I74: 10510 - Guideway Elements, Guideway, Underground, Tunnel
B75: 10511 | C75: Guideway Elements | D75: Guideway | E75: Underground | F75: Tunnel Commuter Rail | G75: 100 | H75: Linear Feet | I75: 10511 - Guideway Elements, Guideway, Underground, Tunnel Commuter Rail
B76: 10512 | C76: Guideway Elements | D76: Guideway | E76: Underground | F76: Tunnel Heavy Rail | G76: 100 | H76: Linear Feet | I76: 10512 - Guideway Elements, Guideway, Underground, Tunnel Heavy Rail
B77: 10513 | C77: Guideway Elements | D77: Guideway | E77: Underground | F77: Tunnel Light Rail | G77: 100 | H77: Linear Feet | I77: 10513 - Guideway Elements, Guideway, Underground, Tunnel Light Rail
B78: 10520 | C78: Guideway Elements | D78: Guideway | E78: Underground | F78: Cut & Cover | G78: 100 | H78: Linear Feet | I78: 10520 - Guideway Elements, Guideway, Underground, Cut & Cover
B79: 10521 | C79: Guideway Elements | D79: Guideway | E79: Underground | F79: Cut & Cover Commuter Rail | G79: 100 | H79: Linear Feet | I79: 10521 - Guideway Elements, Guideway, Underground, Cut & Cover Commuter Rail
B80: 10522 | C80: Guideway Elements | D80: Guideway | E80: Underground | F80: Cut & Cover Heavy Rail | G80: 100 | H80: Linear Feet | I80: 10522 - Guideway Elements, Guideway, Underground, Cut & Cover Heavy Rail
B81: 10523 | C81: Guideway Elements | D81: Guideway | E81: Underground | F81: Cut & Cover Light Rail | G81: 100 | H81: Linear Feet | I81: 10523 - Guideway Elements, Guideway, Underground, Cut & Cover Light Rail
B82: 10530 | C82: Guideway Elements | D82: Guideway | E82: Underground | F82: Foot Walk | G82: 150 | H82: Linear Feet | I82: 10530 - Guideway Elements, Guideway, Underground, Foot Walk
B83: 10540 | C83: Guideway Elements | D83: Guideway | E83: Underground | F83: Tube | G83: 100 | H83: Linear Feet | I83: 10540 - Guideway Elements, Guideway, Underground, Tube
B84: 10541 | C84: Guideway Elements | D84: Guideway | E84: Underground | F84: Tube Commuter Rail | G84: 100 | H84: Linear Feet | I84: 10541 - Guideway Elements, Guideway, Underground, Tube Commuter Rail
B85: 10542 | C85: Guideway Elements | D85: Guideway | E85: Underground | F85: Tube Heavy Rail | G85: 100 | H85: Linear Feet | I85: 10542 - Guideway Elements, Guideway, Underground, Tube Heavy Rail
B86: 10543 | C86: Guideway Elements | D86: Guideway | E86: Underground | F86: Tube Light Rail | G86: 100 | H86: Linear Feet | I86: 10543 - Guideway Elements, Guideway, Underground, Tube Light Rail
B87: 10600 | C87: Guideway Elements | D87: Guideway | E87: Retained Cut | F87: - | G87: 100 | H87: Linear Feet | I87: 10600 - Guideway Elements, Guideway, Retained Cut
B88: 10601 | C88: Guideway Elements | D88: Guideway | E88: Retained Cut | F88: Commuter Rail | G88: 80 | H88: Linear Feet | I88: 10601 - Guideway Elements, Guideway, Retained Cut, Commuter Rail
B89: 10602 | C89: Guideway Elements | D89: Guideway | E89: Retained Cut | F89: Heavy Rail | G89: 80 | H89: Linear Feet | I89: 10602 - Guideway Elements, Guideway, Retained Cut, Heavy Rail
B90: 10603 | C90: Guideway Elements | D90: Guideway | E90: Retained Cut | F90: Light Rail | G90: 80 | H90: Linear Feet | I90: 10603 - Guideway Elements, Guideway, Retained Cut, Light Rail
B91: 10605 | C91: Guideway Elements | D91: Guideway | E91: Retained Cut | F91: Box Culvert | G91: 80 | H91: Linear Feet | I91: 10605 - Guideway Elements, Guideway, Retained Cut, Box Culvert
B92: 11000 | C92: Guideway Elements | D92: Trackwork | E92: - | F92: - | G92: 44 | H92: Track Feet | I92: 11000 - Guideway Elements, Trackwork
B93: 11100 | C93: Guideway Elements | D93: Trackwork | E93: Direct Fixation | F93: - | G93: 44 | H93: Track Feet | I93: 11100 - Guideway Elements, Trackwork, Direct Fixation
B94: 11101 | C94: Guideway Elements | D94: Trackwork | E94: Direct Fixation | F94: Tangent | G94: 44 | H94: Track Feet | I94: 11101 - Guideway Elements, Trackwork, Direct Fixation, Tangent
B95: 11102 | C95: Guideway Elements | D95: Trackwork | E95: Direct Fixation | F95: Curve | G95: 36 | H95: Track Feet | I95: 11102 - Guideway Elements, Trackwork, Direct Fixation, Curve
B96: 11103 | C96: Guideway Elements | D96: Trackwork | E96: Direct Fixation | F96: Guarded | G96: 44 | H96: Track Feet | I96: 11103 - Guideway Elements, Trackwork, Direct Fixation, Guarded
B97: 11104 | C97: Guideway Elements | D97: Trackwork | E97: Direct Fixation | F97: Platform Tangent | G97: 44 | H97: Track Feet | I97: =B97&IF(NOT(C97="-")," - "&C97,"")&IF(NOT(D97="-"),", "&D97,"")&IF(NOT(E97="-"),", "&E97,"")&IF(NOT(F97="-"),", "&F97,"") -> 11104 - Guideway Elements, Trackwork, Direct Fixation, Platform Tangent
B98: 11105 | C98: Guideway Elements | D98: Trackwork | E98: Direct Fixation | F98: Platform Curved | G98: 36 | H98: Track Feet | I98: 11105 - Guideway Elements, Trackwork, Direct Fixation, Platform Curved
B99: 11106 | C99: Guideway Elements | D99: Trackwork | E99: Direct Fixation | F99: Platform Guarded | G99: 44 | H99: Track Feet | I99: 11106 - Guideway Elements, Trackwork, Direct Fixation, Platform Guarded
B100: 11200 | C100: Guideway Elements | D100: Trackwork | E100: Ballasted | F100: - | G100: 44 | H100: Track Feet | I100: 11200 - Guideway Elements, Trackwork, Ballasted
B101: 11201 | C101: Guideway Elements | D101: Trackwork | E101: Ballasted | F101: Tangent | G101: 44 | H101: Track Feet | I101: 11201 - Guideway Elements, Trackwork, Ballasted, Tangent
B102: 11202 | C102: Guideway Elements | D102: Trackwork | E102: Ballasted | F102: Curve | G102: 36 | H102: Track Feet | I102: 11202 - Guideway Elements, Trackwork, Ballasted, Curve
B103: 11203 | C103: Guideway Elements | D103: Trackwork | E103: Ballasted | F103: Guarded | G103: 44 | H103: Track Feet | I103: 11203 - Guideway Elements, Trackwork, Ballasted, Guarded
B104: 11204 | C104: Guideway Elements | D104: Trackwork | E104: Ballasted | F104: Platform Tangent | G104: 44 | H104: Track Feet | I104: 11204 - Guideway Elements, Trackwork, Ballasted, Platform Tangent
B105: 11205 | C105: Guideway Elements | D105: Trackwork | E105: Ballasted | F105: Platform Curved | G105: 36 | H105: Track Feet | I105: 11205 - Guideway Elements, Trackwork, Ballasted, Platform Curved
B106: 11206 | C106: Guideway Elements | D106: Trackwork | E106: Ballasted | F106: Platform Guarded | G106: 44 | H106: Track Feet | I106: 11206 - Guideway Elements, Trackwork, Ballasted, Platform Guarded
B107: 11211 | C107: Guideway Elements | D107: Trackwork | E107: Ballasted | F107: Tangent - Concrete Tie | G107: 70 | H107: Track Feet | I107: 11211 - Guideway Elements, Trackwork, Ballasted, Tangent - Concrete Tie
B108: 11212 | C108: Guideway Elements | D108: Trackwork | E108: Ballasted | F108: Tangent - Wood Tie | G108: 70 | H108: Track Feet | I108: 11212 - Guideway Elements, Trackwork, Ballasted, Tangent - Wood Tie
B109: 11213 | C109: Guideway Elements | D109: Trackwork | E109: Ballasted | F109: Curve - Concrete Tie | G109: 35 | H109: Track Feet | I109: 11213 - Guideway Elements, Trackwork, Ballasted, Curve - Concrete Tie
B110: 11214 | C110: Guideway Elements | D110: Trackwork | E110: Ballasted | F110: Curve - Wood Tie | G110: 35 | H110: Track Feet | I110: 11214 - Guideway Elements, Trackwork, Ballasted, Curve - Wood Tie
B111: 11300 | C111: Guideway Elements | D111: Trackwork | E111: Embedded | F111: - | G111: 44 | H111: Track Feet | I111: 11300 - Guideway Elements, Trackwork, Embedded
B112: 11301 | C112: Guideway Elements | D112: Trackwork | E112: Embedded | F112: Tangent | G112: 44 | H112: Track Feet | I112: 11301 - Guideway Elements, Trackwork, Embedded, Tangent
B113: 11302 | C113: Guideway Elements | D113: Trackwork | E113: Embedded | F113: Curve | G113: 36 | H113: Track Feet | I113: 11302 - Guideway Elements, Trackwork, Embedded, Curve
B114: 11303 | C114: Guideway Elements | D114: Trackwork | E114: Embedded | F114: At-Grade Crossings | G114: 12 | H114: Track Feet | I114: 11303 - Guideway Elements, Trackwork, Embedded, At-Grade Crossings
B115: 11400 | C115: Guideway Elements | D115: Trackwork | E115: Special | F115: - | G115: 29 | H115: Track Feet | I115: 11400 - Guideway Elements, Trackwork, Special
B116: 11401 | C116: Guideway Elements | D116: Trackwork | E116: Special | F116: Diamond Crossover | G116: 29 | H116: Each | I116: 11401 - Guideway Elements, Trackwork, Special, Diamond Crossover
B117: 11402 | C117: Guideway Elements | D117: Trackwork | E117: Special | F117: Direct Fixation Diamond Crossover | G117: 29 | H117: Each | I117: 11402 - Guideway Elements, Trackwork, Special, Direct Fixation Diamond Crossover
B118: 11403 | C118: Guideway Elements | D118: Trackwork | E118: Special | F118: Ballasted Diamond Crossover | G118: 29 | H118: Each | I118: 11403 - Guideway Elements, Trackwork, Special, Ballasted Diamond Crossover
B119: 11404 | C119: Guideway Elements | D119: Trackwork | E119: Special | F119: Single Crossover | G119: 29 | H119: Each | I119: 11404 - Guideway Elements, Trackwork, Special, Single Crossover
B120: 11405 | C120: Guideway Elements | D120: Trackwork | E120: Special | F120: Direct Fixation Single Crossover | G120: 29 | H120: Each | I120: 11405 - Guideway Elements, Trackwork, Special, Direct Fixation Single Crossover
B121: 11406 | C121: Guideway Elements | D121: Trackwork | E121: Special | F121: Ballasted Single Crossover | G121: 29 | H121: Each | I121: 11406 - Guideway Elements, Trackwork, Special, Ballasted Single Crossover
B122: 11407 | C122: Guideway Elements | D122: Trackwork | E122: Special | F122: Turnout | G122: 30 | H122: Each | I122: 11407 - Guideway Elements, Trackwork, Special, Turnout
B123: 11408 | C123: Guideway Elements | D123: Trackwork | E123: Special | F123: Direct Fixation Turnout | G123: 30 | H123: Each | I123: 11408 - Guideway Elements, Trackwork, Special, Direct Fixation Turnout
B124: 11409 | C124: Guideway Elements | D124: Trackwork | E124: Special | F124: Ballasted Turnout | G124: 30 | H124: Each | I124: 11409 - Guideway Elements, Trackwork, Special, Ballasted Turnout
B125: 11410 | C125: Guideway Elements | D125: Trackwork | E125: Special | F125: Turntable | G125: 26 | H125: Each | I125: 11410 - Guideway Elements, Trackwork, Special, Turntable
B126: 11500 | C126: Guideway Elements | D126: Trackwork | E126: Yard | F126: - | G126: 53 | H126: Track Feet | I126: 11500 - Guideway Elements, Trackwork, Yard
B127: 11600 | C127: Guideway Elements | D127: Trackwork | E127: Ties | F127: - | G127: 15 | H127: Each | I127: 11600 - Guideway Elements, Trackwork, Ties
B128: 11601 | C128: Guideway Elements | D128: Trackwork | E128: Ties | F128: Wood | G128: 15 | H128: Each | I128: 11601 - Guideway Elements, Trackwork, Ties, Wood
B129: 11602 | C129: Guideway Elements | D129: Trackwork | E129: Ties | F129: Concrete | G129: 15 | H129: Each | I129: 11602 - Guideway Elements, Trackwork, Ties, Concrete
B130: 12000 | C130: Guideway Elements | D130: Special Structures | E130: - | F130: - | G130: 30 | H130: Each | I130: 12000 - Guideway Elements, Special Structures
B131: 12100 | C131: Guideway Elements | D131: Special Structures | E131: Fencing | F131: - | G131: 25 | H131: Each | I131: 12100 - Guideway Elements, Special Structures, Fencing
B132: 12200 | C132: Guideway Elements | D132: Special Structures | E132: Retaining Walls | F132: - | G132: 40 | H132: Linear Feet | I132: 12200 - Guideway Elements, Special Structures, Retaining Walls
B133: 13000 | C133: Guideway Elements | D133: Bus Guideway | E133: - | F133: - | G133: 30 | H133: Linear Feet | I133: 13000 - Guideway Elements, Bus Guideway
B134: 13100 | C134: Guideway Elements | D134: Bus Guideway | E134: At Grade | F134: - | G134: 30 | H134: Linear Feet | I134: 13100 - Guideway Elements, Bus Guideway, At Grade
B135: 13200 | C135: Guideway Elements | D135: Bus Guideway | E135: Turnaround | F135: - | G135: 80 | H135: Linear Feet | I135: 13200 - Guideway Elements, Bus Guideway, Turnaround
B136: 13300 | C136: Guideway Elements | D136: Bus Guideway | E136: Elevated Fill | F136: - | G136: 80 | H136: Linear Feet | I136: 13300 - Guideway Elements, Bus Guideway, Elevated Fill
B137: 13400 | C137: Guideway Elements | D137: Bus Guideway | E137: Elevated Structure | F137: - | G137: 100 | H137: Linear Feet | I137: 13400 - Guideway Elements, Bus Guideway, Elevated Structure
B138: 13410 | C138: Guideway Elements | D138: Bus Guideway | E138: Elevated Structure | F138: Elevated Roadway | G138: 80 | H138: Linear Feet | I138: 13410 - Guideway Elements, Bus Guideway, Elevated Structure, Elevated Roadway
B139: 13420 | C139: Guideway Elements | D139: Bus Guideway | E139: Elevated Structure | F139: Bridge | G139: 80 | H139: Linear Feet | I139: 13420 - Guideway Elements, Bus Guideway, Elevated Structure, Bridge
B140: 13500 | C140: Guideway Elements | D140: Bus Guideway | E140: Subway | F140: - | G140: 100 | H140: Linear Feet | I140: 13500 - Guideway Elements, Bus Guideway, Subway
B141: 20000 | C141: Facilities | D141: - | E141: - | F141: - | G141: 80 | H141: Each | I141: 20000 - Facilities
B142: 21000 | C142: Facilities | D142: Buildings | E142: - | F142: - | G142: 80 | H142: Each | I142: 21000 - Facilities, Buildings
B143: 21100 | C143: Facilities | D143: Buildings | E143: Administration | F143: - | G143: 80 | H143: Each | I143: 21100 - Facilities, Buildings, Administration
B144: 21120 | C144: Facilities | D144: Buildings | E144: Administration | F144: Police | G144: 80 | H144: Each | I144: 21120 - Facilities, Buildings, Administration, Police
B145: 21200 | C145: Facilities | D145: Buildings | E145: Maintenance | F145: - | G145: 80 | H145: Each | I145: 21200 - Facilities, Buildings, Maintenance
B146: 21210 | C146: Facilities | D146: Buildings | E146: Maintenance | F146: Bus | G146: 80 | H146: Each | I146: 21210 - Facilities, Buildings, Maintenance, Bus
B147: 21211 | C147: Facilities | D147: Buildings | E147: Maintenance | F147: Bus Stratum 1 < 200 Vehicles | G147: 80 | H147: Each | I147: 21211 - Facilities, Buildings, Maintenance, Bus Stratum 1 < 200 Vehicles
B148: 21212 | C148: Facilities | D148: Buildings | E148: Maintenance | F148: Bus Stratum 1 200 to 300 Vehicles | G148: 80 | H148: Each | I148: 21212 - Facilities, Buildings, Maintenance, Bus Stratum 1 200 to 300 Vehicles
B149: 21213 | C149: Facilities | D149: Buildings | E149: Maintenance | F149: Bus Stratum 1 > 300 Vehicles | G149: 80 | H149: Each | I149: 21213 - Facilities, Buildings, Maintenance, Bus Stratum 1 > 300 Vehicles
B150: 21214 | C150: Facilities | D150: Buildings | E150: Maintenance | F150: Bus Stratum 2 < 200 Vehicles | G150: 80 | H150: Each | I150: 21214 - Facilities, Buildings, Maintenance, Bus Stratum 2 < 200 Vehicles
B151: 21215 | C151: Facilities | D151: Buildings | E151: Maintenance | F151: Bus Stratum 2 200 to 300 Vehicles | G151: 80 | H151: Each | I151: 21215 - Facilities, Buildings, Maintenance, Bus Stratum 2 200 to 300 Vehicles
B152: 21216 | C152: Facilities | D152: Buildings | E152: Maintenance | F152: Bus Stratum 3 < 200 Vehicles | G152: 80 | H152: Each | I152: 21216 - Facilities, Buildings, Maintenance, Bus Stratum 3 < 200 Vehicles
B153: 21217 | C153: Facilities | D153: Buildings | E153: Maintenance | F153: Bus Stratum 3 200 to 300 Vehicles | G153: 80 | H153: Each | I153: 21217 - Facilities, Buildings, Maintenance, Bus Stratum 3 200 to 300 Vehicles
B154: 21218 | C154: Facilities | D154: Buildings | E154: Maintenance | F154: Bus Stratum 4 < 200 Vehicles | G154: 80 | H154: Each | I154: 21218 - Facilities, Buildings, Maintenance, Bus Stratum 4 < 200 Vehicles
B155: 21219 | C155: Facilities | D155: Buildings | E155: Maintenance | F155: Bus Stratum 4 200 to 300 Vehicles | G155: 80 | H155: Each | I155: 21219 - Facilities, Buildings, Maintenance, Bus Stratum 4 200 to 300 Vehicles
B156: 21220 | C156: Facilities | D156: Buildings | E156: Maintenance | F156: Rail | G156: 80 | H156: Each | I156: 21220 - Facilities, Buildings, Maintenance, Rail
B157: 21221 | C157: Facilities | D157: Buildings | E157: Maintenance | F157: Rail Commuter Rail | G157: 80 | H157: Each | I157: 21221 - Facilities, Buildings, Maintenance, Rail Commuter Rail
B158: 21222 | C158: Facilities | D158: Buildings | E158: Maintenance | F158: Rail Heavy Rail | G158: 80 | H158: Each | I158: 21222 - Facilities, Buildings, Maintenance, Rail Heavy Rail
B159: 21223 | C159: Facilities | D159: Buildings | E159: Maintenance | F159: Rail Light Rail | G159: 80 | H159: Each | I159: 21223 - Facilities, Buildings, Maintenance, Rail Light Rail
B160: 21230 | C160: Facilities | D160: Buildings | E160: Maintenance | F160: Utilities | G160: 70 | H160: Each | I160: 21230 - Facilities, Buildings, Maintenance, Utilities
B161: 21500 | C161: Facilities | D161: Buildings | E161: - | F161: - | G161: 70 | H161: Linear Feet Guideway | I161: =B161&IF(NOT(C161="-")," - "&C161,"")&IF(NOT(D161="-"),", "&D161,"")&IF(NOT(E161="-"),", "&E161,"")&IF(NOT(F161="-"),", "&F161,"") -> 21500 - Facilities, Buildings
B162: 21501 | C162: Facilities | D162: Buildings | E162: Building Components | F162: Electrical | G162: 40 | H162: Linear Feet Guideway | I162: 21501 - Facilities, Buildings, Building Components, Electrical
B163: 21502 | C163: Facilities | D163: Buildings | E163: Building Components | F163: Fire Alarm | G163: 40 | H163: Linear Feet Guideway | I163: 21502 - Facilities, Buildings, Building Components, Fire Alarm
B164: 21503 | C164: Facilities | D164: Buildings | E164: Building Components | F164: Plumbing | G164: 40 | H164: Linear Feet Guideway | I164: 21503 - Facilities, Buildings, Building Components, Plumbing
B165: 21504 | C165: Facilities | D165: Buildings | E165: Building Components | F165: Drainage | G165: 40 | H165: Linear Feet Guideway | I165: 21504 - Facilities, Buildings, Building Components, Drainage
B166: 21505 | C166: Facilities | D166: Buildings | E166: Building Components | F166: HVAC | G166: 40 | H166: Each | I166: 21505 - Facilities, Buildings, Building Components, HVAC
B167: 21506 | C167: Facilities | D167: Buildings | E167: Building Components | F167: Boiler | G167: 40 | H167: Each | I167: 21506 - Facilities, Buildings, Building Components, Boiler
B168: 21507 | C168: Facilities | D168: Buildings | E168: Building Components | F168: Roof | G168: 40 | H168: Linear Feet Guideway | I168: 21507 - Facilities, Buildings, Building Components, Roof
B169: 21508 | C169: Facilities | D169: Buildings | E169: Building Components | F169: Exterior | G169: 40 | H169: Each | I169: 21508 - Facilities, Buildings, Building Components, Exterior
B170: 21509 | C170: Facilities | D170: Buildings | E170: Building Components | F170: Access and Parking | G170: 40 | H170: Space | I170: 21509 - Facilities, Buildings, Building Components, Access and Parking
B171: 21510 | C171: Facilities | D171: Buildings | E171: Building Components | F171: Elevators and Conveying Systems | G171: 25 | H171: Each | I171: 21510 - Facilities, Buildings, Building Components, Elevators and Conveying Systems
B172: 21511 | C172: Facilities | D172: Buildings | E172: Building Components | F172: Built-in Equipment and Specialties | G172: 25 | H172: Each | I172: 21511 - Facilities, Buildings, Building Components, Built-in Equipment and Specialties
B173: 21512 | C173: Facilities | D173: Buildings | E173: Building Components | F173: Generators | G173: 15 | H173: Each | I173: 21512 - Facilities, Buildings, Building Components, Generators
B174: 21513 | C174: Facilities | D174: Buildings | E174: Building Components | F174: Interior | G174: 15 | H174: Each | I174: 21513 - Facilities, Buildings, Building Components, Interior
B175: 21514 | C175: Facilities | D175: Buildings | E175: Building Components | F175: Fencing | G175: 15 | H175: Each | I175: 21514 - Facilities, Buildings, Building Components, Fencing
B176: 21515 | C176: Facilities | D176: Buildings | E176: Building Components | F176: Other | G176: 15 | H176: Each | I176: 21515 - Facilities, Buildings, Building Components, Other
B177: 22000 | C177: Facilities | D177: Storage Yard | E177: - | F177: - | G177: 50 | H177: Each | I177: 22000 - Facilities, Storage Yard
B178: 22200 | C178: Facilities | D178: Storage Yard | E178: - | F178: - | G178: 50 | H178: Each | I178: 22200 - Facilities, Storage Yard
B179: 22210 | C179: Facilities | D179: Storage Yard | E179: Rail | F179: - | G179: 50 | H179: Each | I179: 22210 - Facilities, Storage Yard, Rail
B180: 22211 | C180: Facilities | D180: Storage Yard | E180: Rail | F180: Commuter Rail | G180: 50 | H180: Each | I180: 22211 - Facilities, Storage Yard, Rail, Commuter Rail
B181: 22212 | C181: Facilities | D181: Storage Yard | E181: Rail | F181: Heavy Rail | G181: 50 | H181: Each | I181: 22212 - Facilities, Storage Yard, Rail, Heavy Rail
B182: 22213 | C182: Facilities | D182: Storage Yard | E182: Rail | F182: Light Rail | G182: 50 | H182: Each | I182: 22213 - Facilities, Storage Yard, Rail, Light Rail
B183: 22300 | C183: Facilities | D183: Storage Yard | E183: Bus | F183: Bus Parking | G183: 40 | H183: Each | I183: 22300 - Facilities, Storage Yard, Bus, Bus Parking
B184: 22400 | C184: Facilities | D184: Buildings | E184: Bus Turnaround Facility | F184: - | G184: 80 | H184: Each | I184: 22400 - Facilities, Buildings, Bus Turnaround Facility
B185: 23000 | C185: Facilities | D185: Equipment | E185: - | F185: - | G185: 15 | H185: Each | I185: 23000 - Facilities, Equipment
B186: 23100 | C186: Facilities | D186: Equipment | E186: MIS/IT/Network Systems | F186: - | G186: 6 | H186: Each | I186: 23100 - Facilities, Equipment, MIS/IT/Network Systems
B187: 23101 | C187: Facilities | D187: Equipment | E187: MIS/IT/Network Systems | F187: Software | G187: 6 | H187: Each | I187: 23101 - Facilities, Equipment, MIS/IT/Network Systems, Software
B188: 23102 | C188: Facilities | D188: Equipment | E188: MIS/IT/Network Systems | F188: Computers/Hardware | G188: 6 | H188: Each | I188: 23102 - Facilities, Equipment, MIS/IT/Network Systems, Computers/Hardware
B189: 23200 | C189: Facilities | D189: Equipment | E189: Furniture | F189: - | G189: 15 | H189: Each | I189: 23200 - Facilities, Equipment, Furniture
B190: 23300 | C190: Facilities | D190: Equipment | E190: Maintenance | F190: - | G190: 15 | H190: Each | I190: 23300 - Facilities, Equipment, Maintenance
B191: 23301 | C191: Facilities | D191: Equipment | E191: Maintenance | F191: Bus | G191: 15 | H191: Each | I191: 23301 - Facilities, Equipment, Maintenance, Bus
B192: 23310 | C192: Facilities | D192: Equipment | E192: Maintenance | F192: Rail | G192: 15 | H192: Each | I192: 23310 - Facilities, Equipment, Maintenance, Rail
B193: 23311 | C193: Facilities | D193: Equipment | E193: Maintenance | F193: Rail Commuter Rail | G193: 15 | H193: Each | I193: 23311 - Facilities, Equipment, Maintenance, Rail Commuter Rail
B194: 23312 | C194: Facilities | D194: Equipment | E194: Maintenance | F194: Rail Heavy Rail | G194: 15 | H194: Each | I194: 23312 - Facilities, Equipment, Maintenance, Rail Heavy Rail
B195: 23313 | C195: Facilities | D195: Equipment | E195: Maintenance | F195: Rail Light Rail | G195: 15 | H195: Each | I195: 23313 - Facilities, Equipment, Maintenance, Rail Light Rail
B196: 23400 | C196: Facilities | D196: Equipment | E196: Maintenance | F196: Pollution Treatment | G196: 15 | H196: Each | I196: 23400 - Facilities, Equipment, Maintenance, Pollution Treatment
B197: 23402 | C197: Facilities | D197: Equipment | E197: Maintenance | F197: Bus Washer | G197: 80 | H197: Each | I197: 23402 - Facilities, Equipment, Maintenance, Bus Washer
B198: 23403 | C198: Facilities | D198: Equipment | E198: Maintenance | F198: Train Washer | G198: 80 | H198: Each | I198: 23403 - Facilities, Equipment, Maintenance, Train Washer
B199: 23404 | C199: Facilities | D199: Equipment | E199: Maintenance | F199: Vehicle Paintbooth | G199: 20 | H199: Each | I199: 23404 - Facilities, Equipment, Maintenance, Vehicle Paintbooth
B200: 23405 | C200: Facilities | D200: Equipment | E200: Maintenance | F200: Fuel Island | G200: 80 | H200: Each | I200: 23405 - Facilities, Equipment, Maintenance, Fuel Island
B201: 23406 | C201: Facilities | D201: Equipment | E201: Maintenance | F201: Dynamoneters | G201: 15 | H201: Each | I201: 23406 - Facilities, Equipment, Maintenance, Dynamoneters
B202: 23407 | C202: Facilities | D202: Equipment | E202: Maintenance | F202: Lifts - Portable | G202: 15 | H202: Each | I202: 23407 - Facilities, Equipment, Maintenance, Lifts - Portable
B203: 23408 | C203: Facilities | D203: Equipment | E203: Maintenance | F203: Lifts - Fixed | G203: 20 | H203: Each | I203: 23408 - Facilities, Equipment, Maintenance, Lifts - Fixed
... 431 more rows

Sheet Inflation (hidden)
B2: = rows.CostIndex
B3: = rng.CostIndexYear | E3: = rng.CostIndexCPI | F3: = rng.CostIndexMeans
B4: Inf_Year | C4: GDP | D4: GDP_Structures | E4: CPI | F4: Means_Augmented
B5: 1850 | F5: 0.5317268966
B6: 1851 | F6: 0.5503954422 | L6: 17.90378824 | M6: 17.9038
B7: 1852 | F7: 0.569719427 | L7: 153.3450767 | M7: 153.3451
B8: 1853 | F8: 0.5897218628
B9: 1854 | F9: 0.6104265696 | L9: =L7/L6 -> 8.564951433 | M9: =M7/M6 -> 8.564947106
B10: 1855 | F10: 0.6318582036
B11: 1856 | F11: 0.6540422868
B12: 1857 | F12: 0.6770052371
B13: 1858 | F13: 0.7007743999
B14: 1859 | F14: 0.7253780807
B15: 1860 | F15: 0.7508455789
B16: 1861 | F16: 0.7772072225
B17: 1862 | F17: 0.8044944043
B18: 1863 | F18: 0.8327396193
B19: 1864 | F19: 0.8619765033
B20: 1865 | F20: 0.892239873
B21: 1866 | F21: 0.9235657677
B22: 1867 | F22: 0.9559914919
B23: 1868 | F23: 0.9895556597
B24: 1869 | F24: 1.024298241
B25: 1870 | F25: 1.060260609
B26: 1871 | F26: 1.09748559
B27: 1872 | F27: 1.136017513
B28: 1873 | F28: 1.175902264
B29: 1874 | F29: 1.217187339
B30: 1875 | F30: 1.259921904
B31: 1876 | F31: 1.304156848
B32: 1877 | F32: 1.349944849
B33: 1878 | F33: 1.397340433
B34: 1879 | F34: 1.446400042
B35: 1880 | F35: 1.497182099
B36: 1881 | F36: 1.549747076
B37: 1882 | F37: 1.604157572
B38: 1883 | F38: 1.66047838
B39: 1884 | F39: 1.718776572
B40: 1885 | F40: 1.779121571
B41: 1886 | F41: 1.841585238
B42: 1887 | F42: 1.90624196
B43: 1888 | F43: 1.973168733
B44: 1889 | F44: 2.042445255
B45: 1890 | F45: 2.114154027
B46: 1891 | F46: 2.188380441
B47: 1892 | F47: 2.265212891
B48: 1893 | F48: 2.344742872
B49: 1894 | F49: 2.427065094
B50: 1895 | F50: 2.512277589
B51: 1896 | F51: 2.600481832
B52: 1897 | F52: 2.691782863
B53: 1898 | F53: 2.786289407
B54: 1899 | F54: 2.884114007
B55: 1900 | F55: 2.985373157
B56: 1901 | F56: 3.090187443
B57: 1902 | F57: 3.198681683
B58: 1903 | F58: 3.310985076
B59: 1904 | F59: 3.427231361
B60: 1905 | F60: 3.547558968
B61: 1906 | F61: 3.67211119
B62: 1907 | F62: 3.80103635
B63: 1908 | F63: 3.934487979
B64: 1909 | F64: 4.072624997
B65: 1910 | F65: 4.215611907
B66: 1911 | F66: 4.363618983
B67: 1912 | F67: 4.51682248
B68: 1913 | E68: 4.039 | F68: 4.675404841
B69: 1914 | E69: 4.08 | F69: 4.839554913
B70: 1915 | E70: 4.12 | F70: 4.888439306
B71: 1916 | E71: 4.447 | F71: 4.937323699
B72: 1917 | E72: 5.222 | F72: 5.279514451
B73: 1918 | E73: 6.16 | F73: 6.257202312
B74: 1919 | E74: 7.058 | F74: 7.381543353
B75: 1920 | E75: 8.159 | F75: 8.505884393
B76: 1921 | E76: 7.303 | F76: 10.16795376
B77: 1922 | E77: 6.854 | F77: 8.652537572
B78: 1923 | E78: 6.976 | F78: 8.212578035
B79: 1924 | E79: 6.976 | F79: 8.408115607
B80: 1925 | E80: 7.139 | F80: 8.359231214
B81: 1926 | E81: 7.221 | F81: 8.652537572
B82: 1927 | E82: 7.099 | F82: 8.554768786
B83: 1928 | E83: 6.976 | F83: 8.457
B84: 1929 | C84: 3.235 | D84: 8.778 | E84: 6.976 | F84: 8.359231214
B85: 1930 | C85: 3.062 | D85: 8.457 | E85: 6.813 | F85: 8.457
B86: 1931 | C86: 2.802 | D86: 7.587 | E86: 6.201 | F86: 7.587
B87: 1932 | C87: 2.432 | D87: 6.7 | E87: 5.589 | F87: 6.7
B88: 1933 | C88: 2.457 | D88: 6.514 | E88: 5.304 | F88: 6.514
B89: 1934 | C89: 2.464 | D89: 6.871 | E89: 5.467 | F89: 6.871
B90: 1935 | C90: 2.579 | D90: 7.012 | E90: 5.589 | F90: 7.012
B91: 1936 | C91: 2.575 | D91: 7.097 | E91: 5.671 | F91: 7.097
B92: 1937 | C92: 2.926 | D92: 7.402 | E92: 5.875 | F92: 7.402
B93: 1938 | C93: 2.871 | D93: 7.19 | E93: 5.752 | F93: 7.19
B94: 1939 | C94: 2.839 | D94: 7.12 | E94: 5.671 | F94: 7.12
B95: 1940 | C95: 2.885 | D95: 7.205 | E95: 5.711 | F95: 7.205
B96: 1941 | C96: 3.087 | D96: 7.692 | E96: 5.997 | F96: 7.692
B97: 1942 | C97: 3.444 | D97: 8.304 | E97: 6.65 | F97: 8.304
B98: 1943 | C98: 3.743 | D98: 8.683 | E98: 7.058 | F98: 8.683
B99: 1944 | C99: 3.826 | D99: 8.89 | E99: 7.18 | F99: 8.89
B100: 1945 | C100: 3.996 | D100: 9.12 | E100: 7.343 | F100: 9.12
B101: 1946 | C101: 4.476 | D101: 10.296 | E101: 7.955 | F101: 10.296
B102: 1947 | C102: 5.425 | D102: 11.426 | E102: 9.098 | F102: 11.426
B103: 1948 | C103: 6.035 | D103: 12.067 | E103: 9.832 | F103: 12.067
B104: 1949 | C104: 6.014 | D104: 12.046 | E104: 9.71 | F104: 12.046
B105: 1950 | C105: 6.089 | D105: 12.195 | E105: 9.832 | F105: 12.195
B106: 1951 | C106: 6.791 | D106: 13.06 | E106: 10.607 | F106: 13.06
B107: 1952 | C107: 6.971 | D107: 13.286 | E107: 10.811 | F107: 13.286
B108: 1953 | C108: 7.108 | D108: 13.447 | E108: 10.893 | F108: 13.447
B109: 1954 | C109: 7.021 | D109: 13.572 | E109: 10.974 | F109: 13.572
B110: 1955 | C110: 7.162 | D110: 13.801 | E110: 10.933 | F110: 13.801
B111: 1956 | C111: 7.775 | D111: 14.271 | E111: 11.097 | F111: 14.271
B112: 1957 | C112: 8.108 | D112: 14.744 | E112: 11.464 | F112: 14.744
B113: 1958 | C113: 7.978 | D113: 15.08 | E113: 11.79 | F113: 15.08
B114: 1959 | C114: 8.022 | D114: 15.287 | E114: 11.872 | F114: 15.287
B115: 1960 | C115: 8.012 | D115: 15.495 | E115: 12.076 | F115: 15.495
B116: 1961 | C116: 7.963 | D116: 15.66 | E116: 12.198 | F116: 15.66
B117: 1962 | C117: 8.026 | D117: 15.85 | E117: 12.32 | F117: 15.85
B118: 1963 | C118: 8.095 | D118: 16.032 | E118: 12.484 | F118: 16.032
B119: 1964 | C119: 8.21 | D119: 16.276 | E119: 12.647 | F119: 16.276
B120: 1965 | C120: 8.449 | D120: 16.574 | E120: 12.851 | F120: 16.574
B121: 1966 | C121: 8.753 | D121: 17.039 | E121: 13.218 | F121: 17.039
B122: 1967 | C122: 9.025 | D122: 17.533 | E122: 13.626 | F122: 17.533
B123: 1968 | C123: 9.479 | D123: 18.28 | E123: 14.197 | F123: 18.28
B124: 1969 | C124: 10.103 | D124: 19.176 | E124: 14.972 | F124: 19.176
B125: 1970 | C125: 10.767 | D125: 20.189 | E125: 15.829 | F125: 20.189
B126: 1971 | C126: 11.596 | D126: 21.212 | E126: 16.523 | F126: 21.212
B127: 1972 | C127: 12.43 | D127: 22.13 | E127: 17.053 | F127: 22.13
B128: 1973 | C128: 13.393 | D128: 23.342 | E128: 18.114 | F128: 23.342
B129: 1974 | C129: 15.244 | D129: 25.443 | E129: 20.113 | F129: 25.443
B130: 1975 | C130: 17.065 | D130: 27.8 | E130: 21.948 | F130: 27.8
B131: 1976 | C131: 17.901 | D131: 29.33 | E131: 23.213 | F131: 29.33
B132: 1977 | C132: 19.454 | D132: 31.152 | E132: 24.723 | F132: 31.152
B133: 1978 | C133: 21.332 | D133: 33.343 | E133: 26.599 | F133: 33.343
B134: 1979 | C134: 23.811 | D134: 36.11 | E134: 29.618 | F134: 36.11
B135: 1980 | C135: 26.024 | D135: 39.371 | E135: 33.616 | F135: 39.371
B136: 1981 | C136: 29.603 | D136: 43.097 | E136: 37.084 | F136: 43.097
B137: 1982 | C137: 31.939 | D137: 45.759 | E137: 39.368 | F137: 45.759
B138: 1983 | C138: 31.125 | D138: 47.552 | E138: 40.633 | F138: 47.552
B139: 1984 | C139: 31.397 | D139: 49.267 | E139: 42.387 | F139: 49.267
B140: 1985 | C140: 32.144 | D140: 50.826 | E140: 43.897 | F140: 50.826
B141: 1986 | C141: 32.76 | D141: 51.849 | E141: 44.713 | F141: 51.849
B142: 1987 | C142: 33.286 | D142: 53.134 | E142: 46.345 | F142: 53.134
B143: 1988 | C143: 34.698 | D143: 55.008 | E143: 48.262 | F143: 55.008
B144: 1989 | C144: 36.057 | D144: 57.165 | E144: 50.587 | F144: 57.165
B145: 1990 | C145: 37.222 | D145: 59.305 | E145: 53.321 | F145: 59.305
B146: 1991 | C146: 37.896 | D146: 61.31 | E146: 55.565 | F146: 61.31
B147: 1992 | C147: 37.905 | D147: 62.707 | E147: 57.237 | F147: 62.707
B148: 1993 | C148: 39.016 | D148: 64.194 | E148: 58.951 | F148: 64.194
B149: 1994 | C149: 40.394 | D149: 65.564 | E149: 60.46 | F149: 65.564
B150: 1995 | C150: 42.143 | D150: 66.939 | E150: 62.174 | F150: 66.939
B151: 1996 | C151: 43.214 | D151: 68.164 | E151: 64.009 | F151: 68.164
B152: 1997 | C152: 44.864 | D152: 69.34 | E152: 65.478 | F152: 69.34
B153: 1998 | C153: 46.915 | D153: 70.119 | E153: 66.498 | F153: 70.119
B154: 1999 | C154: 48.357 | D154: 71.111 | E154: 67.967 | F154: 71.111
B155: 2000 | C155: 50.252 | D155: 72.722 | E155: 70.251 | F155: 72.722
B156: 2001 | C156: 52.884 | D156: 74.36 | E156: 72.25 | F156: 74.36
B157: 2002 | C157: 55.089 | D157: 75.515 | E157: 73.393 | F157: 75.515
B158: 2003 | C158: 57.057 | D158: 77.006 | E158: 75.065 | F158: 77.006
B159: 2004 | C159: 61.282 | D159: 79.077 | E159: 77.064 | F159: 79.077
B160: 2005 | C160: 68.841 | D160: 81.556 | E160: 79.675 | F160: 81.556
B161: 2006 | C161: 77.037 | D161: 84.071 | E161: 82.245 | F161: 84.071
B162: 2007 | C162: 81.581 | D162: 86.349 | E162: 84.588 | F162: 86.349
B163: 2008 | C163: 85.751 | D163: 88.013 | E163: 87.836 | F163: 88.013
B164: 2009 | C164: 84.186 | D164: 88.556 | E164: 87.523 | F164: 88.556
B165: 2010 | C165: 83.502 | D165: 89.632 | E165: 88.959 | F165: 89.632
B166: 2011 | C166: 86.244 | D166: 91.481 | E166: 91.767 | F166: 91.481
B167: 2012 | C167: 90.209 | D167: 93.185 | E167: 93.666 | F167: 93.185
B168: 2013 | C168: 91.474 | D168: 94.771 | E168: 95.038 | F168: 94.771
B169: 2014 | C169: 96.213 | D169: 96.421 | E169: 96.58 | F169: 96.421
B170: 2015 | C170: 97.719 | D170: 97.316 | E170: 96.694 | F170: 97.316
B171: 2016 | C171: 97.668 | D171: 98.241 | E171: 97.914 | F171: 98.241
B172: 2017 | C172: 100 | D172: 100 | E172: 100 | F172: 100
B173: 2018 | C173: 101.174 | D173: 102.291 | E173: 102.442 | F173: 102.291
B174: 2019 | C174: 105.258 | D174: 104.008 | E174: 104.299 | F174: 104.008
B175: 2020 | C175: 106.811 | D175: 105.381 | E175: 105.585 | F175: 105.381
B176: 2021 | C176: 110.459 | D176: 110.213 | E176: 110.546 | F176: 110.213
B177: 2022 | C177: 126.692 | D177: 117.973 | E177: 119.393 | F177: 117.973
B178: 2023 | F178: 122.3799938
B179: 2024 | F179: 125.6510519
B180: 2025 | F180: 128.4727447
B181: 2026 | F181: 131.133143
B182: 2027 | F182: 133.8503055
B183: 2028 | F183: 136.7608566
B184: 2029 | F184: 139.833952
B185: 2030 | F185: 142.9838079
B186: 2031 | F186: 146.2769868
B187: 2032 | F187: 149.6396276
B188: 2033 | F188: 153.0821533
B189: 2034 | F189: 156.5271036
B190: 2035 | F190: 159.9045916
B191: 2036 | F191: 163.2833044
B192: 2037 | F192: 166.7150821
B193: 2038 | F193: 170.2266948
B194: 2039 | F194: 173.77835
B195: 2040 | F195: 177.4513572
B196: 2041 | F196: 181.2265952
B197: 2042 | F197: 185.0726448
B198: 2043 | F198: 188.9837072
B199: 2044 | F199: 192.9951506
B200: 2045 | F200: 197.0962272
B201: 2046 | F201: 201.2598919
... 4 more rows

Sheet Publish (hidden)
B1: 9999 | C1: Metroville Transportation Authority | D1: =INDEX(rng.modecode,MATCH(INDEX(rows.input Input!D:D,ROW(D1)-2),rng.modeChoice,0)) ->  | E1: =INDEX(rows.input Input!F:F,ROW(E1)-2) ->  | F1: =INDEX(rng.ClassType,MATCH(INDEX(rows.input Input!H:H,ROW(F1)-2),rng.ClassChoice,0)) ->  | G1: =INDEX(rng.ClassCat,MATCH(INDEX(rows.input Input!H:H,ROW(G1)-2),rng.ClassChoice,0)) ->  | H1: =INDEX(rng.ClassSubCat,MATCH(INDEX(rows.input Input!H:H,ROW(H1)-2),rng.ClassChoice,0)) ->  | I1: =INDEX(rng.ClassElement,MATCH(INDEX(rows.input Input!H:H,ROW(I1)-2),rng.ClassChoice,0)) ->  | J1: =INDEX(rng.ClassSubElement,MATCH(INDEX(rows.input Input!H:H,ROW(J1)-2),rng.ClassChoice,0)) ->  | K1: =INDEX(rows.input Input!J:J,ROW(K1)-2) ->  | L1: =INDEX(rows.input Input!K:K,ROW(L1)-2) ->  | M1: =INDEX(rows.input Input!N:N,ROW(M1)-2) ->  | N1: FALSE | O1: =INDEX(rows.input Input!U:U,ROW(O1)-2) ->  | P1: =INDEX(rows.input Input!S:S,ROW(P1)-2) ->  | Q1: =IF(ISBLANK(INDEX(rows.input Input!P:P,ROW(Q1)-2)),"",INDEX(rows.input Input!P:P,ROW(Q1)-2)) ->  | R1: =IF(ISBLANK(INDEX(rows.input Input!Q:Q,ROW(R1)-2)),"",INDEX(rows.input Input!Q:Q,ROW(R1)-2)) ->  | S1: =IF(ISBLANK((INDEX(rows.input Input!Z:Z,ROW(S1)-2))),"",INDEX(rows.input Input!Z:Z,ROW(S1)-2)) ->  | T1: =IF(ISBLANK((INDEX(rows.input Input!AU:AU,ROW(T1)-2))),"",INDEX(rows.input Input!AU:AU,ROW(T1)-2)) ->  | U1: =INDEX(rows.input Input!BA:BA,ROW(U1)-2) ->  | V1: =INDEX(rows.input Input!BB:BB,ROW(V1)-2) ->  | W1: =IF(ISBLANK((INDEX(rows.input Input!X:X,ROW(W1)-2))),INDEX(rng.ClassEDL,MATCH(F1,rng.ClassType,0)),INDEX(rows.input Input!X:X,ROW(W1)-2)) ->  | X1: =IF(ISBLANK((INDEX(rows.input Input!AA:AA,ROW(X1)-2))),"",INDEX(rows.input Input!AA:AA,ROW(X1)-2)) ->  | Y1: =IF(INDEX(rows.input Input!M:M,ROW(Y1)-2)="Yes","Expansion","Existing") ->  | Z1: =IF(ISBLANK((INDEX(rows.input Input!AI:AI,ROW(Z1)-2))),"",INDEX(rows.input Input!AI:AI,ROW(Z1)-2)) ->  | AA1: =IF(ISBLANK((INDEX(rows.input Input!AJ:AJ,ROW(AA1)-2))),"",INDEX(rows.input Input!AJ:AJ,ROW(AA1)-2)) ->  | AB1: =IF(ISBLANK((INDEX(rows.input Input!AK:AK,ROW(AB1)-2))),"",INDEX(rows.input Input!AK:AK,ROW(AB1)-2)) ->  | AC1: =IF(ISBLANK((INDEX(rows.input Input!AL:AL,ROW(AC1)-2))),"",INDEX(rows.input Input!AL:AL,ROW(AC1)-2)) ->  | AD1: =IF(ISBLANK((INDEX(rows.input Input!AM:AM,ROW(AD1)-2))),"",INDEX(rows.input Input!AM:AM,ROW(AD1)-2)) ->  | AE1: =IF(ISBLANK((INDEX(rows.input Input!AN:AN,ROW(AE1)-2))),"",INDEX(rows.input Input!AN:AN,ROW(AE1)-2)) ->  | AF1: =IF(ISBLANK((INDEX(rows.input Input!AO:AO,ROW(AF1)-2))),"",INDEX(rows.input Input!AO:AO,ROW(AF1)-2)) ->  | AG1: =IF(ISBLANK((INDEX(rows.input Input!AP:AP,ROW(AG1)-2))),"",INDEX(rows.input Input!AP:AP,ROW(AG1)-2)) ->  | AH1: =IF(ISBLANK((INDEX(rows.input Input!AQ:AQ,ROW(AH1)-2))),"",INDEX(rows.input Input!AQ:AQ,ROW(AH1)-2)) ->  | AI1: =IF(ISBLANK((INDEX(rows.input Input!AR:AR,ROW(AI1)-2))),"",INDEX(rows.input Input!AR:AR,ROW(AI1)-2)) ->  | AJ1: =IF(ISBLANK((INDEX(rows.input Input!AS:AS,ROW(AJ1)-2))),"",INDEX(rows.input Input!AS:AS,ROW(AJ1)-2)) ->  | AK1: =IF(ISBLANK((INDEX(rows.input Input!AT:AT,ROW(AK1)-2))),"",INDEX(rows.input Input!AT:AT,ROW(AK1)-2)) ->  | AL1: =IF(ISBLANK((INDEX(rows.input Input!AV:AV,ROW(AL1)-2))),"",INDEX(rows.input Input!AV:AV,ROW(AL1)-2)) ->  | AM1: =IF(ISBLANK((INDEX(rows.input Input!AW:AW,ROW(AM1)-2))),"",INDEX(rows.input Input!AW:AW,ROW(AM1)-2)) ->  | AN1: =IF(ISBLANK((INDEX(rows.input Input!AX:AX,ROW(AN1)-2))),"",INDEX(rows.input Input!AX:AX,ROW(AN1)-2)) ->  | AO1: =IF(ISBLANK((INDEX(rows.input Input!AY:AY,ROW(AO1)-2))),"",INDEX(rows.input Input!AY:AY,ROW(AO1)-2)) ->  | AP1: =IF(ISBLANK((INDEX(rows.input Input!AE:AE,ROW(AP1)-2))),"",INDEX(rows.input Input!AE:AE,ROW(AP1)-2)) ->  | AQ1: =IF(ISBLANK((INDEX(rows.input Input!AF:AF,ROW(AQ1)-2))),"",INDEX(rows.input Input!AF:AF,ROW(AQ1)-2)) ->  | AR1: =IF(ISBLANK((INDEX(rows.input Input!AG:AG,ROW(AR1)-2))),"",INDEX(rows.input Input!AG:AG,ROW(AR1)-2)) ->  | AS1: =IF(ISBLANK((INDEX(rows.input Input!AH:AH,ROW(AS1)-2))),"",INDEX(rows.input Input!AH:AH,ROW(AS1)-2)) ->  | AT1: =IF(ISBLANK((INDEX(rows.input Input!AI:AI,ROW(AT1)-2))),"",INDEX(rows.input Input!AI:AI,ROW(AT1)-2)) -> 
B2: Agency ID Code | C2: Transit System | D2: Mode Code | E2: Description | F2: Asset Type Code | G2: Category | H2: Sub-Category | I2: Element | J2: Sub-Element | K2: Quantity | L2: Units | M2: Date Built | N2: Rehabed | O2: CostYr | P2: Agency SoftCost | Q2: Unit Replacement Cost | R2: Current Dollars Total Cost | S2: Priority Status | T2: Agency Condition Rating | U2: Data Date | V2: Data Source | W2: Agency UsefulLife | X2: Delayed Replacement Age | Y2: Existing Expansion | Z2: Agency Asset Type | AA2: Make Model | AB2: Agency Asset ID | AC2: Agency_Asset_Parent_ID | AD2: Line/Division | AE2: Branch/Garage | AF2: Segment/Route | AG2: Start | AH2: End | AI2: Latitude | AJ2: Longitude | AK2: Address | AL2: User Defined Field 1 | AM2: User Defined Field 2 | AN2: User Defined Field 3 | AO2: User Defined Field 4 | AP2: Dept Asset Owner | AQ2: Agency Project Number | AR2: Agency Project Category | AS2: Agency Project Desc | AT2: Notes
B3: 9999 | C3: Metroville Transportation Authority | D3: CR | E3: Rail Commuter Rail | F3: 21221 | G3: Facilities | H3: Buildings | I3: Maintenance | J3: Rail Commuter Rail | K3: 1 | L3: Each | M3: 1966 | N3: FALSE | O3: 2001 | P3: 0.1 | Q3: 30000000 | S3: Normal | U3: 0 | V3: 0 | W3: 60 | Y3: Existing | AB3: 30-675-865 | AD3: Systemwide | AQ3: MJW-GW-BT-TT-3.5-K
B4: 9999 | C4: Metroville Transportation Authority | D4: CR | E4: Rail Commuter Rail | F4: 21221 | G4: Facilities | H4: Buildings | I4: Maintenance | J4: Rail Commuter Rail | K4: 1 | L4: Each | M4: 1966 | N4: FALSE | O4: 2001 | P4: 0.1 | Q4: 30000000 | S4: Normal | U4: 0 | V4: 0 | W4: 60 | Y4: Existing | AB4: 30-675-865 | AD4: Systemwide | AQ4: MJW-GW-BT-TT-3.5-K
B5: 9999 | C5: Metroville Transportation Authority | D5: CR | E5: Rail Commuter Rail | F5: 23311 | G5: Facilities | H5: Equipment | I5: Maintenance | J5: Rail Commuter Rail | K5: 1 | L5: Each | M5: 2011 | N5: FALSE | O5: 2000 | P5: 0.1 | Q5: 6254086.766 | S5: Normal | U5: 0 | V5: 0 | W5: 15 | Y5: Existing | AB5: 06-599-166 | AD5: South | AQ5: WVE-ES-OCS0195-FD-JA-2.2-Y
B6: 9999 | C6: Metroville Transportation Authority | D6: CR | E6: Rail Commuter Rail | F6: 23311 | G6: Facilities | H6: Equipment | I6: Maintenance | J6: Rail Commuter Rail | K6: 5 | L6: Each | M6: 1966 | N6: FALSE | O6: 1955 | P6: 0.1 | Q6: 1006537.469 | S6: Normal | U6: 0 | V6: 0 | W6: 15 | Y6: Existing | AB6: 27-650-648 | AD6: North | AQ6: CRS1-GW-BT-TT-10.1-K
B7: 9999 | C7: Metroville Transportation Authority | D7: CR | E7: Grade Crossing Commuter Rail | F7: 10211 | G7: Guideway Elements | H7: Guideway | I7: At Grade-In-Street | J7: Grade Crossing Commuter Rail | K7: 41 | L7: Ea | M7: 2023 | N7: FALSE | O7: 2013 | P7: 0 | Q7: 353722.0404 | S7: Normal | U7: 0 | V7: 0 | W7: 18 | Y7: Existing | AB7: 48-450-217 | AD7: North Line | AE7: North | AQ7: WVE-ES-OCS0195-FD-JA-2.2-Y
B8: 9999 | C8: Metroville Transportation Authority | D8: CR | E8: Grade Crossing Commuter Rail | F8: 10211 | G8: Guideway Elements | H8: Guideway | I8: At Grade-In-Street | J8: Grade Crossing Commuter Rail | K8: 1750 | L8: LF | M8: 2019 | N8: FALSE | O8: 2013 | P8: 0 | Q8: 187.8432 | S8: Normal | U8: 0 | V8: 0 | W8: 18 | Y8: Existing | AB8: 93-280-382 | AD8: South Line | AE8: North | AQ8: WVE-ES-OCS0195-FD-JA-2.2-Y
B9: 9999 | C9: Metroville Transportation Authority | D9: CR | E9: Grade Crossing Commuter Rail | F9: 10211 | G9: Guideway Elements | H9: Guideway | I9: At Grade-In-Street | J9: Grade Crossing Commuter Rail | K9: 4 | L9: Ea | M9: 2019 | N9: FALSE | O9: 2013 | P9: 0 | Q9: 188.5338 | S9: Normal | U9: 0 | V9: 0 | W9: 18 | Y9: Existing | AB9: 90-187-567 | AD9: North Line | AE9: Central | AQ9: CRN1-GW-BT-TT-32.7-K
B10: 9999 | C10: Metroville Transportation Authority | D10: CR | E10: Grade Crossing Commuter Rail | F10: 10211 | G10: Guideway Elements | H10: Guideway | I10: At Grade-In-Street | J10: Grade Crossing Commuter Rail | K10: 1 | L10: LF | M10: 2022 | N10: FALSE | O10: 2013 | P10: 0 | Q10: 493088.5243 | S10: Normal | U10: 0 | V10: 0 | W10: 18 | Y10: Existing | AB10: 50-638-241 | AD10: North Line | AQ10: CRS2-GW-BT-TT-30.1-K
B11: 9999 | C11: Metroville Transportation Authority | D11: CR | E11: Grade Crossing Commuter Rail | F11: 10211 | G11: Guideway Elements | H11: Guideway | I11: At Grade-In-Street | J11: Grade Crossing Commuter Rail | K11: 72 | L11: LF | M11: 2010 | N11: FALSE | O11: 2013 | P11: 0 | Q11: 187.9967 | S11: Normal | U11: 0 | V11: 0 | W11: 18 | Y11: Existing | AB11: 02-717-323 | AD11: South Line | AQ11: CRN1-GW-BT-TT-32.7-K
B12: 9999 | C12: Metroville Transportation Authority | D12: CR | E12: Bridge Commuter Rail | F12: 10331 | G12: Guideway Elements | H12: Guideway | I12: Elevated Structure | J12: Bridge Commuter Rail | K12: 500 | L12: LF | M12: 2019 | N12: FALSE | O12: 2013 | P12: 0 | Q12: 34992.4084 | S12: Normal | U12: 0 | V12: 0 | W12: 100 | Y12: Existing | AB12: 15-381-940 | AD12: South Line | AE12: Central | AQ12: CRN1-GW-BT-TT-19.1-K
B13: 9999 | C13: Metroville Transportation Authority | D13: CR | E13: Bridge Commuter Rail | F13: 10331 | G13: Guideway Elements | H13: Guideway | I13: Elevated Structure | J13: Bridge Commuter Rail | K13: 700 | L13: LF | M13: 2019 | N13: FALSE | O13: 2013 | P13: 0 | Q13: 34992.4084 | S13: Normal | U13: 0 | V13: 0 | W13: 100 | Y13: Existing | AB13: 15-381-940 | AD13: North Line | AE13: South | AQ13: CRS2-GW-BT-TT-0.1-K
B14: 9999 | C14: Metroville Transportation Authority | D14: CR | E14: Bridge Commuter Rail | F14: 10331 | G14: Guideway Elements | H14: Guideway | I14: Elevated Structure | J14: Bridge Commuter Rail | K14: 850 | L14: LF | M14: 2019 | N14: FALSE | O14: 2013 | P14: 0 | Q14: 34992.4084 | S14: Normal | U14: 0 | V14: 0 | W14: 100 | Y14: Existing | AB14: 15-381-940 | AD14: South Line | AE14: South | AQ14: WVE-ES-OCS0195-FD-JA-2.2-Y
B15: 9999 | C15: Metroville Transportation Authority | D15: CR | E15: Fencing | F15: 12100 | G15: Guideway Elements | H15: Special Structures | I15: Fencing | J15: - | K15: 132165 | L15: LF | M15: 2019 | N15: FALSE | O15: 2013 | P15: 0 | Q15: 109.731 | S15: Normal | U15: 0 | V15: 0 | W15: 25 | Y15: Existing | AB15: 33-329-903 | AD15: North Line | AE15: North | AQ15: CRN2-GW-BT-TT-1.6-K
B16: 9999 | C16: Metroville Transportation Authority | D16: CR | E16: Retaining Walls | F16: 12200 | G16: Guideway Elements | H16: Special Structures | I16: Retaining Walls | J16: - | K16: 4799.22 | L16: LF | M16: 2019 | N16: FALSE | O16: 2013 | P16: 0 | Q16: 34.2478 | S16: Normal | U16: 0 | V16: 0 | W16: 40 | Y16: Existing | AB16: 80-967-750 | AD16: South Line | AE16: North | AQ16: MJW-GW-BT-TT-6.2-K
B17: 9999 | C17: Metroville Transportation Authority | D17: CR | E17: Curve | F17: 11202 | G17: Guideway Elements | H17: Trackwork | I17: Ballasted | J17: Curve | K17: 67930.2 | L17: LF | M17: 2023 | N17: FALSE | O17: 2013 | P17: 0 | Q17: 469.684 | S17: Normal | U17: 0 | V17: 0 | W17: 20 | Y17: Existing | AB17: 88-518-568 | AD17: North Line | AE17: Central | AF17: A-00978 | AQ17: CRN1-GW-BT-CT-2.8-K
B18: 9999 | C18: Metroville Transportation Authority | D18: CR | E18: Curve | F18: 11202 | G18: Guideway Elements | H18: Trackwork | I18: Ballasted | J18: Curve | K18: 90490.43 | L18: LF | M18: 2019 | N18: FALSE | O18: 2013 | P18: 0 | Q18: 309.849 | S18: Normal | U18: 0 | V18: 0 | W18: 20 | Y18: Existing | AB18: 74-059-854 | AD18: South Line | AE18: Central | AF18: C-09874 | AQ18: WVE-ES-OCS0195-FD-JA-2.2-Y
B19: 9999 | C19: Metroville Transportation Authority | D19: CR | E19: Curve | F19: 11202 | G19: Guideway Elements | H19: Trackwork | I19: Ballasted | J19: Curve | K19: 128.08 | L19: LF | M19: 1911 | N19: FALSE | O19: 2013 | P19: 0 | Q19: 468.0207 | S19: Normal | U19: 0 | V19: 0 | W19: 20 | Y19: Existing | AB19: 25-681-400 | AD19: North Line | AE19: South | AF19: C-05198 | AQ19: CRS1-GW-BT-CT-10.1-K
B20: 9999 | C20: Metroville Transportation Authority | D20: CR | E20: Curve | F20: 11202 | G20: Guideway Elements | H20: Trackwork | I20: Ballasted | J20: Curve | K20: 1 | L20: Ea | M20: 2019 | N20: FALSE | O20: 2013 | P20: 0 | Q20: 45441.4915 | S20: Normal | U20: 0 | V20: 0 | W20: 20 | Y20: Existing | AB20: 84-389-334 | AD20: South Line | AE20: South | AF20: B-02890 | AQ20: CRS2-GW-BT-CT-44.0-K
B21: 9999 | C21: Metroville Transportation Authority | D21: CR | E21: Platform Curved | F21: 11205 | G21: Guideway Elements | H21: Trackwork | I21: Ballasted | J21: Platform Curved | K21: 1695.45 | L21: LF | M21: 2019 | N21: FALSE | O21: 2013 | P21: 0 | Q21: 467.6098 | S21: Normal | U21: 0 | V21: 0 | W21: 36 | Y21: Existing | AB21: 31-801-257 | AD21: North Line | AE21: North | AF21: C-00585 | AQ21: CRS1-GW-BT-CT-22.4-K
B22: 9999 | C22: Metroville Transportation Authority | D22: CR | E22: Platform Tangent | F22: 11204 | G22: Guideway Elements | H22: Trackwork | I22: Ballasted | J22: Platform Tangent | K22: 5395.99 | L22: LF | M22: 2019 | N22: FALSE | O22: 2013 | P22: 0 | Q22: 232.9308 | S22: Normal | U22: 0 | V22: 0 | W22: 10 | Y22: Existing | AB22: 09-031-138 | AD22: South Line | AE22: North | AF22: C-08771 | AQ22: WVE-GW-BT-CT-4.6-K
B23: 9999 | C23: Metroville Transportation Authority | D23: CR | E23: Tangent | F23: 11201 | G23: Guideway Elements | H23: Trackwork | I23: Ballasted | J23: Tangent | K23: 162262.2 | L23: LF | M23: 2019 | N23: FALSE | O23: 2013 | P23: 0 | Q23: 190.6722 | S23: Normal | U23: 0 | V23: 0 | W23: 40 | Y23: Existing | AB23: 41-115-876 | AD23: North Line | AE23: Central | AF23: B-01758 | AQ23: WVW-GW-BT-CT-3.1-K
B24: 9999 | C24: Metroville Transportation Authority | D24: CR | E24: Tangent | F24: 11201 | G24: Guideway Elements | H24: Trackwork | I24: Ballasted | J24: Tangent | K24: 202413.6 | L24: LF | M24: 2023 | N24: FALSE | O24: 2013 | P24: 0 | Q24: 119.4139 | S24: Normal | U24: 0 | V24: 0 | W24: 40 | Y24: Existing | AB24: 02-626-862 | AD24: South Line | AE24: Central | AF24: B-00170 | AQ24: CRS2-GW-BT-CT-30.4-K
B25: 9999 | C25: Metroville Transportation Authority | D25: CR | E25: Tangent | F25: 11201 | G25: Guideway Elements | H25: Trackwork | I25: Ballasted | J25: Tangent | K25: 6 | L25: Ea | M25: 2019 | N25: FALSE | O25: 2013 | P25: 0 | Q25: 49953.4126 | S25: Normal | U25: 0 | V25: 0 | W25: 40 | Y25: Existing | AB25: 79-670-024 | AD25: North Line | AE25: South | AF25: B-03928 | AQ25: WVE-ES-OCS0195-FD-JA-2.2-Y
B26: 9999 | C26: Metroville Transportation Authority | D26: CR | E26: At-Grade Crossings | F26: 11303 | G26: Guideway Elements | H26: Trackwork | I26: Embedded | J26: At-Grade Crossings | K26: 2343.39 | L26: LF | M26: 2019 | N26: FALSE | O26: 2013 | P26: 0 | Q26: 292.9331 | S26: Normal | U26: 0 | V26: 0 | W26: 20 | Y26: Existing | AB26: 64-948-292 | AD26: South Line | AE26: South | AF26: C-01411 | AQ26: WVE-ES-OCS0195-FD-JA-2.2-Y
B27: 9999 | C27: Metroville Transportation Authority | D27: CR | E27: Special | F27: 11400 | G27: Guideway Elements | H27: Trackwork | I27: Special | J27: - | K27: 2903 | L27: LF | M27: 2019 | N27: FALSE | O27: 2013 | P27: 0 | Q27: 466.2681 | S27: Normal | U27: 0 | V27: 0 | W27: 20 | Y27: Existing | AB27: 66-297-441 | AD27: North Line | AE27: North | AF27: A-00216 | AQ27: CRS1-GW-BT-CT-29.6-K
B28: 9999 | C28: Metroville Transportation Authority | D28: CR | E28: Special | F28: 11400 | G28: Guideway Elements | H28: Trackwork | I28: Special | J28: - | K28: 34 | L28: Ea | M28: 2019 | N28: FALSE | O28: 2013 | P28: 0 | Q28: 12796.415 | S28: Normal | U28: 0 | V28: 0 | W28: 20 | Y28: Existing | AB28: 45-849-739 | AD28: South Line | AE28: North | AF28: B-04731 | AQ28: CRN1-GW-BT-CT-35.7-K
B29: 9999 | C29: Metroville Transportation Authority | D29: CR | E29: Special | F29: 11400 | G29: Guideway Elements | H29: Trackwork | I29: Special | J29: - | K29: 1 | L29: Ea | M29: 1911 | N29: FALSE | O29: 2013 | P29: 0 | Q29: 116.0208 | S29: Normal | U29: 0 | V29: 0 | W29: 20 | Y29: Existing | AB29: 26-134-619 | AD29: North Line | AE29: Central | AF29: B-00386 | AQ29: WVE-ES-OCS0195-FD-JA-2.2-Y
B30: 9999 | C30: Metroville Transportation Authority | D30: CR | E30: Ballasted Diamond Crossover | F30: 11403 | G30: Guideway Elements | H30: Trackwork | I30: Special | J30: Ballasted Diamond Crossover | K30: 1 | L30: Ea | M30: 2019 | N30: FALSE | O30: 2013 | P30: 0 | Q30: 25137.8463 | S30: Normal | U30: 0 | V30: 0 | W30: 32 | Y30: Existing | AB30: 31-740-789 | AD30: North Line | AE30: North | AF30: B-06009 | AQ30: WVE-ES-OCS0195-FD-JA-2.2-Y
B31: 9999 | C31: Metroville Transportation Authority | D31: CR | E31: Ballasted Single Crossover | F31: 11406 | G31: Guideway Elements | H31: Trackwork | I31: Special | J31: Ballasted Single Crossover | K31: 1 | L31: Ea | M31: 2019 | N31: FALSE | O31: 2013 | P31: 0 | Q31: 87015.6219 | S31: Normal | U31: 0 | V31: 0 | W31: 32 | Y31: Existing | AB31: 03-382-032 | AD31: South Line | AE31: North | AF31: B-00954 | AQ31: WVE-ES-OCS0195-FD-JA-2.2-Y
B32: 9999 | C32: Metroville Transportation Authority | D32: CR | E32: Diamond Crossover | F32: 11401 | G32: Guideway Elements | H32: Trackwork | I32: Special | J32: Diamond Crossover | K32: 1 | L32: Ea | M32: 2019 | N32: FALSE | O32: 2013 | P32: 0 | Q32: 37706.7695 | S32: Normal | U32: 0 | V32: 0 | W32: 32 | Y32: Existing | AB32: 02-058-951 | AD32: North Line | AE32: Central | AF32: B-02396 | AQ32: APW-GW-ET-TT-1.1-K
B33: 9999 | C33: Metroville Transportation Authority | D33: CR | E33: Single Crossover | F33: 11404 | G33: Guideway Elements | H33: Trackwork | I33: Special | J33: Single Crossover | K33: 3 | L33: EA | M33: 2023 | N33: FALSE | O33: 2013 | P33: 0 | Q33: 87015.6219 | S33: Normal | U33: 0 | V33: 0 | W33: 32 | Y33: Existing | AB33: 75-048-891 | AD33: South Line | AE33: Central | AF33: A-02887 | AQ33: APE-GW-ET-TT-1.5-K
B34: 9999 | C34: Metroville Transportation Authority | D34: CR | E34: Single Crossover | F34: 11404 | G34: Guideway Elements | H34: Trackwork | I34: Special | J34: Single Crossover | K34: 2 | L34: Ea | M34: 2019 | N34: FALSE | O34: 2013 | P34: 0 | Q34: 24654.4262 | S34: Normal | U34: 0 | V34: 0 | W34: 32 | Y34: Existing | AB34: 67-592-461 | AD34: North Line | AE34: South | AF34: B-00386 | AQ34: UNW-GW-ET-TT-2.6-K
B35: 9999 | C35: Metroville Transportation Authority | D35: CR | E35: Turnout | F35: 11407 | G35: Guideway Elements | H35: Trackwork | I35: Special | J35: Turnout | K35: 65 | L35: Ea | M35: 2023 | N35: FALSE | O35: 2013 | P35: 0 | Q35: 35698.7167 | S35: Normal | U35: 0 | V35: 0 | W35: 42 | Y35: Existing | AB35: 92-490-806 | AD35: South Line | AE35: South | AF35: B-02194 | AQ35: UNE-GW-ET-TT-2.6-K
B36: 9999 | C36: Metroville Transportation Authority | D36: CR | E36: Turnout | F36: 11407 | G36: Guideway Elements | H36: Trackwork | I36: Special | J36: Turnout | K36: 1 | L36: Ea | M36: 2019 | N36: FALSE | O36: 2013 | P36: 0 | Q36: 25137.8463 | S36: Normal | U36: 0 | V36: 0 | W36: 32 | Y36: Existing | AB36: 20-606-741 | AD36: North Line | AE36: North | AF36: B-05446 | AQ36: APW-GW-BT-TT-5.4-K
B37: 9999 | C37: Metroville Transportation Authority | D37: CR | E37: Park & Ride | F37: 41603 | G37: Stations | H37: Access | I37: Parking | J37: Park & Ride | K37: 1853500 | L37: Each | M37: 2019 | N37: FALSE | O37: 2008 | P37: 0.1 | Q37: 23.2365 | S37: Normal | U37: 0 | V37: 0 | W37: 40 | Y37: Existing | AB37: 07-593-302 | AD37: South Line | AQ37: WVE-ES-OCS0195-FD-JA-2.2-Y
B38: 9999 | C38: Metroville Transportation Authority | D38: CR | E38: Park & Ride | F38: 41603 | G38: Stations | H38: Access | I38: Parking | J38: Park & Ride | K38: 1853500 | L38: Each | M38: 2019 | N38: FALSE | O38: 2008 | P38: 0.1 | Q38: 23.2365 | S38: Normal | U38: 0 | V38: 0 | W38: 40 | Y38: Existing | AB38: 07-593-302 | AD38: North Line | AQ38: UNW-GW-ET-TT-2.4-K
B39: 9999 | C39: Metroville Transportation Authority | D39: CR | E39: Roadway Access | F39: 41650 | G39: Stations | H39: Access | I39: Roadway Access | J39: - | K39: 1 | L39: Each | M39: 2019 | N39: FALSE | O39: 2008 | P39: 0.1 | Q39: 1113850.461 | S39: Normal | U39: 0 | V39: 0 | W39: 20 | Y39: Existing | AB39: 37-163-158 | AD39: South Line | AQ39: UNW-GW-ET-CT-0.9-K
B40: 9999 | C40: Metroville Transportation Authority | D40: CR | E40: Commuter Rail | F40: 41001 | G40: Stations | H40: Complete Station | I40: Commuter Rail | J40: - | K40: 7 | L40: Each | M40: 2019 | N40: FALSE | O40: 2008 | P40: 0.1 | Q40: 2598984.408 | S40: Normal | U40: 0 | V40: 0 | W40: 60 | Y40: Existing | AB40: 90-661-470 | AD40: North Line | AE40: North | AQ40: APW-GW-ET-CT-1.2-K
B41: 9999 | C41: Metroville Transportation Authority | D41: CR | E41: Commuter Rail | F41: 41001 | G41: Stations | H41: Complete Station | I41: Commuter Rail | J41: - | K41: 7 | L41: Each | M41: 2019 | N41: FALSE | O41: 2008 | P41: 0.1 | Q41: 2598984.408 | S41: Normal | U41: 0 | V41: 0 | W41: 60 | Y41: Existing | AB41: 90-661-470 | AD41: South Line | AE41: North | AQ41: WVE-ES-OCS0195-FD-JA-2.2-Y
B42: 9999 | C42: Metroville Transportation Authority | D42: CR | E42: Commuter Rail | F42: 41001 | G42: Stations | H42: Complete Station | I42: Commuter Rail | J42: - | K42: 4 | L42: Each | M42: 2019 | N42: FALSE | O42: 2008 | P42: 0.1 | Q42: 2598984.408 | S42: Normal | U42: 0 | V42: 0 | W42: 60 | Y42: Existing | AB42: 90-661-470 | AD42: North Line | AE42: Central | AQ42: WVE-ES-OCS0195-FD-JA-2.2-Y
B43: 9999 | C43: Metroville Transportation Authority | D43: CR | E43: Commuter Rail | F43: 41001 | G43: Stations | H43: Complete Station | I43: Commuter Rail | J43: - | K43: 4 | L43: Each | M43: 2019 | N43: FALSE | O43: 2008 | P43: 0.1 | Q43: 2598984.408 | S43: Normal | U43: 0 | V43: 0 | W43: 60 | Y43: Existing | AB43: 90-661-470 | AD43: South Line | AE43: Central | AQ43: APW-GW-BT-CT-3.5-K
B44: 9999 | C44: Metroville Transportation Authority | D44: CR | E44: Commuter Rail | F44: 41001 | G44: Stations | H44: Complete Station | I44: Commuter Rail | J44: - | K44: 9 | L44: Each | M44: 2019 | N44: FALSE | O44: 2008 | P44: 0.1 | Q44: 2598984.408 | S44: Normal | U44: 0 | V44: 0 | W44: 60 | Y44: Existing | AB44: 90-661-470 | AD44: North Line | AE44: South | AQ44: WVE-ES-OCS0195-FD-JA-2.2-Y
B45: 9999 | C45: Metroville Transportation Authority | D45: CR | E45: Commuter Rail | F45: 41001 | G45: Stations | H45: Complete Station | I45: Commuter Rail | J45: - | K45: 9 | L45: Each | M45: 2019 | N45: FALSE | O45: 2008 | P45: 0.1 | Q45: 2598984.408 | S45: Normal | U45: 0 | V45: 0 | W45: 60 | Y45: Existing | AB45: 90-661-470 | AD45: South Line | AE45: South | AQ45: CRS1-GW-BT-GCP-0.7-K
B46: 9999 | C46: Metroville Transportation Authority | D46: CR | E46: Fare Control System Commuter Rail | F46: 35121 | G46: Systems | H46: Revenue Collection | I46: In-Station | J46: Fare Control System Commuter Rail | K46: 37 | L46: Each | M46: 2020 | N46: FALSE | O46: 2009 | P46: 0.1 | Q46: 3943.9626 | S46: Normal | U46: 0 | V46: 0 | W46: 20 | Y46: Existing | AB46: 03-322-124 | AD46: Red Line | AE46: West | AQ46: WVW-GW-BT-GCP-1.6-K
B47: 9999 | C47: Metroville Transportation Authority | D47: CR | E47: System Commuter Rail | F47: 35111 | G47: Systems | H47: Revenue Collection | I47: In-Station | J47: System Commuter Rail | K47: 17 | L47: Each | M47: 2019 | N47: FALSE | O47: 2008 | P47: 0.1 | Q47: 56784.5333 | S47: Normal | U47: 0 | V47: 0 | W47: 15 | Y47: Existing | AB47: 63-550-806 | AD47: Yellow Line | AE47: Central | AQ47: MJW-GW-BT-GCP-8.0-K
B48: 9999 | C48: Metroville Transportation Authority | D48: CR | E48: Commuter Rail | F48: 31001 | G48: Systems | H48: Train Control | I48: Commuter Rail | J48: - | K48: 83 | L48: Ea | M48: 2023 | N48: FALSE | O48: 2013 | P48: 0 | Q48: 198027.5198 | S48: Normal | U48: 0 | V48: 0 | W48: 40 | Y48: Existing | AB48: 45-414-365 | AD48: North Line | AE48: North | AQ48: WVW-GW-BT-ST-HSR-1.2-K
B49: 9999 | C49: Metroville Transportation Authority | D49: CR | E49: Commuter Rail | F49: 31001 | G49: Systems | H49: Train Control | I49: Commuter Rail | J49: - | K49: 20 | L49: Ea | M49: 2019 | N49: FALSE | O49: 2013 | P49: 0 | Q49: 117110.2267 | S49: Normal | U49: 0 | V49: 0 | W49: 40 | Y49: Existing | AB49: 32-653-690 | AD49: South Line | AE49: North | AQ49: UNE-GW-ET-CT-PCR-0.0-K
B50: 9999 | C50: Metroville Transportation Authority | D50: CR | E50: Commuter Rail | F50: 31001 | G50: Systems | H50: Train Control | I50: Commuter Rail | J50: - | K50: 22 | L50: Ea | M50: 2019 | N50: FALSE | O50: 2013 | P50: 0 | Q50: 117110.2267 | S50: Normal | U50: 0 | V50: 0 | W50: 40 | Y50: Existing | AB50: 32-653-690 | AD50: North Line | AE50: Central | AQ50: MJE-GW-BT-ST-SM1A-3.5-K
B51: 9999 | C51: Metroville Transportation Authority | D51: CR | E51: Commuter Rail | F51: 31001 | G51: Systems | H51: Train Control | I51: Commuter Rail | J51: - | K51: 18 | L51: Ea | M51: 2019 | N51: FALSE | O51: 2013 | P51: 0 | Q51: 117110.2267 | S51: Normal | U51: 0 | V51: 0 | W51: 40 | Y51: Existing | AB51: 32-653-690 | AD51: South Line | AE51: Central | AQ51: NSE-GW-ET-ST-SM9402A-5.6-C
B52: 9999 | C52: Metroville Transportation Authority | D52: CR | E52: Commuter Rail | F52: 31001 | G52: Systems | H52: Train Control | I52: Commuter Rail | J52: - | K52: 21 | L52: Ea | M52: 2019 | N52: FALSE | O52: 2013 | P52: 0 | Q52: 117110.2267 | S52: Normal | U52: 0 | V52: 0 | W52: 40 | Y52: Existing | AB52: 32-653-690 | AD52: North Line | AE52: South | AQ52: MJE-GW-BT-ST-GR-2.4-K
B53: 9999 | C53: Metroville Transportation Authority | D53: CR | E53: Commuter Rail | F53: 31001 | G53: Systems | H53: Train Control | I53: Commuter Rail | J53: - | K53: 20 | L53: Ea | M53: 2019 | N53: FALSE | O53: 2013 | P53: 0 | Q53: 117110.2267 | S53: Normal | U53: 0 | V53: 0 | W53: 40 | Y53: Existing | AB53: 32-653-690 | AD53: South Line | AE53: South | AQ53: APE-GW-ET-ST-HSR-2.4-K
B54: 9999 | C54: Metroville Transportation Authority | D54: CR | E54: Interlockings | F54: 31500 | G54: Systems | H54: Train Control | I54: Interlockings | J54: - | K54: 120 | L54: Ea | M54: 2019 | N54: FALSE | O54: 2013 | P54: 0 | Q54: 362565.0914 | S54: Normal | U54: 0 | V54: 0 | W54: 40 | Y54: Existing | AB54: 83-084-975 | AD54: North Line | AE54: North | AQ54: MJW-GW-BT-GT-1.2-K
B55: 9999 | C55: Metroville Transportation Authority | D55: CR | E55: Interlockings | F55: 31500 | G55: Systems | H55: Train Control | I55: Interlockings | J55: - | K55: 88 | L55: Ea | M55: 2023 | N55: FALSE | O55: 2013 | P55: 0 | Q55: 362565.0914 | S55: Normal | U55: 0 | V55: 0 | W55: 40 | Y55: Existing | AB55: 11-417-976 | AD55: South Line | AE55: North | AQ55: WVE-GW-BT-ST-HSR-2.4-K
B56: 9999 | C56: Metroville Transportation Authority | D56: CR | E56: Commuter Rail | F56: 31401 | G56: Systems | H56: Train Control | I56: Roadway Crossings | J56: Commuter Rail | K56: 183 | L56: Ea | M56: 2023 | N56: FALSE | O56: 2013 | P56: 0 | Q56: 153215.1206 | S56: Normal | U56: 0 | V56: 0 | W56: 40 | Y56: Existing | AB56: 35-484-401 | AD56: North Line | AE56: North | AQ56: WVE-GW-ET-ST-HSR-3.6-K
B57: 9999 | C57: Metroville Transportation Authority | D57: CR | E57: Commuter Rail | F57: 31401 | G57: Systems | H57: Train Control | I57: Roadway Crossings | J57: Commuter Rail | K57: 131 | L57: Ea | M57: 2019 | N57: FALSE | O57: 2013 | P57: 0 | Q57: 103326.4383 | S57: Normal | U57: 0 | V57: 0 | W57: 40 | Y57: Existing | AB57: 72-014-031 | AD57: South Line | AE57: North | AQ57: WV-GW-BT-ST-SXO-1.2-K
B58: 9999 | C58: Metroville Transportation Authority | D58: CR | E58: Drainage | F58: 36200 | G58: Systems | H58: Utilities | I58: Drainage | J58: - | K58: 761 | L58: Ea | M58: 2019 | N58: FALSE | O58: 2013 | P58: 0 | Q58: 43196.5418 | S58: Normal | U58: 0 | V58: 0 | W58: 45 | Y58: Existing | AB58: 08-967-864 | AD58: North Line | AE58: North | AQ58: CRS2-GW-BT-ST-TO-14.2-K
B59: 9999 | C59: Metroville Transportation Authority | D59: CR | E59: Drainage | F59: 36200 | G59: Systems | H59: Utilities | I59: Drainage | J59: - | K59: 56573.65 | L59: LF | M59: 2019 | N59: FALSE | O59: 2013 | P59: 0 | Q59: 70.0688 | S59: Normal | U59: 0 | V59: 0 | W59: 45 | Y59: Existing | AB59: 53-155-713 | AD59: South Line | AE59: North | AQ59: MJE-GW-BT-ST-TO-8.1-K
B60: 9999 | C60: Metroville Transportation Authority | D60: CR | E60: Passenger Car | F60: 51302 | G60: Vehicles | H60: Revenue Vehicles | I60: Commuter Rail | J60: Passenger Car | K60: 21 | L60: EA | M60: 2019 | N60: FALSE | O60: 2008 | P60: 0.1 | Q60: 2369142.25 | S60: Normal | U60: 0 | V60: 0 | W60: 40 | Y60: Existing | AB60: 65-430-221 | AD60: North Line | AQ60: CRS2-GW-BT-ST-SM-T146-38.4-K
B61: 9999 | C61: Metroville Transportation Authority | D61: CR | E61: Passenger Car | F61: 51302 | G61: Vehicles | H61: Revenue Vehicles | I61: Commuter Rail | J61: Passenger Car | K61: 15 | L61: EA | M61: 2019 | N61: FALSE | O61: 2008 | P61: 0.1 | Q61: 2178196.456 | S61: Normal | U61: 0 | V61: 0 | W61: 40 | Y61: Existing | AB61: 39-890-800 | AD61: South Line | AQ61: CRS1-GW-BT-ST-SM-T330-2.8-K
B62: 9999 | C62: Metroville Transportation Authority | D62: CR | E62: Passenger Car | F62: 51302 | G62: Vehicles | H62: Revenue Vehicles | I62: Commuter Rail | J62: Passenger Car | K62: 25 | L62: EA | M62: 2021 | N62: FALSE | O62: 2010 | P62: 0.1 | Q62: 282797.906 | S62: Normal | U62: 0 | V62: 0 | W62: 40 | Y62: Existing | AB62: 19-165-379 | AD62: North Line | AQ62: WVE-ES-OCS0195-FD-JA-2.2-Y
B63: 9999 | C63: Metroville Transportation Authority | D63: CR | E63: Passenger Car | F63: 51302 | G63: Vehicles | H63: Revenue Vehicles | I63: Commuter Rail | J63: Passenger Car | K63: 1 | L63: EA | M63: 2023 | N63: FALSE | O63: 2012 | P63: 0.1 | Q63: 2634380.16 | S63: Normal | U63: 0 | V63: 0 | W63: 40 | Y63: Existing | AB63: 45-997-334 | AD63: South Line | AQ63: CRS2-GW-BT-ST-TO-43.1-K
B64: 9999 | C64: Metroville Transportation Authority | D64: CR | E64: Passenger Car | F64: 51302 | G64: Vehicles | H64: Revenue Vehicles | I64: Commuter Rail | J64: Passenger Car | K64: 1 | L64: EA | M64: 2023 | N64: FALSE | O64: 2012 | P64: 0.1 | Q64: 2209480.134 | S64: Normal | U64: 0 | V64: 0 | W64: 40 | Y64: Existing | AB64: 17-859-419 | AD64: North Line | AQ64: CRS2-GW-BT-ST-TO-27.5-K
B65: 9999 | C65: Metroville Transportation Authority | D65: CR | E65: Revenue Locomotive | F65: 51301 | G65: Vehicles | H65: Revenue Vehicles | I65: Commuter Rail | J65: Revenue Locomotive | K65: 17 | L65: EA | M65: 2019 | N65: FALSE | O65: 2008 | P65: 0.1 | Q65: 2620824.613 | S65: Normal | U65: 0 | V65: 0 | W65: 40 | Y65: Existing | AB65: 67-922-640 | AD65: South Line | AQ65: CRN1-GW-FE-26.7-K
B66: 9999 | C66: Metroville Transportation Authority | D66: CR | E66: Revenue Locomotive | F66: 51301 | G66: Vehicles | H66: Revenue Vehicles | I66: Commuter Rail | J66: Revenue Locomotive | K66: 1 | L66: EA | M66: 2023 | N66: FALSE | O66: 2012 | P66: 0.1 | Q66: 2804340.17 | S66: Normal | U66: 0 | V66: 0 | W66: 40 | Y66: Existing | AB66: 05-286-700 | AD66: South Line | AQ66: CRN1-GW-FE-11.9-K
B67: 9999 | C67: Metroville Transportation Authority | D67: DR | E67: Bus (<30 ft) | F67: 51906 | G67: Vehicles | H67: Revenue Vehicles | I67: Bus | J67: Bus (<30 ft) | K67: 1 | L67: Each | M67: 2009 | N67: FALSE | O67: 2008 | P67: 0.1 | Q67: 89108.0369 | S67: Normal | U67: 0 | V67: 0 | W67: 6 | Y67: Existing | AB67: 61-265-967 | AD67: West | AE67: Brothford | AQ67: WVE-ES-OCS0195-FD-JA-2.2-Y
B68: 9999 | C68: Metroville Transportation Authority | D68: DR | E68: Automobile | F68: 52301 | G68: Vehicles | H68: Revenue Vehicles | I68: Vans, Cutaways and Autos | J68: Automobile | K68: 56 | L68: Each | M68: 2018 | N68: FALSE | O68: 2004 | P68: 0.1 | Q68: 90882.5473 | S68: Normal | U68: 0 | V68: 0 | W68: 5 | Y68: Existing | AB68: 29-246-349 | AD68: South | AE68: Archer's Line
B69: 9999 | C69: Metroville Transportation Authority | D69: DR | E69: Medium-Duty Van | F69: 52523 | G69: Vehicles | H69: Revenue Vehicles | I69: Vans, Cutaways and Autos | J69: Medium-Duty Van | K69: 46 | L69: Each | M69: 2019 | N69: FALSE | O69: 2010 | P69: 0.1 | Q69: 89799.042 | S69: Normal | U69: 0 | V69: 0 | W69: 5 | Y69: Existing | AB69: 65-210-221 | AD69: North | AE69: Wingston
B70: 9999 | C70: Metroville Transportation Authority | D70: DR | E70: Medium-Duty Van | F70: 52523 | G70: Vehicles | H70: Revenue Vehicles | I70: Vans, Cutaways and Autos | J70: Medium-Duty Van | K70: 32 | L70: Each | M70: 2018 | N70: FALSE | O70: 2010 | P70: 0.1 | Q70: 89367.3158 | S70: Normal | U70: 0 | V70: 0 | W70: 5 | Y70: Existing | AB70: 36-064-427 | AD70: North | AE70: Wingston
B71: 9999 | C71: Metroville Transportation Authority | D71: DR | E71: Medium-Duty Van | F71: 52523 | G71: Vehicles | H71: Revenue Vehicles | I71: Vans, Cutaways and Autos | J71: Medium-Duty Van | K71: 30 | L71: Each | M71: 2020 | N71: FALSE | O71: 2010 | P71: 0.1 | Q71: 90029.2959 | S71: Normal | U71: 0 | V71: 0 | W71: 5 | Y71: Existing | AB71: 79-012-477 | AD71: North | AE71: Wingston
B72: 9999 | C72: Metroville Transportation Authority | D72: DR | E72: Medium-Duty Van | F72: 52523 | G72: Vehicles | H72: Revenue Vehicles | I72: Vans, Cutaways and Autos | J72: Medium-Duty Van | K72: 21 | L72: Each | M72: 2014 | N72: FALSE | O72: 2010 | P72: 0.1 | Q72: 90785.8446 | S72: Normal | U72: 0 | V72: 0 | W72: 5 | Y72: Existing | AB72: 94-182-822 | AD72: West | AE72: Brothford
B73: 9999 | C73: Metroville Transportation Authority | D73: DR | E73: Medium-Duty Van | F73: 52523 | G73: Vehicles | H73: Revenue Vehicles | I73: Vans, Cutaways and Autos | J73: Medium-Duty Van | K73: 20 | L73: Each | M73: 2013 | N73: FALSE | O73: 2010 | P73: 0.1 | Q73: 87381.3755 | S73: Normal | U73: 0 | V73: 0 | W73: 5 | Y73: Existing | AB73: 87-877-488 | AD73: West | AE73: Brothford
B74: 9999 | C74: Metroville Transportation Authority | D74: DR | E74: Medium-Duty Van | F74: 52523 | G74: Vehicles | H74: Revenue Vehicles | I74: Vans, Cutaways and Autos | J74: Medium-Duty Van | K74: 13 | L74: Each | M74: 2015 | N74: FALSE | O74: 2010 | P74: 0.1 | Q74: 91658.7854 | S74: Normal | U74: 0 | V74: 0 | W74: 5 | Y74: Existing | AB74: 05-445-358 | AD74: North | AE74: Wingston
B75: 9999 | C75: Metroville Transportation Authority | D75: DR | E75: Medium-Duty Van | F75: 52523 | G75: Vehicles | H75: Revenue Vehicles | I75: Vans, Cutaways and Autos | J75: Medium-Duty Van | K75: 4 | L75: Each | M75: 2016 | N75: FALSE | O75: 2010 | P75: 0.1 | Q75: 89367.3158 | S75: Normal | U75: 0 | V75: 0 | W75: 5 | Y75: Existing | AB75: 00-089-686 | AD75: North | AE75: Wingston
B76: 9999 | C76: Metroville Transportation Authority | D76: DR | E76: Medium-Duty Van | F76: 52523 | G76: Vehicles | H76: Revenue Vehicles | I76: Vans, Cutaways and Autos | J76: Medium-Duty Van | K76: 2 | L76: Each | M76: 2011 | N76: FALSE | O76: 2010 | P76: 0.1 | Q76: 87381.3755 | S76: Normal | U76: 0 | V76: 0 | W76: 5 | Y76: Existing | AB76: 82-272-336 | AD76: West | AE76: Brothford
B77: 9999 | C77: Metroville Transportation Authority | D77: DR | E77: Medium-Duty Van | F77: 52523 | G77: Vehicles | H77: Revenue Vehicles | I77: Vans, Cutaways and Autos | J77: Medium-Duty Van | K77: 1 | L77: Each | M77: 2006 | N77: FALSE | O77: 2010 | P77: 0.1 | Q77: 95325.1369 | S77: Normal | U77: 0 | V77: 0 | W77: 5 | Y77: Existing | AB77: 41-096-100 | AD77: South | AE77: Archer's Line
B78: 9999 | C78: Metroville Transportation Authority | D78: DR | E78: Medium-Duty Van | F78: 52523 | G78: Vehicles | H78: Revenue Vehicles | I78: Vans, Cutaways and Autos | J78: Medium-Duty Van | K78: 1 | L78: Each | M78: 2008 | N78: FALSE | O78: 2010 | P78: 0.1 | Q78: 95325.1369 | S78: Normal | U78: 0 | V78: 0 | W78: 5 | Y78: Existing | AB78: 90-831-652 | AD78: South | AE78: Archer's Line
B79: 9999 | C79: Metroville Transportation Authority | D79: LR | E79: Rail Light Rail | F79: 21223 | G79: Facilities | H79: Buildings | I79: Maintenance | J79: Rail Light Rail | K79: 2 | L79: Each | M79: 2009 | N79: FALSE | O79: 1998 | P79: 0.1 | Q79: 10247980.61 | S79: Normal | U79: 0 | V79: 0 | W79: 60 | Y79: Existing | AB79: 16-966-628 | AD79: Red Line
B80: 9999 | C80: Metroville Transportation Authority | D80: LR | E80: Rail Light Rail | F80: 21223 | G80: Facilities | H80: Buildings | I80: Maintenance | J80: Rail Light Rail | K80: 1 | L80: Each | M80: 2014 | N80: FALSE | O80: 2003 | P80: 0.1 | Q80: 5703663.313 | S80: Normal | U80: 0 | V80: 0 | W80: 60 | Y80: Existing | AB80: 54-639-086 | AD80: Yellow Line
B81: 9999 | C81: Metroville Transportation Authority | D81: LR | E81: Rail Light Rail | F81: 21223 | G81: Facilities | H81: Buildings | I81: Maintenance | J81: Rail Light Rail | K81: 1 | L81: Each | M81: 2018 | N81: FALSE | O81: 2007 | P81: 0.1 | Q81: 1076915.451 | S81: Normal | U81: 0 | V81: 0 | W81: 60 | Y81: Existing | AB81: 64-714-723 | AD81: Blue Line
B82: 9999 | C82: Metroville Transportation Authority | D82: LR | E82: Rail Light Rail | F82: 23313 | G82: Facilities | H82: Equipment | I82: Maintenance | J82: Rail Light Rail | K82: 3 | L82: Each | M82: 2009 | N82: FALSE | O82: 1998 | P82: 0.1 | Q82: 1083119.902 | S82: Normal | U82: 0 | V82: 0 | W82: 15 | Y82: Existing | AB82: 08-350-032 | AD82: Systemwide
B83: 9999 | C83: Metroville Transportation Authority | D83: LR | E83: Grade Crossing | F83: 10210 | G83: Guideway Elements | H83: Guideway | I83: At Grade-In-Street | J83: Grade Crossing | K83: 27 | L83: LF | M83: 2010 | N83: FALSE | O83: 2013 | P83: 0 | Q83: 501324.5708 | S83: Normal | U83: 0 | V83: 0 | W83: 18 | Y83: Existing | AB83: 30-891-649 | AD83: Yellow Line | AE83: South
B84: 9999 | C84: Metroville Transportation Authority | D84: LR | E84: Bridge | F84: 10330 | G84: Guideway Elements | H84: Guideway | I84: Elevated Structure | J84: Bridge | K84: 905.2 | L84: LF | M84: 2010 | N84: FALSE | O84: 2013 | P84: 0 | Q84: 39519.5416 | S84: Normal | U84: 0 | V84: 0 | W84: 100 | Y84: Existing | AB84: 41-691-130 | AD84: Blue Line | AE84: West
B85: 9999 | C85: Metroville Transportation Authority | D85: LR | E85: Bridge | F85: 10330 | G85: Guideway Elements | H85: Guideway | I85: Elevated Structure | J85: Bridge | K85: 3 | L85: Ea | M85: 2010 | N85: FALSE | O85: 2013 | P85: 0 | Q85: 248155.6625 | S85: Normal | U85: 0 | V85: 0 | W85: 100 | Y85: Existing | AB85: 08-405-591 | AD85: Blue Line | AE85: East
B86: 9999 | C86: Metroville Transportation Authority | D86: LR | E86: Bridge Light Rail | F86: 10333 | G86: Guideway Elements | H86: Guideway | I86: Elevated Structure | J86: Bridge Light Rail | K86: 600 | L86: LF | M86: 2022 | N86: FALSE | O86: 2013 | P86: 0 | Q86: 39928.8737 | S86: Normal | U86: 0 | V86: 0 | W86: 100 | Y86: Existing | AB86: 68-152-469 | AD86: Blue Line | AE86: West
B87: 9999 | C87: Metroville Transportation Authority | D87: LR | E87: Bridge Light Rail | F87: 10333 | G87: Guideway Elements | H87: Guideway | I87: Elevated Structure | J87: Bridge Light Rail | K87: 900 | L87: LF | M87: 2022 | N87: FALSE | O87: 2013 | P87: 0 | Q87: 39928.8737 | S87: Normal | U87: 0 | V87: 0 | W87: 100 | Y87: Existing | AB87: 68-152-469 | AD87: Yellow Line | AE87: Central
B88: 9999 | C88: Metroville Transportation Authority | D88: LR | E88: Bridge Light Rail | F88: 10333 | G88: Guideway Elements | H88: Guideway | I88: Elevated Structure | J88: Bridge Light Rail | K88: 796.75 | L88: LF | M88: 2024 | N88: FALSE | O88: 2013 | P88: 0 | Q88: 12013.4527 | S88: Normal | U88: 0 | V88: 0 | W88: 100 | Y88: Existing | AB88: 64-109-027 | AD88: Red Line | AE88: North
B89: 9999 | C89: Metroville Transportation Authority | D89: LR | E89: Fencing | F89: 12100 | G89: Guideway Elements | H89: Special Structures | I89: Fencing | J89: - | K89: 34657.92 | L89: LF | M89: 2010 | N89: FALSE | O89: 2013 | P89: 0 | Q89: 30.6863 | S89: Normal | U89: 0 | V89: 0 | W89: 25 | Y89: Existing | AB89: 75-730-958 | AD89: Red Line | AE89: West
B90: 9999 | C90: Metroville Transportation Authority | D90: LR | E90: Fencing | F90: 12100 | G90: Guideway Elements | H90: Special Structures | I90: Fencing | J90: - | K90: 6 | L90: Ea | M90: 2010 | N90: FALSE | O90: 2013 | P90: 0 | Q90: 27393.8069 | S90: Normal | U90: 0 | V90: 0 | W90: 25 | Y90: Existing | AB90: 04-665-628 | AD90: Yellow Line | AE90: East
B91: 9999 | C91: Metroville Transportation Authority | D91: LR | E91: Fencing | F91: 12100 | G91: Guideway Elements | H91: Special Structures | I91: Fencing | J91: - | K91: 2 | L91: Ea | M91: 2019 | N91: FALSE | O91: 2013 | P91: 0 | Q91: 7734.7219 | S91: Normal | U91: 0 | V91: 0 | W91: 25 | Y91: Existing | AB91: 02-357-851 | AD91: Red Line | AE91: Central
B92: 9999 | C92: Metroville Transportation Authority | D92: LR | E92: Retaining Walls | F92: 12200 | G92: Guideway Elements | H92: Special Structures | I92: Retaining Walls | J92: - | K92: 1454.9 | L92: LF | M92: 2016 | N92: FALSE | O92: 2013 | P92: 0 | Q92: 644.6045 | S92: Normal | U92: 0 | V92: 0 | W92: 40 | Y92: Existing | AB92: 05-151-446 | AD92: Blue Line | AE92: East
B93: 9999 | C93: Metroville Transportation Authority | D93: LR | E93: Retaining Walls | F93: 12200 | G93: Guideway Elements | H93: Special Structures | I93: Retaining Walls | J93: - | K93: 1778 | L93: LF | M93: 2010 | N93: FALSE | O93: 2013 | P93: 0 | Q93: 42.4148 | S93: Normal | U93: 0 | V93: 0 | W93: 40 | Y93: Existing | AB93: 21-009-085 | AD93: Red Line | AE93: North
B94: 9999 | C94: Metroville Transportation Authority | D94: LR | E94: Curve | F94: 11202 | G94: Guideway Elements | H94: Trackwork | I94: Ballasted | J94: Curve | K94: 52179.84 | L94: LF | M94: 2022 | N94: FALSE | O94: 2013 | P94: 0 | Q94: 481.754 | S94: Normal | U94: 0 | V94: 0 | W94: 20 | Y94: Existing | AB94: 55-798-009 | AD94: Red Line | AE94: West | AF94: A-00559
B95: 9999 | C95: Metroville Transportation Authority | D95: LR | E95: Curve | F95: 11202 | G95: Guideway Elements | H95: Trackwork | I95: Ballasted | J95: Curve | K95: 37864.49 | L95: LF | M95: 2010 | N95: FALSE | O95: 2013 | P95: 0 | Q95: 459.616 | S95: Normal | U95: 0 | V95: 0 | W95: 20 | Y95: Existing | AB95: 72-926-734 | AD95: Yellow Line | AE95: Central | AF95: B-01253
B96: 9999 | C96: Metroville Transportation Authority | D96: LR | E96: Curve | F96: 11202 | G96: Guideway Elements | H96: Trackwork | I96: Ballasted | J96: Curve | K96: 6027 | L96: LF | M96: 2024 | N96: FALSE | O96: 2013 | P96: 0 | Q96: 465.2127 | S96: Normal | U96: 0 | V96: 0 | W96: 20 | Y96: Existing | AB96: 38-847-630 | AD96: Red Line | AE96: North | AF96: C-09061
B97: 9999 | C97: Metroville Transportation Authority | D97: LR | E97: Curve | F97: 11202 | G97: Guideway Elements | H97: Trackwork | I97: Ballasted | J97: Curve | K97: 1267.47 | L97: LF | M97: 2019 | N97: FALSE | O97: 2013 | P97: 0 | Q97: 480.571 | S97: Normal | U97: 0 | V97: 0 | W97: 20 | Y97: Existing | AB97: 28-023-533 | AD97: Yellow Line | AE97: East | AF97: C-09874
B98: 9999 | C98: Metroville Transportation Authority | D98: LR | E98: Guarded | F98: 11203 | G98: Guideway Elements | H98: Trackwork | I98: Ballasted | J98: Guarded | K98: 10065.75 | L98: LF | M98: 2022 | N98: FALSE | O98: 2013 | P98: 0 | Q98: 124.8682 | S98: Normal | U98: 0 | V98: 0 | W98: 10 | Y98: Existing | AB98: 02-980-896 | AD98: Red Line | AE98: Central | AF98: C-08734
B99: 9999 | C99: Metroville Transportation Authority | D99: LR | E99: Guarded | F99: 11203 | G99: Guideway Elements | H99: Trackwork | I99: Ballasted | J99: Guarded | K99: 4016.88 | L99: LF | M99: 2024 | N99: FALSE | O99: 2013 | P99: 0 | Q99: 120.3472 | S99: Normal | U99: 0 | V99: 0 | W99: 10 | Y99: Existing | AB99: 98-227-997 | AD99: Blue Line | AE99: East | AF99: C-09874
B100: 9999 | C100: Metroville Transportation Authority | D100: LR | E100: Guarded | F100: 11203 | G100: Guideway Elements | H100: Trackwork | I100: Ballasted | J100: Guarded | K100: 1892 | L100: LF | M100: 2010 | N100: FALSE | O100: 2013 | P100: 0 | Q100: 122.6436 | S100: Normal | U100: 0 | V100: 0 | W100: 10 | Y100: Existing | AB100: 90-247-100 | AD100: Red Line | AE100: South | AF100: A-07864
B101: 9999 | C101: Metroville Transportation Authority | D101: LR | E101: Platform Curved | F101: 11205 | G101: Guideway Elements | H101: Trackwork | I101: Ballasted | J101: Platform Curved | K101: 277.8 | L101: LF | M101: 2016 | N101: FALSE | O101: 2013 | P101: 0 | Q101: 487.2485 | S101: Normal | U101: 0 | V101: 0 | W101: 36 | Y101: Existing | AB101: 29-937-917 | AD101: Yellow Line | AE101: Central | AF101: B-09077
B102: 9999 | C102: Metroville Transportation Authority | D102: LR | E102: Platform Curved | F102: 11205 | G102: Guideway Elements | H102: Trackwork | I102: Ballasted | J102: Platform Curved | K102: 87.789 | L102: LF | M102: 2010 | N102: FALSE | O102: 2013 | P102: 0 | Q102: 484.582 | S102: Normal | U102: 0 | V102: 0 | W102: 36 | Y102: Existing | AB102: 81-805-486 | AD102: Red Line | AE102: North | AF102: C-02992
B103: 9999 | C103: Metroville Transportation Authority | D103: LR | E103: Platform Curved | F103: 11205 | G103: Guideway Elements | H103: Trackwork | I103: Ballasted | J103: Platform Curved | K103: 37.16 | L103: LF | M103: 2014 | N103: FALSE | O103: 2013 | P103: 0 | Q103: 494.3478 | S103: Normal | U103: 0 | V103: 0 | W103: 36 | Y103: Existing | AB103: 46-857-468 | AD103: Yellow Line | AE103: South | AF103: B-00170
B104: 9999 | C104: Metroville Transportation Authority | D104: LR | E104: Platform Curved | F104: 11205 | G104: Guideway Elements | H104: Trackwork | I104: Ballasted | J104: Platform Curved | K104: 24.49 | L104: LF | M104: 2019 | N104: FALSE | O104: 2013 | P104: 0 | Q104: 513.2268 | S104: Normal | U104: 0 | V104: 0 | W104: 36 | Y104: Existing | AB104: 54-622-238 | AD104: Red Line | AE104: West | AF104: A-09167
B105: 9999 | C105: Metroville Transportation Authority | D105: LR | E105: Platform Curved | F105: 11205 | G105: Guideway Elements | H105: Trackwork | I105: Ballasted | J105: Platform Curved | K105: 17.25 | L105: LF | M105: 2017 | N105: FALSE | O105: 2013 | P105: 0 | Q105: 493.2286 | S105: Normal | U105: 0 | V105: 0 | W105: 36 | Y105: Existing | AB105: 58-003-460 | AD105: Yellow Line | AE105: East | AF105: C-03006
B106: 9999 | C106: Metroville Transportation Authority | D106: LR | E106: Platform Tangent | F106: 11204 | G106: Guideway Elements | H106: Trackwork | I106: Ballasted | J106: Platform Tangent | K106: 11734.75 | L106: LF | M106: 2010 | N106: FALSE | O106: 2013 | P106: 0 | Q106: 280.1301 | S106: Normal | U106: 0 | V106: 0 | W106: 10 | Y106: Existing | AB106: 78-698-603 | AD106: Red Line | AE106: Central | AF106: B-02211
B107: 9999 | C107: Metroville Transportation Authority | D107: LR | E107: Platform Tangent | F107: 11204 | G107: Guideway Elements | H107: Trackwork | I107: Ballasted | J107: Platform Tangent | K107: 6035.98 | L107: LF | M107: 2014 | N107: FALSE | O107: 2013 | P107: 0 | Q107: 432.4846 | S107: Normal | U107: 0 | V107: 0 | W107: 10 | Y107: Existing | AB107: 94-266-824 | AD107: Blue Line | AE107: East | AF107: A-06288
B108: 9999 | C108: Metroville Transportation Authority | D108: LR | E108: Platform Tangent | F108: 11204 | G108: Guideway Elements | H108: Trackwork | I108: Ballasted | J108: Platform Tangent | K108: 3865.56 | L108: LF | M108: 2016 | N108: FALSE | O108: 2013 | P108: 0 | Q108: 350.1631 | S108: Normal | U108: 0 | V108: 0 | W108: 10 | Y108: Existing | AB108: 99-485-460 | AD108: Blue Line | AE108: West | AF108: C-01910
B109: 9999 | C109: Metroville Transportation Authority | D109: LR | E109: Platform Tangent | F109: 11204 | G109: Guideway Elements | H109: Trackwork | I109: Ballasted | J109: Platform Tangent | K109: 2878 | L109: LF | M109: 2022 | N109: FALSE | O109: 2013 | P109: 0 | Q109: 251.9563 | S109: Normal | U109: 0 | V109: 0 | W109: 10 | Y109: Existing | AB109: 04-823-309 | AD109: Yellow Line | AE109: Central | AF109: C-03759
B110: 9999 | C110: Metroville Transportation Authority | D110: LR | E110: Platform Tangent | F110: 11204 | G110: Guideway Elements | H110: Trackwork | I110: Ballasted | J110: Platform Tangent | K110: 1696.13 | L110: LF | M110: 2024 | N110: FALSE | O110: 2013 | P110: 0 | Q110: 364.8174 | S110: Normal | U110: 0 | V110: 0 | W110: 10 | Y110: Existing | AB110: 07-819-296 | AD110: Yellow Line | AE110: East | AF110: A-04645
B111: 9999 | C111: Metroville Transportation Authority | D111: LR | E111: Platform Tangent | F111: 11204 | G111: Guideway Elements | H111: Trackwork | I111: Ballasted | J111: Platform Tangent | K111: 2432 | L111: LF | M111: 2019 | N111: FALSE | O111: 2013 | P111: 0 | Q111: 230.5787 | S111: Normal | U111: 0 | V111: 0 | W111: 10 | Y111: Existing | AB111: 82-200-100 | AD111: Yellow Line | AE111: South | AF111: B-09077
B112: 9999 | C112: Metroville Transportation Authority | D112: LR | E112: Platform Tangent | F112: 11204 | G112: Guideway Elements | H112: Trackwork | I112: Ballasted | J112: Platform Tangent | K112: 1492.75 | L112: LF | M112: 2017 | N112: FALSE | O112: 2013 | P112: 0 | Q112: 317.3684 | S112: Normal | U112: 0 | V112: 0 | W112: 10 | Y112: Existing | AB112: 56-894-972 | AD112: Red Line | AE112: North | AF112: B-00170
B113: 9999 | C113: Metroville Transportation Authority | D113: LR | E113: Platform Tangent | F113: 11204 | G113: Guideway Elements | H113: Trackwork | I113: Ballasted | J113: Platform Tangent | K113: 1 | L113: Ea | M113: 2024 | N113: FALSE | O113: 2013 | P113: 0 | Q113: 338.3941 | S113: Normal | U113: 0 | V113: 0 | W113: 10 | Y113: Existing | AB113: 18-369-386 | AD113: Red Line | AE113: South | AF113: B-08260
B114: 9999 | C114: Metroville Transportation Authority | D114: LR | E114: Tangent | F114: 11201 | G114: Guideway Elements | H114: Trackwork | I114: Ballasted | J114: Tangent | K114: 110067.4 | L114: LF | M114: 2022 | N114: FALSE | O114: 2013 | P114: 0 | Q114: 114.193 | S114: Normal | U114: 0 | V114: 0 | W114: 40 | Y114: Existing | AB114: 79-744-131 | AD114: Red Line | AE114: North | AF114: B-09077
B115: 9999 | C115: Metroville Transportation Authority | D115: LR | E115: Tangent | F115: 11201 | G115: Guideway Elements | H115: Trackwork | I115: Ballasted | J115: Tangent | K115: 82714.58 | L115: LF | M115: 2010 | N115: FALSE | O115: 2013 | P115: 0 | Q115: 115.7198 | S115: Normal | U115: 0 | V115: 0 | W115: 40 | Y115: Existing | AB115: 68-381-742 | AD115: Blue Line | AE115: East | AF115: B-08969
B116: 9999 | C116: Metroville Transportation Authority | D116: LR | E116: Tangent | F116: 11201 | G116: Guideway Elements | H116: Trackwork | I116: Ballasted | J116: Tangent | K116: 2842.54 | L116: LF | M116: 2019 | N116: FALSE | O116: 2013 | P116: 0 | Q116: 115.6451 | S116: Normal | U116: 0 | V116: 0 | W116: 40 | Y116: Existing | AB116: 90-350-745 | AD116: Blue Line | AE116: West | AF116: B-00170
B117: 9999 | C117: Metroville Transportation Authority | D117: LR | E117: Tangent | F117: 11201 | G117: Guideway Elements | H117: Trackwork | I117: Ballasted | J117: Tangent | K117: 2387.16 | L117: LF | M117: 2024 | N117: FALSE | O117: 2013 | P117: 0 | Q117: 117.4549 | S117: Normal | U117: 0 | V117: 0 | W117: 40 | Y117: Existing | AB117: 23-380-210 | AD117: Yellow Line | AE117: South | AF117: B-01876
B118: 9999 | C118: Metroville Transportation Authority | D118: LR | E118: Tangent | F118: 11201 | G118: Guideway Elements | H118: Trackwork | I118: Ballasted | J118: Tangent | K118: 419.79 | L118: LF | M118: 2019 | N118: FALSE | O118: 2013 | P118: 0 | Q118: 115.1576 | S118: Normal | U118: 0 | V118: 0 | W118: 40 | Y118: Existing | AB118: 94-993-839 | AD118: Red Line | AE118: Central | AF118: B-09077
B119: 9999 | C119: Metroville Transportation Authority | D119: LR | E119: Curve | F119: 11102 | G119: Guideway Elements | H119: Trackwork | I119: Direct Fixation | J119: Curve | K119: 1856.95 | L119: LF | M119: 2022 | N119: FALSE | O119: 2013 | P119: 0 | Q119: 572.7264 | S119: Normal | U119: 0 | V119: 0 | W119: 20 | Y119: Existing | AB119: 03-199-644 | AD119: Yellow Line | AE119: Central | AF119: C-05198
B120: 9999 | C120: Metroville Transportation Authority | D120: LR | E120: Curve | F120: 11102 | G120: Guideway Elements | H120: Trackwork | I120: Direct Fixation | J120: Curve | K120: 170.47 | L120: LF | M120: 2024 | N120: FALSE | O120: 2013 | P120: 0 | Q120: 567.1615 | S120: Normal | U120: 0 | V120: 0 | W120: 20 | Y120: Existing | AB120: 11-829-632 | AD120: Yellow Line | AE120: East | AF120: B-00405
B121: 9999 | C121: Metroville Transportation Authority | D121: LR | E121: Guarded | F121: 11103 | G121: Guideway Elements | H121: Trackwork | I121: Direct Fixation | J121: Guarded | K121: 2071.16 | L121: LF | M121: 2022 | N121: FALSE | O121: 2013 | P121: 0 | Q121: 606.8543 | S121: Normal | U121: 0 | V121: 0 | W121: 10 | Y121: Existing | AB121: 84-678-846 | AD121: Red Line | AE121: West | AF121: B-00002
B122: 9999 | C122: Metroville Transportation Authority | D122: LR | E122: Tangent | F122: 11101 | G122: Guideway Elements | H122: Trackwork | I122: Direct Fixation | J122: Tangent | K122: 126.48 | L122: LF | M122: 2024 | N122: FALSE | O122: 2013 | P122: 0 | Q122: 389.8549 | S122: Normal | U122: 0 | V122: 0 | W122: 40 | Y122: Existing | AB122: 51-822-253 | AD122: Red Line | AE122: South | AF122: C-01337
B123: 9999 | C123: Metroville Transportation Authority | D123: LR | E123: Tangent | F123: 11101 | G123: Guideway Elements | H123: Trackwork | I123: Direct Fixation | J123: Tangent | K123: 14.71 | L123: LF | M123: 2022 | N123: FALSE | O123: 2013 | P123: 0 | Q123: 387.7877 | S123: Normal | U123: 0 | V123: 0 | W123: 40 | Y123: Existing | AB123: 89-411-195 | AD123: Red Line | AE123: North | AF123: B-09620
B124: 9999 | C124: Metroville Transportation Authority | D124: LR | E124: At-Grade Crossings | F124: 11303 | G124: Guideway Elements | H124: Trackwork | I124: Embedded | J124: At-Grade Crossings | K124: 84 | L124: LF | M124: 2022 | N124: FALSE | O124: 2013 | P124: 0 | Q124: 506440.1276 | S124: Normal | U124: 0 | V124: 0 | W124: 20 | Y124: Existing | AB124: 21-741-684 | AD124: Blue Line | AE124: West | AF124: B-01838
B125: 9999 | C125: Metroville Transportation Authority | D125: LR | E125: At-Grade Crossings | F125: 11303 | G125: Guideway Elements | H125: Trackwork | I125: Embedded | J125: At-Grade Crossings | K125: 2137.76 | L125: LF | M125: 2010 | N125: FALSE | O125: 2013 | P125: 0 | Q125: 189.9525 | S125: Normal | U125: 0 | V125: 0 | W125: 20 | Y125: Existing | AB125: 49-182-278 | AD125: Blue Line | AE125: East | AF125: A-03338
B126: 9999 | C126: Metroville Transportation Authority | D126: LR | E126: Curve | F126: 11302 | G126: Guideway Elements | H126: Trackwork | I126: Embedded | J126: Curve | K126: 19100.9 | L126: LF | M126: 2014 | N126: FALSE | O126: 2013 | P126: 0 | Q126: 607.4103 | S126: Normal | U126: 0 | V126: 0 | W126: 20 | Y126: Existing | AB126: 50-565-309 | AD126: Yellow Line | AE126: East | AF126: C-06989
B127: 9999 | C127: Metroville Transportation Authority | D127: LR | E127: Curve | F127: 11302 | G127: Guideway Elements | H127: Trackwork | I127: Embedded | J127: Curve | K127: 21246.64 | L127: LF | M127: 2024 | N127: FALSE | O127: 2013 | P127: 0 | Q127: 500.5612 | S127: Normal | U127: 0 | V127: 0 | W127: 20 | Y127: Existing | AB127: 40-693-360 | AD127: Red Line | AE127: Central | AF127: C-04974
B128: 9999 | C128: Metroville Transportation Authority | D128: LR | E128: Curve | F128: 11302 | G128: Guideway Elements | H128: Trackwork | I128: Embedded | J128: Curve | K128: 14019.74 | L128: LF | M128: 2016 | N128: FALSE | O128: 2013 | P128: 0 | Q128: 496.532 | S128: Normal | U128: 0 | V128: 0 | W128: 20 | Y128: Existing | AB128: 10-146-402 | AD128: Red Line | AE128: West | AF128: C-09633
B129: 9999 | C129: Metroville Transportation Authority | D129: LR | E129: Curve | F129: 11302 | G129: Guideway Elements | H129: Trackwork | I129: Embedded | J129: Curve | K129: 8953.85 | L129: LF | M129: 2010 | N129: FALSE | O129: 2013 | P129: 0 | Q129: 485.9118 | S129: Normal | U129: 0 | V129: 0 | W129: 20 | Y129: Existing | AB129: 53-847-195 | AD129: Yellow Line | AE129: South | AF129: A-04064
B130: 9999 | C130: Metroville Transportation Authority | D130: LR | E130: Curve | F130: 11302 | G130: Guideway Elements | H130: Trackwork | I130: Embedded | J130: Curve | K130: 4644.42 | L130: LF | M130: 2019 | N130: FALSE | O130: 2013 | P130: 0 | Q130: 499.6139 | S130: Normal | U130: 0 | V130: 0 | W130: 20 | Y130: Existing | AB130: 17-051-279 | AD130: Red Line | AE130: North | AF130: B-03083
B131: 9999 | C131: Metroville Transportation Authority | D131: LR | E131: Curve | F131: 11302 | G131: Guideway Elements | H131: Trackwork | I131: Embedded | J131: Curve | K131: 4814.38 | L131: LF | M131: 2022 | N131: FALSE | O131: 2013 | P131: 0 | Q131: 481.9762 | S131: Normal | U131: 0 | V131: 0 | W131: 20 | Y131: Existing | AB131: 43-444-191 | AD131: Red Line | AE131: South | AF131: B-06040
B132: 9999 | C132: Metroville Transportation Authority | D132: LR | E132: Curve | F132: 11302 | G132: Guideway Elements | H132: Trackwork | I132: Embedded | J132: Curve | K132: 569.21 | L132: LF | M132: 2014 | N132: FALSE | O132: 2013 | P132: 0 | Q132: 492.5839 | S132: Normal | U132: 0 | V132: 0 | W132: 20 | Y132: Existing | AB132: 69-632-217 | AD132: Yellow Line | AE132: Central | AF132: C-02088
B133: 9999 | C133: Metroville Transportation Authority | D133: LR | E133: Curve | F133: 11302 | G133: Guideway Elements | H133: Trackwork | I133: Embedded | J133: Curve | K133: 8 | L133: Ea | M133: 2014 | N133: FALSE | O133: 2013 | P133: 0 | Q133: 495.5056 | S133: Normal | U133: 0 | V133: 0 | W133: 20 | Y133: Existing | AB133: 96-908-650 | AD133: Red Line | AE133: North | AF133: C-00386
B134: 9999 | C134: Metroville Transportation Authority | D134: LR | E134: Tangent | F134: 11301 | G134: Guideway Elements | H134: Trackwork | I134: Embedded | J134: Tangent | K134: 18621.62 | L134: LF | M134: 2010 | N134: FALSE | O134: 2013 | P134: 0 | Q134: 342.674 | S134: Normal | U134: 0 | V134: 0 | W134: 40 | Y134: Existing | AB134: 10-033-115 | AD134: Red Line | AE134: North | AF134: C-07278
B135: 9999 | C135: Metroville Transportation Authority | D135: LR | E135: Tangent | F135: 11301 | G135: Guideway Elements | H135: Trackwork | I135: Embedded | J135: Tangent | K135: 21721.75 | L135: LF | M135: 2024 | N135: FALSE | O135: 2013 | P135: 0 | Q135: 244.8063 | S135: Normal | U135: 0 | V135: 0 | W135: 40 | Y135: Existing | AB135: 69-018-424 | AD135: Red Line | AE135: Central | AF135: C-04044
B136: 9999 | C136: Metroville Transportation Authority | D136: LR | E136: Tangent | F136: 11301 | G136: Guideway Elements | H136: Trackwork | I136: Embedded | J136: Tangent | K136: 7961.04 | L136: LF | M136: 2016 | N136: FALSE | O136: 2013 | P136: 0 | Q136: 352.1948 | S136: Normal | U136: 0 | V136: 0 | W136: 40 | Y136: Existing | AB136: 32-712-614 | AD136: Red Line | AE136: West | AF136: A-04137
B137: 9999 | C137: Metroville Transportation Authority | D137: LR | E137: Tangent | F137: 11301 | G137: Guideway Elements | H137: Trackwork | I137: Embedded | J137: Tangent | K137: 5095.41 | L137: LF | M137: 2014 | N137: FALSE | O137: 2013 | P137: 0 | Q137: 455.3935 | S137: Normal | U137: 0 | V137: 0 | W137: 40 | Y137: Existing | AB137: 23-153-623 | AD137: Yellow Line | AE137: East | AF137: C-07411
B138: 9999 | C138: Metroville Transportation Authority | D138: LR | E138: Tangent | F138: 11301 | G138: Guideway Elements | H138: Trackwork | I138: Embedded | J138: Tangent | K138: 3868.68 | L138: LF | M138: 2019 | N138: FALSE | O138: 2013 | P138: 0 | Q138: 349.8807 | S138: Normal | U138: 0 | V138: 0 | W138: 40 | Y138: Existing | AB138: 83-997-204 | AD138: Red Line | AE138: North | AF138: A-05703
B139: 9999 | C139: Metroville Transportation Authority | D139: LR | E139: Tangent | F139: 11301 | G139: Guideway Elements | H139: Trackwork | I139: Embedded | J139: Tangent | K139: 3798.26 | L139: LF | M139: 2014 | N139: FALSE | O139: 2013 | P139: 0 | Q139: 356.3675 | S139: Normal | U139: 0 | V139: 0 | W139: 20 | Y139: Existing | AB139: 35-626-888 | AD139: Yellow Line | AE139: South | AF139: B-00014
B140: 9999 | C140: Metroville Transportation Authority | D140: LR | E140: Tangent | F140: 11301 | G140: Guideway Elements | H140: Trackwork | I140: Embedded | J140: Tangent | K140: 3252.76 | L140: LF | M140: 2014 | N140: FALSE | O140: 2013 | P140: 0 | Q140: 356.6843 | S140: Normal | U140: 0 | V140: 0 | W140: 32 | Y140: Existing | AB140: 40-069-837 | AD140: Yellow Line | AE140: Central | AF140: C-04430
B141: 9999 | C141: Metroville Transportation Authority | D141: LR | E141: Tangent | F141: 11301 | G141: Guideway Elements | H141: Trackwork | I141: Embedded | J141: Tangent | K141: 1289.2 | L141: LF | M141: 2022 | N141: FALSE | O141: 2013 | P141: 0 | Q141: 367.4773 | S141: Normal | U141: 0 | V141: 0 | W141: 40 | Y141: Existing | AB141: 79-264-658 | AD141: Red Line | AE141: South | AF141: B-03181
B142: 9999 | C142: Metroville Transportation Authority | D142: LR | E142: Tangent | F142: 11301 | G142: Guideway Elements | H142: Trackwork | I142: Embedded | J142: Tangent | K142: 122.91 | L142: LF | M142: 1911 | N142: FALSE | O142: 2013 | P142: 0 | Q142: 346.1148 | S142: Normal | U142: 0 | V142: 0 | W142: 40 | Y142: Existing | AB142: 51-323-630 | AD142: Blue Line | AE142: West | AF142: C-01058
B143: 9999 | C143: Metroville Transportation Authority | D143: LR | E143: Tangent | F143: 11301 | G143: Guideway Elements | H143: Trackwork | I143: Embedded | J143: Tangent | K143: 10 | L143: Ea | M143: 2014 | N143: FALSE | O143: 2013 | P143: 0 | Q143: 338.3941 | S143: Normal | U143: 0 | V143: 0 | W143: 41 | Y143: Existing | AB143: 47-936-868 | AD143: Blue Line | AE143: East | AF143: C-04386
B144: 9999 | C144: Metroville Transportation Authority | D144: LR | E144: Special | F144: 11400 | G144: Guideway Elements | H144: Trackwork | I144: Special | J144: - | K144: 44625.34 | L144: LF | M144: 2022 | N144: FALSE | O144: 2013 | P144: 0 | Q144: 368.3173 | S144: Normal | U144: 0 | V144: 0 | W144: 20 | Y144: Existing | AB144: 07-357-137 | AD144: Yellow Line | AE144: Central | AF144: C-02916
B145: 9999 | C145: Metroville Transportation Authority | D145: LR | E145: Special | F145: 11400 | G145: Guideway Elements | H145: Trackwork | I145: Special | J145: - | K145: 9493.89 | L145: LF | M145: 2014 | N145: FALSE | O145: 2013 | P145: 0 | Q145: 1527.5723 | S145: Normal | U145: 0 | V145: 0 | W145: 20 | Y145: Existing | AB145: 05-526-999 | AD145: Blue Line | AE145: West | AF145: C-09012
B146: 9999 | C146: Metroville Transportation Authority | D146: LR | E146: Special | F146: 11400 | G146: Guideway Elements | H146: Trackwork | I146: Special | J146: - | K146: 16367.93 | L146: LF | M146: 2024 | N146: FALSE | O146: 2013 | P146: 0 | Q146: 649.761 | S146: Normal | U146: 0 | V146: 0 | W146: 20 | Y146: Existing | AB146: 45-887-091 | AD146: Yellow Line | AE146: East | AF146: C-02540
B147: 9999 | C147: Metroville Transportation Authority | D147: LR | E147: Special | F147: 11400 | G147: Guideway Elements | H147: Trackwork | I147: Special | J147: - | K147: 9483.93 | L147: LF | M147: 2019 | N147: FALSE | O147: 2013 | P147: 0 | Q147: 1019.4511 | S147: Normal | U147: 0 | V147: 0 | W147: 20 | Y147: Existing | AB147: 67-902-418 | AD147: Yellow Line | AE147: South | AF147: C-03868 | AQ147: CRS-TC-INT-SEH-1.1-S
B148: 9999 | C148: Metroville Transportation Authority | D148: LR | E148: Special | F148: 11400 | G148: Guideway Elements | H148: Trackwork | I148: Special | J148: - | K148: 222.42 | L148: LF | M148: 2010 | N148: FALSE | O148: 2013 | P148: 0 | Q148: 12606.0458 | S148: Normal | U148: 0 | V148: 0 | W148: 20 | Y148: Existing | AB148: 00-681-738 | AD148: Blue Line | AE148: East | AF148: C-08479 | AQ148: CRS-TC-SH-SEH-0.7-S
B149: 9999 | C149: Metroville Transportation Authority | D149: LR | E149: Special | F149: 11400 | G149: Guideway Elements | H149: Trackwork | I149: Special | J149: - | K149: 22 | L149: Ea | M149: 2024 | N149: FALSE | O149: 2013 | P149: 0 | Q149: 92289.296 | S149: Normal | U149: 0 | V149: 0 | W149: 20 | Y149: Existing | AB149: 35-967-750 | AD149: Red Line | AE149: Central | AF149: B-04731 | AQ149: CRS-TC-GC-GCEH-31.1-S
B150: 9999 | C150: Metroville Transportation Authority | D150: LR | E150: Special | F150: 11400 | G150: Guideway Elements | H150: Trackwork | I150: Special | J150: - | K150: 64 | L150: Ea | M150: 2010 | N150: FALSE | O150: 2013 | P150: 0 | Q150: 24171.0061 | S150: Normal | U150: 0 | V150: 0 | W150: 20 | Y150: Existing | AB150: 44-617-774 | AD150: Yellow Line | AE150: Central | AF150: C-05761 | AQ150: WV-TC-CC18992-1.5-Z
B151: 9999 | C151: Metroville Transportation Authority | D151: LR | E151: Special | F151: 11400 | G151: Guideway Elements | H151: Trackwork | I151: Special | J151: - | K151: 51 | L151: Ea | M151: 2022 | N151: FALSE | O151: 2013 | P151: 0 | Q151: 28436.4778 | S151: Normal | U151: 0 | V151: 0 | W151: 20 | Y151: Existing | AB151: 87-532-510 | AD151: Red Line | AE151: South | AF151: B-03524 | AQ151: MJE-TC-CC115790-8.7-Z
B152: 9999 | C152: Metroville Transportation Authority | D152: LR | E152: Special | F152: 11400 | G152: Guideway Elements | H152: Trackwork | I152: Special | J152: - | K152: 3038.56 | L152: LF | M152: 2016 | N152: FALSE | O152: 2013 | P152: 0 | Q152: 445.4664 | S152: Normal | U152: 0 | V152: 0 | W152: 20 | Y152: Existing | AB152: 06-601-947 | AD152: Red Line | AE152: North | AF152: C-09538 | AQ152: MJE-TC-CC142759-3.6-Z
B153: 9999 | C153: Metroville Transportation Authority | D153: LR | E153: Special | F153: 11400 | G153: Guideway Elements | H153: Trackwork | I153: Special | J153: - | K153: 16 | L153: Ea | M153: 2014 | N153: FALSE | O153: 2013 | P153: 0 | Q153: 41090.7104 | S153: Normal | U153: 0 | V153: 0 | W153: 20 | Y153: Existing | AB153: 64-162-081 | AD153: Yellow Line | AE153: East | AF153: B-04731 | AQ153: MJE-TC-CC135394-5.0-Z
B154: 9999 | C154: Metroville Transportation Authority | D154: LR | E154: Special | F154: 11400 | G154: Guideway Elements | H154: Trackwork | I154: Special | J154: - | K154: 9 | L154: Ea | M154: 2019 | N154: FALSE | O154: 2013 | P154: 0 | Q154: 48342.0122 | S154: Normal | U154: 0 | V154: 0 | W154: 20 | Y154: Existing | AB154: 01-131-582 | AD154: Red Line | AE154: North | AF154: C-05937 | AQ154: AP-TC-TS-SHPE-1.0-Z
B155: 9999 | C155: Metroville Transportation Authority | D155: LR | E155: Special | F155: 11400 | G155: Guideway Elements | H155: Trackwork | I155: Special | J155: - | K155: 2 | L155: Ea | M155: 2016 | N155: FALSE | O155: 2013 | P155: 0 | Q155: 116020.8292 | S155: Normal | U155: 0 | V155: 0 | W155: 20 | Y155: Existing | AB155: 70-509-099 | AD155: Red Line | AE155: West | AF155: B-03836 | AQ155: WV-TC-TS-SHP-3.4-Z
B156: 9999 | C156: Metroville Transportation Authority | D156: LR | E156: Special | F156: 11400 | G156: Guideway Elements | H156: Trackwork | I156: Special | J156: - | K156: 1 | L156: Ea | M156: 1911 | N156: FALSE | O156: 2013 | P156: 0 | Q156: 75413.539 | S156: Normal | U156: 0 | V156: 0 | W156: 20 | Y156: Existing | AB156: 44-717-926 | AD156: Yellow Line | AE156: South | AF156: B-00163 | AQ156: WV-TC-TS-SHP-3.6-Z
B157: 9999 | C157: Metroville Transportation Authority | D157: LR | E157: Ballasted Single Crossover | F157: 11406 | G157: Guideway Elements | H157: Trackwork | I157: Special | J157: Ballasted Single Crossover | K157: 10 | L157: Ea | M157: 2010 | N157: FALSE | O157: 2013 | P157: 0 | Q157: 290052.0731 | S157: Normal | U157: 0 | V157: 0 | W157: 32 | Y157: Existing | AB157: 51-992-350 | AD157: Red Line | AE157: Central | AF157: B-05446 | AQ157: CRS-TC-GC-GCIEG-40.3-S
B158: 9999 | C158: Metroville Transportation Authority | D158: LR | E158: Ballasted Single Crossover | F158: 11406 | G158: Guideway Elements | H158: Trackwork | I158: Special | J158: Ballasted Single Crossover | K158: 8 | L158: Ea | M158: 1911 | N158: FALSE | O158: 2013 | P158: 0 | Q158: 87015.6219 | S158: Normal | U158: 0 | V158: 0 | W158: 32 | Y158: Existing | AB158: 69-390-842 | AD158: Red Line | AE158: South | AF158: A-04836 | AQ158: CRS-TC-GC-GCI-28.2-S
B159: 9999 | C159: Metroville Transportation Authority | D159: LR | E159: Ballasted Single Crossover | F159: 11406 | G159: Guideway Elements | H159: Trackwork | I159: Special | J159: Ballasted Single Crossover | K159: 2 | L159: Ea | M159: 2022 | N159: FALSE | O159: 2013 | P159: 0 | Q159: 87015.6219 | S159: Normal | U159: 0 | V159: 0 | W159: 32 | Y159: Existing | AB159: 41-685-075 | AD159: Blue Line | AE159: East | AF159: A-03440 | AQ159: CRS-TC-GC-FL-31.1-S
B160: 9999 | C160: Metroville Transportation Authority | D160: LR | E160: Diamond Crossover | F160: 11401 | G160: Guideway Elements | H160: Trackwork | I160: Special | J160: Diamond Crossover | K160: 2 | L160: Ea | M160: 2024 | N160: FALSE | O160: 2013 | P160: 0 | Q160: 149860.2378 | S160: Normal | U160: 0 | V160: 0 | W160: 32 | Y160: Existing | AB160: 04-453-751 | AD160: Yellow Line | AE160: Central | AF160: C-08687 | AQ160: CRS-TC-GC-FLWG-41.7-S
B161: 9999 | C161: Metroville Transportation Authority | D161: LR | E161: Diamond Crossover | F161: 11401 | G161: Guideway Elements | H161: Trackwork | I161: Special | J161: Diamond Crossover | K161: 2 | L161: Ea | M161: 2019 | N161: FALSE | O161: 2013 | P161: 0 | Q161: 37706.7695 | S161: Normal | U161: 0 | V161: 0 | W161: 32 | Y161: Existing | AB161: 60-613-887 | AD161: Red Line | AE161: North | AF161: B-05446 | AQ161: CRS-TC-GC-GMEG-41.7-S
B162: 9999 | C162: Metroville Transportation Authority | D162: LR | E162: Diamond Crossover | F162: 11401 | G162: Guideway Elements | H162: Trackwork | I162: Special | J162: Diamond Crossover | K162: 2 | L162: Ea | M162: 2022 | N162: FALSE | O162: 2013 | P162: 0 | Q162: 37706.7695 | S162: Normal | U162: 0 | V162: 0 | W162: 32 | Y162: Existing | AB162: 95-022-597 | AD162: Yellow Line | AE162: South | AF162: B-04731 | AQ162: CRS-TC-GC-GCI-43.5-S
B163: 9999 | C163: Metroville Transportation Authority | D163: LR | E163: Single Crossover | F163: 11404 | G163: Guideway Elements | H163: Trackwork | I163: Special | J163: Single Crossover | K163: 239.61 | L163: LF | M163: 2022 | N163: FALSE | O163: 2013 | P163: 0 | Q163: 129121.8555 | S163: Normal | U163: 0 | V163: 0 | W163: 32 | Y163: Existing | AB163: 74-884-112 | AD163: Blue Line | AE163: East | AF163: C-06156 | AQ163: MJ-TC-GC-6.1-Z
B164: 9999 | C164: Metroville Transportation Authority | D164: LR | E164: Single Crossover | F164: 11404 | G164: Guideway Elements | H164: Trackwork | I164: Special | J164: Single Crossover | K164: 4 | L164: Ea | M164: 2022 | N164: FALSE | O164: 2013 | P164: 0 | Q164: 132940.5335 | S164: Normal | U164: 0 | V164: 0 | W164: 32 | Y164: Existing | AB164: 78-701-200 | AD164: Red Line | AE164: South | AF164: C-05418 | AQ164: APE-TC-GC-GM-G2-5.5-Z
B165: 9999 | C165: Metroville Transportation Authority | D165: LR | E165: Single Crossover | F165: 11404 | G165: Guideway Elements | H165: Trackwork | I165: Special | J165: Single Crossover | K165: 4 | L165: Ea | M165: 2019 | N165: FALSE | O165: 2013 | P165: 0 | Q165: 118437.9299 | S165: Normal | U165: 0 | V165: 0 | W165: 32 | Y165: Existing | AB165: 06-322-457 | AD165: Red Line | AE165: North | AF165: A-01515 | AQ165: UNW-TC-GC-FL-G1-3.3-SG
B166: 9999 | C166: Metroville Transportation Authority | D166: LR | E166: Single Crossover | F166: 11404 | G166: Guideway Elements | H166: Trackwork | I166: Special | J166: Single Crossover | K166: 2 | L166: Ea | M166: 2024 | N166: FALSE | O166: 2013 | P166: 0 | Q166: 120855.0305 | S166: Normal | U166: 0 | V166: 0 | W166: 32 | Y166: Existing | AB166: 77-721-610 | AD166: Red Line | AE166: Central | AF166: C-08820 | AQ166: WVE-ES-OCS0195-FD-JA-2.2-Y
B167: 9999 | C167: Metroville Transportation Authority | D167: LR | E167: Turnout | F167: 11407 | G167: Guideway Elements | H167: Trackwork | I167: Special | J167: Turnout | K167: 7 | L167: Ea | M167: 2010 | N167: FALSE | O167: 2013 | P167: 0 | Q167: 303864.0766 | S167: Normal | U167: 0 | V167: 0 | W167: 42 | Y167: Existing | AB167: 43-141-882 | AD167: Yellow Line | AE167: Central | AF167: A-08016 | AQ167: MJW-TC-GC-FL-G1-6.9-Z
B168: 9999 | C168: Metroville Transportation Authority | D168: LR | E168: Turnout | F168: 11407 | G168: Guideway Elements | H168: Trackwork | I168: Special | J168: Turnout | K168: 34 | L168: Ea | M168: 2022 | N168: FALSE | O168: 2013 | P168: 0 | Q168: 39811.0689 | S168: Normal | U168: 0 | V168: 0 | W168: 42 | Y168: Existing | AB168: 09-990-775 | AD168: Red Line | AE168: West | AF168: C-00235 | AQ168: MJ-TC-GC-2.8-Z
B169: 9999 | C169: Metroville Transportation Authority | D169: LR | E169: Turnout | F169: 11407 | G169: Guideway Elements | H169: Trackwork | I169: Special | J169: Turnout | K169: 6 | L169: Ea | M169: 1911 | N169: FALSE | O169: 2013 | P169: 0 | Q169: 25782.4065 | S169: Normal | U169: 0 | V169: 0 | W169: 42 | Y169: Existing | AB169: 34-732-621 | AD169: Yellow Line | AE169: South | AF169: B-02307 | AQ169: MJW-TC-GC-FL-G4-3.5-Z
B170: 9999 | C170: Metroville Transportation Authority | D170: LR | E170: Turnout | F170: 11407 | G170: Guideway Elements | H170: Trackwork | I170: Special | J170: Turnout | K170: 2 | L170: Ea | M170: 2024 | N170: FALSE | O170: 2013 | P170: 0 | Q170: 58010.4146 | S170: Normal | U170: 0 | V170: 0 | W170: 42 | Y170: Existing | AB170: 27-534-601 | AD170: Red Line | AE170: North | AF170: C-08816 | AQ170: WVE-ES-OCS0195-FD-JA-2.2-Y
B171: 9999 | C171: Metroville Transportation Authority | D171: LR | E171: Turnout | F171: 11407 | G171: Guideway Elements | H171: Trackwork | I171: Special | J171: Turnout | K171: 1 | L171: Ea | M171: 2019 | N171: FALSE | O171: 2013 | P171: 0 | Q171: 31905.728 | S171: Normal | U171: 0 | V171: 0 | W171: 42 | Y171: Existing | AB171: 91-748-105 | AD171: Yellow Line | AE171: East | AF171: C-07357 | AQ171: NSW-TC-GC-GM-G1-4.2-NSSL
B172: 9999 | C172: Metroville Transportation Authority | D172: LR | E172: Stations | F172: 40000 | G172: Stations | H172: - | I172: - | J172: - | K172: 2.314 | L172: Each | M172: 2010 | N172: FALSE | O172: 2013 | P172: 0 | Q172: 7102974.997 | S172: Normal | U172: 0 | V172: 0 | W172: 60 | Y172: Existing | AB172: 43-078-155 | AD172: Red Line | AE172: North | AQ172: WVE-ES-OCS0195-FD-JA-2.2-Y
B173: 9999 | C173: Metroville Transportation Authority | D173: LR | E173: Stations | F173: 41203 | G173: Stations | H173: Building | I173: Light Rail | J173: - | K173: 10 | L173: Each | M173: 2019 | N173: FALSE | O173: 2008 | P173: 0.1 | Q173: 1598984.408 | S173: Normal | U173: 0 | V173: 0 | W173: 60 | Y173: Existing | AB173: 90-661-470 | AD173: Blue Line | AE173: West | AQ173: CRS-TC-INT-SHPB6-16.7-S
B174: 9999 | C174: Metroville Transportation Authority | D174: LR | E174: Stations | F174: 41203 | G174: Stations | H174: Building | I174: Light Rail | J174: - | K174: 10 | L174: Each | M174: 2019 | N174: FALSE | O174: 2008 | P174: 0.1 | Q174: 1598984.408 | S174: Normal | U174: 0 | V174: 0 | W174: 60 | Y174: Existing | AB174: 90-661-470 | AD174: Red Line | AE174: North | AQ174: MJW-TC-INT-SHPSSI1-0.1-Z
B175: 9999 | C175: Metroville Transportation Authority | D175: LR | E175: Stations | F175: 41203 | G175: Stations | H175: Building | I175: Light Rail | J175: - | K175: 10 | L175: Each | M175: 2019 | N175: FALSE | O175: 2008 | P175: 0.1 | Q175: 1598984.408 | S175: Normal | U175: 0 | V175: 0 | W175: 60 | Y175: Existing | AB175: 90-661-470 | AD175: Yellow Line | AE175: Central | AQ175: APW-TC-INT-SHP-9.1-Z
B176: 9999 | C176: Metroville Transportation Authority | D176: LR | E176: Stations | F176: 41203 | G176: Stations | H176: Building | I176: Light Rail | J176: - | K176: 10 | L176: Each | M176: 2019 | N176: FALSE | O176: 2008 | P176: 0.1 | Q176: 1598984.408 | S176: Normal | U176: 0 | V176: 0 | W176: 60 | Y176: Existing | AB176: 90-661-470 | AD176: Red Line | AE176: West | AQ176: APE-TC-INT-RSJ2-0.3-Z
B177: 9999 | C177: Metroville Transportation Authority | D177: LR | E177: Stations | F177: 41203 | G177: Stations | H177: Building | I177: Light Rail | J177: - | K177: 11 | L177: Each | M177: 2019 | N177: FALSE | O177: 2008 | P177: 0.1 | Q177: 1598984.408 | S177: Normal | U177: 0 | V177: 0 | W177: 60 | Y177: Existing | AB177: 90-661-470 | AD177: Yellow Line | AE177: South | AQ177: MJE-TC-INT-SM1A-1.4-Z
B178: 9999 | C178: Metroville Transportation Authority | D178: LR | E178: Stations | F178: 41203 | G178: Stations | H178: Building | I178: Light Rail | J178: - | K178: 11 | L178: Each | M178: 2019 | N178: FALSE | O178: 2008 | P178: 0.1 | Q178: 1598984.408 | S178: Normal | U178: 0 | V178: 0 | W178: 60 | Y178: Existing | AB178: 90-661-470 | AD178: Red Line | AE178: North | AQ178: CRN1-TC-INT-SHPR3-34.1-CL
B179: 9999 | C179: Metroville Transportation Authority | D179: LR | E179: Stations | F179: 41203 | G179: Stations | H179: Building | I179: Light Rail | J179: - | K179: 10 | L179: Each | M179: 2019 | N179: FALSE | O179: 2008 | P179: 0.1 | Q179: 1598984.408 | S179: Normal | U179: 0 | V179: 0 | W179: 60 | Y179: Existing | AB179: 90-661-470 | AD179: Yellow Line | AE179: East | AQ179: UNE-TC-INT-SMR1A-2.2-SG
B180: 9999 | C180: Metroville Transportation Authority | D180: LR | E180: Stations | F180: 41203 | G180: Stations | H180: Building | I180: Light Rail | J180: - | K180: 10 | L180: Each | M180: 2019 | N180: FALSE | O180: 2008 | P180: 0.1 | Q180: 1598984.408 | S180: Normal | U180: 0 | V180: 0 | W180: 60 | Y180: Existing | AB180: 90-661-470 | AD180: Blue Line | AE180: West | AQ180: CRN1-TC-INT-SHPI3-0.6-CL
B181: 9999 | C181: Metroville Transportation Authority | D181: LR | E181: Light Rail | F181: 32003 | G181: Systems | H181: Electrification | I181: - | J181: Light Rail | K181: 28 | L181: Ea | M181: 2010 | N181: FALSE | O181: 2013 | P181: 0 | Q181: 725.1302 | S181: Normal | U181: 0 | V181: 0 | W181: 40 | Y181: Existing | AB181: 92-313-054 | AD181: Yellow Line | AE181: South | AQ181: NSE-TC-INT-SHPSC8-10.9-NSSL
B182: 9999 | C182: Metroville Transportation Authority | D182: LR | E182: Light Rail | F182: 32003 | G182: Systems | H182: Electrification | I182: - | J182: Light Rail | K182: 1 | L182: Ea | M182: 2019 | N182: FALSE | O182: 2013 | P182: 0 | Q182: 1256.8923 | S182: Normal | U182: 0 | V182: 0 | W182: 40 | Y182: Existing | AB182: 69-608-611 | AD182: Red Line | AE182: North | AQ182: CRS-TC-INT-SHPS6-1.1-S
B183: 9999 | C183: Metroville Transportation Authority | D183: LR | E183: Light Rail | F183: 32003 | G183: Systems | H183: Electrification | I183: - | J183: Light Rail | K183: 4 | L183: EA | M183: 2016 | N183: FALSE | O183: 2013 | P183: 0 | Q183: 195.7851 | S183: Normal | U183: 0 | V183: 0 | W183: 40 | Y183: Existing | AB183: 17-805-430 | AD183: Red Line | AE183: West | AQ183: CRS-TC-INT-SHPU2-43.1-S
B184: 9999 | C184: Metroville Transportation Authority | D184: LR | E184: Light Rail | F184: 32003 | G184: Systems | H184: Electrification | I184: - | J184: Light Rail | K184: 1 | L184: Ea | M184: 2017 | N184: FALSE | O184: 2013 | P184: 0 | Q184: 193.368 | S184: Normal | U184: 0 | V184: 0 | W184: 40 | Y184: Existing | AB184: 06-606-900 | AD184: Yellow Line | AE184: Central | AQ184: NSW-TC-INT-SHPY4-3.4-Z
B185: 9999 | C185: Metroville Transportation Authority | D185: LR | E185: Light Rail | F185: 32103 | G185: Systems | H185: Electrification | I185: Catenary | J185: Light Rail | K185: 587263 | L185: LF | M185: 2022 | N185: FALSE | O185: 2013 | P185: 0 | Q185: 27.9879 | S185: Normal | U185: 0 | V185: 0 | W185: 40 | Y185: Existing | AB185: 88-745-770 | AD185: Red Line | AE185: North | AQ185: APE-TC-INT-SM11-0.1-Z
B186: 9999 | C186: Metroville Transportation Authority | D186: LR | E186: Light Rail | F186: 32103 | G186: Systems | H186: Electrification | I186: Catenary | J186: Light Rail | K186: 355114.4 | L186: LF | M186: 2010 | N186: FALSE | O186: 2013 | P186: 0 | Q186: 27.2262 | S186: Normal | U186: 0 | V186: 0 | W186: 40 | Y186: Existing | AB186: 65-317-334 | AD186: Yellow Line | AE186: East | AQ186: CRS-TC-INT-SMA11-30.7-S
B187: 9999 | C187: Metroville Transportation Authority | D187: LR | E187: Light Rail | F187: 32103 | G187: Systems | H187: Electrification | I187: Catenary | J187: Light Rail | K187: 223888.1 | L187: LF | M187: 2024 | N187: FALSE | O187: 2013 | P187: 0 | Q187: 27.6378 | S187: Normal | U187: 0 | V187: 0 | W187: 40 | Y187: Existing | AB187: 49-646-694 | AD187: Blue Line | AE187: West | AQ187: WVW-TC-INT-SHPW6-4.8-Z
B188: 9999 | C188: Metroville Transportation Authority | D188: LR | E188: Light Rail | F188: 32103 | G188: Systems | H188: Electrification | I188: Catenary | J188: Light Rail | K188: 89172 | L188: LF | M188: 2014 | N188: FALSE | O188: 2013 | P188: 0 | Q188: 28.1903 | S188: Normal | U188: 0 | V188: 0 | W188: 40 | Y188: Existing | AB188: 05-011-821 | AD188: Blue Line | AE188: East | AQ188: CRS-TC-INT-SHPV1-36.8-S
B189: 9999 | C189: Metroville Transportation Authority | D189: LR | E189: Light Rail | F189: 32103 | G189: Systems | H189: Electrification | I189: Catenary | J189: Light Rail | K189: 57714 | L189: LF | M189: 2016 | N189: FALSE | O189: 2013 | P189: 0 | Q189: 26.8036 | S189: Normal | U189: 0 | V189: 0 | W189: 40 | Y189: Existing | AB189: 88-198-372 | AD189: Red Line | AE189: Central | AQ189: NSW-ES-TPSS-IM-1.5M-IB-0.0-TP
B190: 9999 | C190: Metroville Transportation Authority | D190: LR | E190: Light Rail | F190: 32103 | G190: Systems | H190: Electrification | I190: Catenary | J190: Light Rail | K190: 11056.2 | L190: LF | M190: 2017 | N190: FALSE | O190: 2013 | P190: 0 | Q190: 25.3599 | S190: Normal | U190: 0 | V190: 0 | W190: 40 | Y190: Existing | AB190: 25-201-967 | AD190: Blue Line | AE190: East | AQ190: IME-ES-OCS3189-LP-JAX-1.6-TP
B191: 9999 | C191: Metroville Transportation Authority | D191: LR | E191: Light Rail | F191: 32103 | G191: Systems | H191: Electrification | I191: Catenary | J191: Light Rail | K191: 32 | L191: Ea | M191: 2010 | N191: FALSE | O191: 2013 | P191: 0 | Q191: 1480.4741 | S191: Normal | U191: 0 | V191: 0 | W191: 40 | Y191: Existing | AB191: 21-887-343 | AD191: Red Line | AE191: South | AQ191: UNE-ES-TPSS-IM-1.5M-DCB-3.3-TP
B192: 9999 | C192: Metroville Transportation Authority | D192: LR | E192: Light Rail | F192: 32103 | G192: Systems | H192: Electrification | I192: Catenary | J192: Light Rail | K192: 2 | L192: Ea | M192: 2019 | N192: FALSE | O192: 2013 | P192: 0 | Q192: 3142.2308 | S192: Normal | U192: 0 | V192: 0 | W192: 40 | Y192: Existing | AB192: 99-587-927 | AD192: Blue Line | AE192: West
B193: 9999 | C193: Metroville Transportation Authority | D193: LR | E193: Light Rail | F193: 32103 | G193: Systems | H193: Electrification | I193: Catenary | J193: Light Rail | K193: 2 | L193: Ea | M193: 2017 | N193: FALSE | O193: 2013 | P193: 0 | Q193: 159.5286 | S193: Normal | U193: 0 | V193: 0 | W193: 39 | Y193: Existing | AB193: 73-488-938 | AD193: Yellow Line | AE193: Central
B194: 9999 | C194: Metroville Transportation Authority | D194: LR | E194: Light Rail | F194: 32103 | G194: Systems | H194: Electrification | I194: Catenary | J194: Light Rail | K194: 1 | L194: Ea | M194: 2022 | N194: FALSE | O194: 2013 | P194: 0 | Q194: 154.6944 | S194: Normal | U194: 0 | V194: 0 | W194: 40 | Y194: Existing | AB194: 69-480-212 | AD194: Red Line | AE194: North
B195: 9999 | C195: Metroville Transportation Authority | D195: LR | E195: Light Rail | F195: 32104 | G195: Systems | H195: Electrification | I195: Catenary Poles | J195: Light Rail | K195: 8704 | L195: EA | M195: 2016 | N195: FALSE | O195: 2013 | P195: 0 | Q195: 4665.3596 | S195: Normal | U195: 0 | V195: 0 | W195: 40 | Y195: Existing | AB195: 25-122-028 | AD195: Yellow Line | AE195: South
B196: 9999 | C196: Metroville Transportation Authority | D196: LR | E196: Light Rail | F196: 32104 | G196: Systems | H196: Electrification | I196: Catenary Poles | J196: Light Rail | K196: 5937 | L196: EA | M196: 2014 | N196: FALSE | O196: 2013 | P196: 0 | Q196: 4559.799 | S196: Normal | U196: 0 | V196: 0 | W196: 40 | Y196: Existing | AB196: 76-828-650 | AD196: Red Line | AE196: West
B197: 9999 | C197: Metroville Transportation Authority | D197: LR | E197: Light Rail | F197: 32104 | G197: Systems | H197: Electrification | I197: Catenary Poles | J197: Light Rail | K197: 2553 | L197: Ea | M197: 2010 | N197: FALSE | O197: 2013 | P197: 0 | Q197: 6059.32 | S197: Normal | U197: 0 | V197: 0 | W197: 40 | Y197: Existing | AB197: 94-475-854 | AD197: Yellow Line | AE197: East
B198: 9999 | C198: Metroville Transportation Authority | D198: LR | E198: Light Rail | F198: 32104 | G198: Systems | H198: Electrification | I198: Catenary Poles | J198: Light Rail | K198: 2730 | L198: Ea | M198: 2022 | N198: FALSE | O198: 2013 | P198: 0 | Q198: 4604.0012 | S198: Normal | U198: 0 | V198: 0 | W198: 40 | Y198: Existing | AB198: 15-491-678 | AD198: Red Line | AE198: Central | AQ198: MJE-ES-OCS-X0X2-FP-6.1-Y
B199: 9999 | C199: Metroville Transportation Authority | D199: LR | E199: Light Rail | F199: 32104 | G199: Systems | H199: Electrification | I199: Catenary Poles | J199: Light Rail | K199: 1166 | L199: Ea | M199: 2024 | N199: FALSE | O199: 2013 | P199: 0 | Q199: 4643.4866 | S199: Normal | U199: 0 | V199: 0 | W199: 40 | Y199: Existing | AB199: 96-542-605 | AD199: Blue Line | AE199: East | AQ199: AP-ES-OCS-XOA8-FD-MW-5.2-Y
B200: 9999 | C200: Metroville Transportation Authority | D200: LR | E200: Light Rail | F200: 32104 | G200: Systems | H200: Electrification | I200: Catenary Poles | J200: Light Rail | K200: 181660 | L200: LF | M200: 2010 | N200: FALSE | O200: 2013 | P200: 0 | Q200: 26.6113 | S200: Normal | U200: 0 | V200: 0 | W200: 40 | Y200: Existing | AB200: 43-932-560 | AD200: Blue Line | AE200: West | AQ200: NSE-ES-OCS-WR110-FD-MW-10.2-TP
... 224 more rows
